Body_Code,Body_Name,Service_Area,Responsible_Unit,Expense_Type,Expense_Code,Narrative,Date,Transaction_Number,Amount,Supplier_Name
http://statistics.data.gov.uk/id/local-authority/38,Oxfordshire County Council,SCS Other Cost Centres,Control Account Trojan Residential Care,Balance Sheet General,B2040,ABACUS Accounts Payable Control A/c,13/01/2011,3100030935,-4020.07,CHATTERWOOD CARE HOME
http://statistics.data.gov.uk/id/local-authority/38,Oxfordshire County Council,SCS Other Cost Centres,Control Account Trojan Residential Care,Balance Sheet General,B2040,ABACUS Accounts Payable Control A/c,13/01/2011,3100032272,-787.39,Kineton Manor Nursing Home
http://statistics.data.gov.uk/id/local-authority/38,Oxfordshire County Council,SCS Pooled Budgets,Community Support Budget - Banbury,Other Agency and Contracted Services,57401,Direct Payments,12/01/2011,3100032690,-3124.71,A4e Management Ltd Week 3
http://statistics.data.gov.uk/id/local-authority/38,Oxfordshire County Council,SCS Other Cost Centres,Control Account Trojan Residential Care,Balance Sheet General,B2040,ABACUS Accounts Payable Control A/c,13/01/2011,3100032713,-5407.39,Broadreach
http://statistics.data.gov.uk/id/local-authority/38,Oxfordshire County Council,"Commissioning, Performance & Quality Ass",LSC Transport,Contract Hire/Leasing,33101,Home to School Trans,18/01/2011,3100032800,-1400,ABINGDON AND WITNEY COLLEGE
http://statistics.data.gov.uk/id/local-authority/38,Oxfordshire County Council,Shared Service Centre,ICT Operations,Communications and Computing,45101,Delivery Charges,24/01/2011,3100032920,-1482.17,RBS Procurement Card
http://statistics.data.gov.uk/id/local-authority/38,Oxfordshire County Council,Social & Community Services,Gypsy & Traveller Services - General,Energy Costs,23100,Electricity,01/01/2011,3150003860,-17505.28,BRITISH GAS BUSINESS
http://statistics.data.gov.uk/id/local-authority/38,Oxfordshire County Council,Property Services,Property Holding Code For Reallocation,Energy Costs,23200,Gas,21/01/2011,3150004185,-2330.8,Southern Electric PLC
http://statistics.data.gov.uk/id/local-authority/38,Oxfordshire County Council,SCS Other Cost Centres,Control Account Trojan Residential Care,Balance Sheet General,B2040,ABACUS Accounts Payable Control A/c,13/01/2011,3150004193,-11696.63,St Andrew's Residential Care Home
http://statistics.data.gov.uk/id/local-authority/38,Oxfordshire County Council,SCS Other Cost Centres,Control Account Trojan Residential Care,Balance Sheet General,B2040,ABACUS Accounts Payable Control A/c,14/01/2011,3150004197,-28385.72,Sotwell Hill House
http://statistics.data.gov.uk/id/local-authority/38,Oxfordshire County Council,SCS Other Cost Centres,Control Account Trojan Residential Care,Balance Sheet General,B2040,ABACUS Accounts Payable Control A/c,13/01/2011,3150004198,-48306.67,Sanctuary Care
http://statistics.data.gov.uk/id/local-authority/38,Oxfordshire County Council,SCS Other Cost Centres,Control Account Trojan Residential Care,Balance Sheet General,B2040,ABACUS Accounts Payable Control A/c,13/01/2011,3150004199,-27154.13,VALE HOUSE
http://statistics.data.gov.uk/id/local-authority/38,Oxfordshire County Council,SCS Other Cost Centres,Control Account Trojan Residential Care,Balance Sheet General,B2040,ABACUS Accounts Payable Control A/c,13/01/2011,3150004200,-11727.45,St Andrews Hospital
http://statistics.data.gov.uk/id/local-authority/38,Oxfordshire County Council,Social & Community Services,Gypsy & Traveller Services - General,Energy Costs,23100,Electricity,01/01/2011,3150004202,17505.28,BRITISH GAS BUSINESS
http://statistics.data.gov.uk/id/local-authority/38,Oxfordshire County Council,Social & Community Services,Contribution to Pool,Voluntary Associations,55405,Contribution to External Health Pooled Budgets,10/01/2011,3150004204,-29250,Oxfordshire Primary Care Trust
http://statistics.data.gov.uk/id/local-authority/38,Oxfordshire County Council,SCS Pooled Budgets,PD Pool Continuing Care Home Support,Other Agency and Contracted Services,57302,Home Support (Ext) Continuing Care,12/01/2011,3150004206,-895.38,Active Assistance
http://statistics.data.gov.uk/id/local-authority/38,Oxfordshire County Council,SCS Pooled Budgets,OP Pool Continuing Care Home Support,Other Agency and Contracted Services,57302,Home Support (Ext) Continuing Care,14/01/2011,3150004207,-1268.1,Day and Nightcare Assistance
http://statistics.data.gov.uk/id/local-authority/38,Oxfordshire County Council,SCS Pooled Budgets,PD Pool Continuing Care Home Support,Other Agency and Contracted Services,57302,Home Support (Ext) Continuing Care,26/01/2011,3150004208,-597.7,Miracle Workers Agency Ltd
http://statistics.data.gov.uk/id/local-authority/38,Oxfordshire County Council,Social & Community Services,Ops Manager (OP & PD) SC,Social Workers / Care Managers,15017,Soc Wk/Care Mngrs Agency Staff,25/01/2011,3150004214,-3410,Community Health Oxfordshire (CHO)
http://statistics.data.gov.uk/id/local-authority/38,Oxfordshire County Council,SCS Other Cost Centres,Control Account Trojan Residential Care,Balance Sheet General,B2040,ABACUS Accounts Payable Control A/c,13/01/2011,3301145483,1784.14,CHATTERWOOD CARE HOME
http://statistics.data.gov.uk/id/local-authority/38,Oxfordshire County Council,SCS Other Cost Centres,Control Account Trojan Residential Care,Balance Sheet General,B2040,ABACUS Accounts Payable Control A/c,13/01/2011,3301166144,1843.61,CHATTERWOOD CARE HOME
http://statistics.data.gov.uk/id/local-authority/38,Oxfordshire County Council,SCS Pooled Budgets,Direct Payments South Team,Other Agency and Contracted Services,57401,Direct Payments,05/01/2011,3301176857,651,REDACTED PERSONAL DATA
http://statistics.data.gov.uk/id/local-authority/38,Oxfordshire County Council,SCS Pooled Budgets,Community Support Budget - Didcot,Other Agency and Contracted Services,57401,Direct Payments,05/01/2011,3301176858,1086.6,REDACTED PERSONAL DATA
http://statistics.data.gov.uk/id/local-authority/38,Oxfordshire County Council,SCS Pooled Budgets,Community Support Budget - Henley,Other Agency and Contracted Services,57401,Direct Payments,05/01/2011,3301176859,520.8,REDACTED PERSONAL DATA
http://statistics.data.gov.uk/id/local-authority/38,Oxfordshire County Council,SCS Pooled Budgets,PD Comm Supp Purchasg Budget - City,Other Agency and Contracted Services,57401,Direct Payments,05/01/2011,3301176860,2213.11,REDACTED PERSONAL DATA
http://statistics.data.gov.uk/id/local-authority/38,Oxfordshire County Council,SCS Pooled Budgets,PD CS Purch Budget - Health S28a JC,Other Agency and Contracted Services,57401,Direct Payments,05/01/2011,3301176860,2126.33,REDACTED PERSONAL DATA
http://statistics.data.gov.uk/id/local-authority/38,Oxfordshire County Council,SCS Pooled Budgets,Direct Payments North Team,Other Agency and Contracted Services,57401,Direct Payments,05/01/2011,3301176861,1043.08,REDACTED PERSONAL DATA
http://statistics.data.gov.uk/id/local-authority/38,Oxfordshire County Council,SCS Pooled Budgets,Community Support Budget - Bicester,Other Agency and Contracted Services,57401,Direct Payments,05/01/2011,3301176862,1333.2,REDACTED PERSONAL DATA
http://statistics.data.gov.uk/id/local-authority/38,Oxfordshire County Council,SCS Pooled Budgets,PD CS Purch Budget - Health S28a JC,Other Agency and Contracted Services,57401,Direct Payments,05/01/2011,3301176863,2378.93,REDACTED PERSONAL DATA
http://statistics.data.gov.uk/id/local-authority/38,Oxfordshire County Council,SCS Pooled Budgets,PD Comm Supp Purchasg Budget - Witney,Other Agency and Contracted Services,57401,Direct Payments,05/01/2011,3301176863,1225.51,REDACTED PERSONAL DATA
http://statistics.data.gov.uk/id/local-authority/38,Oxfordshire County Council,SCS Pooled Budgets,Direct Payments South Team,Other Agency and Contracted Services,57401,Direct Payments,05/01/2011,3301176864,634.92,REDACTED PERSONAL DATA
http://statistics.data.gov.uk/id/local-authority/38,Oxfordshire County Council,SCS Pooled Budgets,PD Comm Supp Budget - Banbury,Other Agency and Contracted Services,57401,Direct Payments,05/01/2011,3301176866,1261.24,REDACTED PERSONAL DATA
http://statistics.data.gov.uk/id/local-authority/38,Oxfordshire County Council,SCS Pooled Budgets,PD Comm Supp Purchasg Budget - Didcot,Other Agency and Contracted Services,57401,Direct Payments,05/01/2011,3301176869,1828,REDACTED PERSONAL DATA
http://statistics.data.gov.uk/id/local-authority/38,Oxfordshire County Council,SCS Pooled Budgets,Direct Payments South Team,Other Agency and Contracted Services,57401,Direct Payments,05/01/2011,3301176870,616.88,REDACTED PERSONAL DATA
http://statistics.data.gov.uk/id/local-authority/38,Oxfordshire County Council,SCS Pooled Budgets,Direct Payments North Team,Other Agency and Contracted Services,57401,Direct Payments,05/01/2011,3301176873,8553.08,REDACTED PERSONAL DATA
http://statistics.data.gov.uk/id/local-authority/38,Oxfordshire County Council,SCS Pooled Budgets,PD Comm Supp Budgt - Bicester/Kidlington,Other Agency and Contracted Services,57401,Direct Payments,05/01/2011,3301176875,1505.48,REDACTED PERSONAL DATA
http://statistics.data.gov.uk/id/local-authority/38,Oxfordshire County Council,SCS Pooled Budgets,Community Support Budget - Kidlington,Other Agency and Contracted Services,57401,Direct Payments,05/01/2011,3301176876,760.62,REDACTED PERSONAL DATA
http://statistics.data.gov.uk/id/local-authority/38,Oxfordshire County Council,SCS Pooled Budgets,Community Support Budget - Kidlington,Other Agency and Contracted Services,57401,Direct Payments,05/01/2011,3301176877,851.28,REDACTED PERSONAL DATA
http://statistics.data.gov.uk/id/local-authority/38,Oxfordshire County Council,SCS Pooled Budgets,Community Support Budget - City,Other Agency and Contracted Services,57401,Direct Payments,05/01/2011,3301176879,748.6,REDACTED PERSONAL DATA
http://statistics.data.gov.uk/id/local-authority/38,Oxfordshire County Council,SCS Pooled Budgets,PD Comm Supp Purchasg Budget - Witney,Other Agency and Contracted Services,57401,Direct Payments,05/01/2011,3301176880,1990.71,REDACTED PERSONAL DATA
http://statistics.data.gov.uk/id/local-authority/38,Oxfordshire County Council,SCS Pooled Budgets,PD CS Purch Budget - Health S28a JC,Other Agency and Contracted Services,57401,Direct Payments,05/01/2011,3301176880,663.57,REDACTED PERSONAL DATA
http://statistics.data.gov.uk/id/local-authority/38,Oxfordshire County Council,SCS Pooled Budgets,PD Comm Supp Purchasg Budget - Witney,Other Agency and Contracted Services,57401,Direct Payments,05/01/2011,3301176882,863.9,REDACTED PERSONAL DATA
http://statistics.data.gov.uk/id/local-authority/38,Oxfordshire County Council,SCS Pooled Budgets,Direct Payments North Team,Other Agency and Contracted Services,57401,Direct Payments,05/01/2011,3301176884,896,REDACTED PERSONAL DATA
http://statistics.data.gov.uk/id/local-authority/38,Oxfordshire County Council,SCS Pooled Budgets,Community Support Budget - Didcot,Other Agency and Contracted Services,57401,Direct Payments,05/01/2011,3301176885,1869.04,REDACTED PERSONAL DATA
http://statistics.data.gov.uk/id/local-authority/38,Oxfordshire County Council,SCS Pooled Budgets,Direct Payments City Team,Other Agency and Contracted Services,57401,Direct Payments,05/01/2011,3301176886,1461.52,REDACTED PERSONAL DATA
http://statistics.data.gov.uk/id/local-authority/38,Oxfordshire County Council,SCS Pooled Budgets,Direct Payments City Team,Other Agency and Contracted Services,57401,Direct Payments,05/01/2011,3301176886,1826.9,REDACTED PERSONAL DATA
http://statistics.data.gov.uk/id/local-authority/38,Oxfordshire County Council,SCS Pooled Budgets,Direct Payments City Team,Other Agency and Contracted Services,57401,Direct Payments,05/01/2011,3301176886,-1520,REDACTED PERSONAL DATA
http://statistics.data.gov.uk/id/local-authority/38,Oxfordshire County Council,SCS Pooled Budgets,Direct Payments City Team,Other Agency and Contracted Services,57401,Direct Payments,05/01/2011,3301176887,740,REDACTED PERSONAL DATA
http://statistics.data.gov.uk/id/local-authority/38,Oxfordshire County Council,SCS Pooled Budgets,Community Support Budget - Thame,Other Agency and Contracted Services,57401,Direct Payments,05/01/2011,3301176888,1345.72,REDACTED PERSONAL DATA
http://statistics.data.gov.uk/id/local-authority/38,Oxfordshire County Council,SCS Pooled Budgets,Direct Payments North Team,Other Agency and Contracted Services,57401,Direct Payments,05/01/2011,3301176893,560,REDACTED PERSONAL DATA
http://statistics.data.gov.uk/id/local-authority/38,Oxfordshire County Council,SCS Pooled Budgets,PD Comm Supp Budget - Banbury,Other Agency and Contracted Services,57401,Direct Payments,05/01/2011,3301176894,1121.72,REDACTED PERSONAL DATA
http://statistics.data.gov.uk/id/local-authority/38,Oxfordshire County Council,SCS Pooled Budgets,Direct Payments South Team,Other Agency and Contracted Services,57401,Direct Payments,05/01/2011,3301176896,5364,REDACTED PERSONAL DATA
http://statistics.data.gov.uk/id/local-authority/38,Oxfordshire County Council,Social & Community Services,"LD Day Services, Service Managers",Other Agency and Contracted Services,57401,Direct Payments,05/01/2011,3301176898,906.08,REDACTED PERSONAL DATA
http://statistics.data.gov.uk/id/local-authority/38,Oxfordshire County Council,SCS Pooled Budgets,Direct Payments North Team,Other Agency and Contracted Services,57401,Direct Payments,05/01/2011,3301176899,520.56,REDACTED PERSONAL DATA
http://statistics.data.gov.uk/id/local-authority/38,Oxfordshire County Council,SCS Pooled Budgets,Direct Payments City Team,Other Agency and Contracted Services,57401,Direct Payments,05/01/2011,3301176900,594,REDACTED PERSONAL DATA
http://statistics.data.gov.uk/id/local-authority/38,Oxfordshire County Council,SCS Pooled Budgets,Community Support Budget - Didcot,Other Agency and Contracted Services,57401,Direct Payments,05/01/2011,3301176901,704.32,REDACTED PERSONAL DATA
http://statistics.data.gov.uk/id/local-authority/38,Oxfordshire County Council,SCS Pooled Budgets,Direct Payments South Team,Other Agency and Contracted Services,57401,Direct Payments,05/01/2011,3301176902,3808.36,REDACTED PERSONAL DATA
http://statistics.data.gov.uk/id/local-authority/38,Oxfordshire County Council,SCS Pooled Budgets,Community Support Budget - Banbury,Other Agency and Contracted Services,57401,Direct Payments,05/01/2011,3301176903,1000,REDACTED PERSONAL DATA
http://statistics.data.gov.uk/id/local-authority/38,Oxfordshire County Council,SCS Pooled Budgets,OP Pool Continuing Care Delegated Health,Other Agency and Contracted Services,57401,Direct Payments,05/01/2011,3301176904,1368.34,REDACTED PERSONAL DATA
http://statistics.data.gov.uk/id/local-authority/38,Oxfordshire County Council,SCS Pooled Budgets,Community Support Budget - City,Other Agency and Contracted Services,57401,Direct Payments,05/01/2011,3301176904,1672.42,REDACTED PERSONAL DATA
http://statistics.data.gov.uk/id/local-authority/38,Oxfordshire County Council,SCS Pooled Budgets,Direct Payments North Team,Other Agency and Contracted Services,57401,Direct Payments,05/01/2011,3301176905,4969.8,REDACTED PERSONAL DATA
http://statistics.data.gov.uk/id/local-authority/38,Oxfordshire County Council,SCS Pooled Budgets,Community Support Budget - Banbury,Other Agency and Contracted Services,57401,Direct Payments,05/01/2011,3301176908,2028.32,REDACTED PERSONAL DATA
http://statistics.data.gov.uk/id/local-authority/38,Oxfordshire County Council,SCS Pooled Budgets,Direct Payments South Team,Other Agency and Contracted Services,57401,Direct Payments,05/01/2011,3301176910,738.28,REDACTED PERSONAL DATA
http://statistics.data.gov.uk/id/local-authority/38,Oxfordshire County Council,SCS Pooled Budgets,Direct Payments South Team,Other Agency and Contracted Services,57401,Direct Payments,05/01/2011,3301176911,1494.44,REDACTED PERSONAL DATA
http://statistics.data.gov.uk/id/local-authority/38,Oxfordshire County Council,SCS Pooled Budgets,Community Support Budget - Thame,Other Agency and Contracted Services,57401,Direct Payments,05/01/2011,3301176913,4021.64,REDACTED PERSONAL DATA
http://statistics.data.gov.uk/id/local-authority/38,Oxfordshire County Council,SCS Pooled Budgets,Community Support Budget - Banbury,Other Agency and Contracted Services,57401,Direct Payments,05/01/2011,3301176914,542.5,REDACTED PERSONAL DATA
http://statistics.data.gov.uk/id/local-authority/38,Oxfordshire County Council,SCS Pooled Budgets,Direct Payments North Team,Other Agency and Contracted Services,57401,Direct Payments,05/01/2011,3301176916,4983.04,REDACTED PERSONAL DATA
http://statistics.data.gov.uk/id/local-authority/38,Oxfordshire County Council,SCS Pooled Budgets,Community Support Budget - Thame,Other Agency and Contracted Services,57401,Direct Payments,05/01/2011,3301176917,1731.16,REDACTED PERSONAL DATA
http://statistics.data.gov.uk/id/local-authority/38,Oxfordshire County Council,SCS Pooled Budgets,Community Support Budget - Bicester,Other Agency and Contracted Services,57401,Direct Payments,05/01/2011,3301176918,506.76,REDACTED PERSONAL DATA
http://statistics.data.gov.uk/id/local-authority/38,Oxfordshire County Council,SCS Pooled Budgets,PD Community Support Budget - Kidlington,Other Agency and Contracted Services,57401,Direct Payments,05/01/2011,3301176919,763,REDACTED PERSONAL DATA
http://statistics.data.gov.uk/id/local-authority/38,Oxfordshire County Council,SCS Pooled Budgets,PD Comm Supp Purchasg Budget - Abingdon,Other Agency and Contracted Services,57401,Direct Payments,05/01/2011,3301176920,813.76,REDACTED PERSONAL DATA
http://statistics.data.gov.uk/id/local-authority/38,Oxfordshire County Council,SCS Pooled Budgets,Community Support Budget - City,Other Agency and Contracted Services,57401,Direct Payments,05/01/2011,3301176921,1140.93,REDACTED PERSONAL DATA
http://statistics.data.gov.uk/id/local-authority/38,Oxfordshire County Council,SCS Pooled Budgets,Community Support Budget - City,Other Agency and Contracted Services,57401,Direct Payments,05/01/2011,3301176923,849.92,REDACTED PERSONAL DATA
http://statistics.data.gov.uk/id/local-authority/38,Oxfordshire County Council,SCS Pooled Budgets,Direct Payments North Team,Other Agency and Contracted Services,57401,Direct Payments,05/01/2011,3301176924,14465.24,REDACTED PERSONAL DATA
http://statistics.data.gov.uk/id/local-authority/38,Oxfordshire County Council,SCS Pooled Budgets,Community Support Budget - Henley,Other Agency and Contracted Services,57401,Direct Payments,05/01/2011,3301176925,778.73,REDACTED PERSONAL DATA
http://statistics.data.gov.uk/id/local-authority/38,Oxfordshire County Council,SCS Pooled Budgets,Community Support Budget - City,Other Agency and Contracted Services,57401,Direct Payments,05/01/2011,3301176927,1822.8,REDACTED PERSONAL DATA
http://statistics.data.gov.uk/id/local-authority/38,Oxfordshire County Council,SCS Pooled Budgets,PD Comm Supp Purchasg Budget - Henley,Other Agency and Contracted Services,57401,Direct Payments,05/01/2011,3301176930,3164.4,REDACTED PERSONAL DATA
http://statistics.data.gov.uk/id/local-authority/38,Oxfordshire County Council,SCS Pooled Budgets,Direct Payments North Team,Other Agency and Contracted Services,57401,Direct Payments,05/01/2011,3301176931,2064.12,REDACTED PERSONAL DATA
http://statistics.data.gov.uk/id/local-authority/38,Oxfordshire County Council,SCS Pooled Budgets,Community Support Budget - Didcot,Other Agency and Contracted Services,57401,Direct Payments,05/01/2011,3301176933,1014.16,REDACTED PERSONAL DATA
http://statistics.data.gov.uk/id/local-authority/38,Oxfordshire County Council,SCS Pooled Budgets,Community Support Budget - City,Other Agency and Contracted Services,57401,Direct Payments,05/01/2011,3301176937,760.6,REDACTED PERSONAL DATA
http://statistics.data.gov.uk/id/local-authority/38,Oxfordshire County Council,SCS Pooled Budgets,PD Comm Supp Purchasg Budget - Wantage,Other Agency and Contracted Services,57401,Direct Payments,05/01/2011,3301176938,710.37,REDACTED PERSONAL DATA
http://statistics.data.gov.uk/id/local-authority/38,Oxfordshire County Council,SCS Pooled Budgets,PD Community Support Budget - Kidlington,Other Agency and Contracted Services,57401,Direct Payments,05/01/2011,3301176939,680,REDACTED PERSONAL DATA
http://statistics.data.gov.uk/id/local-authority/38,Oxfordshire County Council,SCS Pooled Budgets,PD CS Purch Budget - Health S28a JC,Other Agency and Contracted Services,57401,Direct Payments,05/01/2011,3301176939,1842.28,REDACTED PERSONAL DATA
http://statistics.data.gov.uk/id/local-authority/38,Oxfordshire County Council,SCS Pooled Budgets,Community Support Budget - Bicester,Other Agency and Contracted Services,57401,Direct Payments,05/01/2011,3301176940,1100.4,REDACTED PERSONAL DATA
http://statistics.data.gov.uk/id/local-authority/38,Oxfordshire County Council,SCS Pooled Budgets,PD Comm Supp Purchasg Budget - Abingdon,Other Agency and Contracted Services,57401,Direct Payments,05/01/2011,3301176941,714.6,REDACTED PERSONAL DATA
http://statistics.data.gov.uk/id/local-authority/38,Oxfordshire County Council,SCS Pooled Budgets,Direct Payments South Team,Other Agency and Contracted Services,57401,Direct Payments,05/01/2011,3301176942,4744.84,REDACTED PERSONAL DATA
http://statistics.data.gov.uk/id/local-authority/38,Oxfordshire County Council,SCS Pooled Budgets,Direct Payments South Team,Other Agency and Contracted Services,57401,Direct Payments,05/01/2011,3301176943,1820,REDACTED PERSONAL DATA
http://statistics.data.gov.uk/id/local-authority/38,Oxfordshire County Council,SCS Pooled Budgets,Community Support Budget - Banbury,Other Agency and Contracted Services,57401,Direct Payments,05/01/2011,3301176945,2356,REDACTED PERSONAL DATA
http://statistics.data.gov.uk/id/local-authority/38,Oxfordshire County Council,SCS Pooled Budgets,PD Comm Supp Purchasg Budget - Abingdon,Other Agency and Contracted Services,57401,Direct Payments,05/01/2011,3301176946,2547.29,REDACTED PERSONAL DATA
http://statistics.data.gov.uk/id/local-authority/38,Oxfordshire County Council,SCS Pooled Budgets,PD CS Purch Budget - Health S28a JC,Other Agency and Contracted Services,57401,Direct Payments,05/01/2011,3301176946,2084.15,REDACTED PERSONAL DATA
http://statistics.data.gov.uk/id/local-authority/38,Oxfordshire County Council,SCS Pooled Budgets,PD CS Purch Budget - Health S28a JC,Other Agency and Contracted Services,57401,Direct Payments,05/01/2011,3301176947,1096.64,REDACTED PERSONAL DATA
http://statistics.data.gov.uk/id/local-authority/38,Oxfordshire County Council,SCS Pooled Budgets,PD Comm Supp Purchasg Budget - Didcot,Other Agency and Contracted Services,57401,Direct Payments,05/01/2011,3301176947,1280,REDACTED PERSONAL DATA
http://statistics.data.gov.uk/id/local-authority/38,Oxfordshire County Council,SCS Pooled Budgets,Direct Payments City Team,Other Agency and Contracted Services,57401,Direct Payments,05/01/2011,3301176949,1549.04,REDACTED PERSONAL DATA
http://statistics.data.gov.uk/id/local-authority/38,Oxfordshire County Council,SCS Pooled Budgets,Direct Payments North Team,Other Agency and Contracted Services,57401,Direct Payments,05/01/2011,3301176950,7448.88,REDACTED PERSONAL DATA
http://statistics.data.gov.uk/id/local-authority/38,Oxfordshire County Council,SCS Pooled Budgets,Direct Payments North Team,Other Agency and Contracted Services,57401,Direct Payments,05/01/2011,3301176951,4393.92,REDACTED PERSONAL DATA
http://statistics.data.gov.uk/id/local-authority/38,Oxfordshire County Council,Social & Community Services,Community Support Budget - City East,Other Agency and Contracted Services,57401,Direct Payments,05/01/2011,3301176952,508.36,REDACTED PERSONAL DATA
http://statistics.data.gov.uk/id/local-authority/38,Oxfordshire County Council,SCS Pooled Budgets,Direct Payments South Team,Other Agency and Contracted Services,57401,Direct Payments,05/01/2011,3301176953,3330.68,REDACTED PERSONAL DATA
http://statistics.data.gov.uk/id/local-authority/38,Oxfordshire County Council,SCS Pooled Budgets,PD Comm Supp Purchasg Budget - Abingdon,Other Agency and Contracted Services,57401,Direct Payments,05/01/2011,3301176955,744,A4e Management Ltd Week 2
http://statistics.data.gov.uk/id/local-authority/38,Oxfordshire County Council,SCS Pooled Budgets,Community Support Budget - Banbury,Other Agency and Contracted Services,57401,Direct Payments,05/01/2011,3301176956,716.08,A4e Management Ltd Week 2
http://statistics.data.gov.uk/id/local-authority/38,Oxfordshire County Council,SCS Pooled Budgets,Direct Payments City Team,Other Agency and Contracted Services,57401,Direct Payments,05/01/2011,3301176957,1944,A4e Management Ltd Week 2
http://statistics.data.gov.uk/id/local-authority/38,Oxfordshire County Council,SCS Pooled Budgets,Direct Payments City Team,Other Agency and Contracted Services,57401,Direct Payments,05/01/2011,3301176957,-954.8,A4e Management Ltd Week 2
http://statistics.data.gov.uk/id/local-authority/38,Oxfordshire County Council,SCS Pooled Budgets,PD Comm Supp Purchasg Budget - Witney,Other Agency and Contracted Services,57401,Direct Payments,05/01/2011,3301176958,600,A4e Management Ltd Week 2
http://statistics.data.gov.uk/id/local-authority/38,Oxfordshire County Council,SCS Pooled Budgets,Community Support Budget - City,Other Agency and Contracted Services,57401,Direct Payments,05/01/2011,3301176959,624,A4e Management Ltd Week 2
http://statistics.data.gov.uk/id/local-authority/38,Oxfordshire County Council,SCS Pooled Budgets,Community Support Budget - City,Other Agency and Contracted Services,57401,Direct Payments,05/01/2011,3301176964,1560,A4e Management Ltd Week 2
http://statistics.data.gov.uk/id/local-authority/38,Oxfordshire County Council,Social & Community Services,Community Support Budget - City East,Other Agency and Contracted Services,57401,Direct Payments,05/01/2011,3301176965,1160,A4e Management Ltd Week 2
http://statistics.data.gov.uk/id/local-authority/38,Oxfordshire County Council,SCS Pooled Budgets,Direct Payments City Team,Other Agency and Contracted Services,57401,Direct Payments,05/01/2011,3301176967,1944,A4e Management Ltd Week 2
http://statistics.data.gov.uk/id/local-authority/38,Oxfordshire County Council,SCS Pooled Budgets,PD Comm Supp Purchasg Budget - Abingdon,Other Agency and Contracted Services,57401,Direct Payments,05/01/2011,3301176968,911.4,A4e Management Ltd Week 2
http://statistics.data.gov.uk/id/local-authority/38,Oxfordshire County Council,SCS Pooled Budgets,Community Support Budget - Kidlington,Other Agency and Contracted Services,57401,Direct Payments,05/01/2011,3301176970,2028.32,A4e Management Ltd Week 2
http://statistics.data.gov.uk/id/local-authority/38,Oxfordshire County Council,SCS Pooled Budgets,Community Support Budget - Kidlington,Other Agency and Contracted Services,57401,Direct Payments,05/01/2011,3301176974,639.4,A4e Management Ltd Week 2
http://statistics.data.gov.uk/id/local-authority/38,Oxfordshire County Council,SCS Pooled Budgets,Community Support Budget - Kidlington,Other Agency and Contracted Services,57401,Direct Payments,05/01/2011,3301176976,618.45,A4e Management Ltd Week 2
http://statistics.data.gov.uk/id/local-authority/38,Oxfordshire County Council,SCS Pooled Budgets,Community Support Budget - City,Other Agency and Contracted Services,57401,Direct Payments,05/01/2011,3301176977,887.39,A4e Management Ltd Week 2
http://statistics.data.gov.uk/id/local-authority/38,Oxfordshire County Council,SCS Pooled Budgets,Community Support Budget - City,Other Agency and Contracted Services,57401,Direct Payments,05/01/2011,3301176979,1140.93,A4e Management Ltd Week 2
http://statistics.data.gov.uk/id/local-authority/38,Oxfordshire County Council,SCS Pooled Budgets,Community Support Budget - Abingdon,Other Agency and Contracted Services,57401,Direct Payments,05/01/2011,3301176980,2028.32,A4e Management Ltd Week 2
http://statistics.data.gov.uk/id/local-authority/38,Oxfordshire County Council,SCS Pooled Budgets,Community Support Budget - Kidlington,Other Agency and Contracted Services,57401,Direct Payments,05/01/2011,3301176982,920,A4e Management Ltd Week 2
http://statistics.data.gov.uk/id/local-authority/38,Oxfordshire County Council,SCS Pooled Budgets,Direct Payments North Team,Other Agency and Contracted Services,57401,Direct Payments,05/01/2011,3301176983,542.88,A4e Management Ltd Week 2
http://statistics.data.gov.uk/id/local-authority/38,Oxfordshire County Council,SCS Pooled Budgets,Community Support Budget - Bicester,Other Agency and Contracted Services,57401,Direct Payments,05/01/2011,3301176984,834.72,A4e Management Ltd Week 2
http://statistics.data.gov.uk/id/local-authority/38,Oxfordshire County Council,SCS Pooled Budgets,Direct Payments South Team,Other Agency and Contracted Services,57401,Direct Payments,05/01/2011,3301176985,909,A4e Management Ltd Week 2
http://statistics.data.gov.uk/id/local-authority/38,Oxfordshire County Council,SCS Pooled Budgets,PD Comm Supp Purchasg Budget - Witney,Other Agency and Contracted Services,57401,Direct Payments,05/01/2011,3301176987,1014.16,A4e Management Ltd Week 2
http://statistics.data.gov.uk/id/local-authority/38,Oxfordshire County Council,SCS Pooled Budgets,Community Support Budget - Bicester,Other Agency and Contracted Services,57401,Direct Payments,05/01/2011,3301176988,700,A4e Management Ltd Week 2
http://statistics.data.gov.uk/id/local-authority/38,Oxfordshire County Council,SCS Pooled Budgets,Community Support Budget - Banbury,Other Agency and Contracted Services,57401,Direct Payments,05/01/2011,3301176989,930.16,A4e Management Ltd Week 2
http://statistics.data.gov.uk/id/local-authority/38,Oxfordshire County Council,SCS Pooled Budgets,Community Support Budget - Bicester,Other Agency and Contracted Services,57401,Direct Payments,05/01/2011,3301176990,1521.24,A4e Management Ltd Week 2
http://statistics.data.gov.uk/id/local-authority/38,Oxfordshire County Council,SCS Pooled Budgets,Community Support Budget - Banbury,Other Agency and Contracted Services,57401,Direct Payments,05/01/2011,3301176991,1067.92,A4e Management Ltd Week 2
http://statistics.data.gov.uk/id/local-authority/38,Oxfordshire County Council,SCS Pooled Budgets,Community Support Budget - Bicester,Other Agency and Contracted Services,57401,Direct Payments,05/01/2011,3301176992,1240,A4e Management Ltd Week 2
http://statistics.data.gov.uk/id/local-authority/38,Oxfordshire County Council,SCS Pooled Budgets,Community Support Budget - Chipping Nort,Other Agency and Contracted Services,57401,Direct Payments,05/01/2011,3301176994,1000,A4e Management Ltd Week 2
http://statistics.data.gov.uk/id/local-authority/38,Oxfordshire County Council,SCS Pooled Budgets,Community Support Budget - Chipping Nort,Other Agency and Contracted Services,57401,Direct Payments,05/01/2011,3301176997,912,A4e Management Ltd Week 2
http://statistics.data.gov.uk/id/local-authority/38,Oxfordshire County Council,SCS Pooled Budgets,PD Community Support Budget - Kidlington,Other Agency and Contracted Services,57401,Direct Payments,05/01/2011,3301176999,3195.04,A4e Management Ltd Week 2
http://statistics.data.gov.uk/id/local-authority/38,Oxfordshire County Council,SCS Pooled Budgets,Community Support Budget - Banbury,Other Agency and Contracted Services,57401,Direct Payments,05/01/2011,3301177000,502.04,A4e Management Ltd Week 2
http://statistics.data.gov.uk/id/local-authority/38,Oxfordshire County Council,SCS Pooled Budgets,PD Comm Supp Purchasg Budget - Abingdon,Other Agency and Contracted Services,57401,Direct Payments,05/01/2011,3301177001,1106.7,A4e Management Ltd Week 2
http://statistics.data.gov.uk/id/local-authority/38,Oxfordshire County Council,SCS Pooled Budgets,Direct Payments City Team,Other Agency and Contracted Services,57401,Direct Payments,05/01/2011,3301177002,583.04,A4e Management Ltd Week 2
http://statistics.data.gov.uk/id/local-authority/38,Oxfordshire County Council,SCS Pooled Budgets,Community Support Budget - Witney,Other Agency and Contracted Services,57401,Direct Payments,05/01/2011,3301177004,1824.16,A4e Management Ltd Week 2
http://statistics.data.gov.uk/id/local-authority/38,Oxfordshire County Council,SCS Pooled Budgets,Community Support Budget - Banbury,Other Agency and Contracted Services,57401,Direct Payments,05/01/2011,3301177007,868.8,A4e Management Ltd Week 2
http://statistics.data.gov.uk/id/local-authority/38,Oxfordshire County Council,SCS Pooled Budgets,Community Support Budget - Witney,Other Agency and Contracted Services,57401,Direct Payments,05/01/2011,3301177009,651,A4e Management Ltd Week 2
http://statistics.data.gov.uk/id/local-authority/38,Oxfordshire County Council,SCS Pooled Budgets,Community Support Budget - Witney,Other Agency and Contracted Services,57401,Direct Payments,05/01/2011,3301177011,1335.48,A4e Management Ltd Week 2
http://statistics.data.gov.uk/id/local-authority/38,Oxfordshire County Council,SCS Pooled Budgets,PD Comm Supp Budget - Banbury,Other Agency and Contracted Services,57401,Direct Payments,05/01/2011,3301177013,507.08,A4e Management Ltd Week 2
http://statistics.data.gov.uk/id/local-authority/38,Oxfordshire County Council,SCS Pooled Budgets,PD Comm Supp Purchasg Budget - Witney,Other Agency and Contracted Services,57401,Direct Payments,05/01/2011,3301177014,3080,A4e Management Ltd Week 2
http://statistics.data.gov.uk/id/local-authority/38,Oxfordshire County Council,SCS Pooled Budgets,Community Support Budget - Witney,Other Agency and Contracted Services,57401,Direct Payments,05/01/2011,3301177017,726.95,A4e Management Ltd Week 2
http://statistics.data.gov.uk/id/local-authority/38,Oxfordshire County Council,SCS Pooled Budgets,Community Support Budget - Banbury,Other Agency and Contracted Services,57401,Direct Payments,05/01/2011,3301177018,600,A4e Management Ltd Week 2
http://statistics.data.gov.uk/id/local-authority/38,Oxfordshire County Council,SCS Pooled Budgets,Community Support Budget - Banbury,Other Agency and Contracted Services,57401,Direct Payments,05/01/2011,3301177019,959.8,A4e Management Ltd Week 2
http://statistics.data.gov.uk/id/local-authority/38,Oxfordshire County Council,SCS Pooled Budgets,Direct Payments North Team,Other Agency and Contracted Services,57401,Direct Payments,05/01/2011,3301177020,841.16,A4e Management Ltd Week 2
http://statistics.data.gov.uk/id/local-authority/38,Oxfordshire County Council,SCS Pooled Budgets,PD Comm Supp Purchasg Budget - Chip. N.,Other Agency and Contracted Services,57401,Direct Payments,05/01/2011,3301177021,2156.97,A4e Management Ltd Week 2
http://statistics.data.gov.uk/id/local-authority/38,Oxfordshire County Council,SCS Pooled Budgets,PD CS Purch Budget - Health S28a JC,Other Agency and Contracted Services,57401,Direct Payments,05/01/2011,3301177021,500.95,A4e Management Ltd Week 2
http://statistics.data.gov.uk/id/local-authority/38,Oxfordshire County Council,SCS Pooled Budgets,PD Comm Supp Purchasg Budget - Henley,Other Agency and Contracted Services,57401,Direct Payments,05/01/2011,3301177023,1044,A4e Management Ltd Week 2
http://statistics.data.gov.uk/id/local-authority/38,Oxfordshire County Council,SCS Pooled Budgets,Community Support Budget - City,Other Agency and Contracted Services,57401,Direct Payments,05/01/2011,3301177025,2320,A4e Management Ltd Week 2
http://statistics.data.gov.uk/id/local-authority/38,Oxfordshire County Council,SCS Pooled Budgets,Community Support Budget - Banbury,Other Agency and Contracted Services,57401,Direct Payments,05/01/2011,3301177027,1560,A4e Management Ltd Week 2
http://statistics.data.gov.uk/id/local-authority/38,Oxfordshire County Council,SCS Pooled Budgets,PD Comm Supp Budget - Banbury,Other Agency and Contracted Services,57401,Direct Payments,05/01/2011,3301177028,830.48,A4e Management Ltd Week 2
http://statistics.data.gov.uk/id/local-authority/38,Oxfordshire County Council,Balance Sheet Workflow,MIS Payroll Workflow,Balance Sheet General,B7102,Local Government AVC,05/01/2011,3301177065,69058.98,Prudential Assurance Co. Ltd
http://statistics.data.gov.uk/id/local-authority/38,Oxfordshire County Council,Balance Sheet Workflow,MIS Payroll Workflow,Balance Sheet General,B7103,Teachers AVC,05/01/2011,3301177066,59657.82,Prudential Assurance
http://statistics.data.gov.uk/id/local-authority/38,Oxfordshire County Council,SCS Pooled Budgets,PD North Supporting People,Other Agency and Contracted Services,57300,Home Support (Ext) OS&HCD,05/01/2011,3301177090,694.74,Charterville Care At Home
http://statistics.data.gov.uk/id/local-authority/38,Oxfordshire County Council,SCS Pooled Budgets,PD Comm Supp Budget - Banbury,Other Agency and Contracted Services,57300,Home Support (Ext) OS&HCD,05/01/2011,3301177091,1047.76,Charterville Care At Home
http://statistics.data.gov.uk/id/local-authority/38,Oxfordshire County Council,SCS Pooled Budgets,OP Pool Continuing Care Medication Only,Other Agency and Contracted Services,57306,Home Support (Ext) Medication Only,05/01/2011,3301177093,909.7,Day & Night Care Assistance
http://statistics.data.gov.uk/id/local-authority/38,Oxfordshire County Council,SCS Pooled Budgets,End of Life Care Older People,Other Agency and Contracted Services,57304,Home Support (Ext) Palliative Care,05/01/2011,3301177095,560.63,Day & Night Care Assistance
http://statistics.data.gov.uk/id/local-authority/38,Oxfordshire County Council,SCS Pooled Budgets,OP Pool Continuing Care Medication Only,Other Agency and Contracted Services,57306,Home Support (Ext) Medication Only,05/01/2011,3301177096,1435.79,Greigcare Home Service
http://statistics.data.gov.uk/id/local-authority/38,Oxfordshire County Council,Social & Community Services,Dementia Advisers,Other Agency and Contracted Services,57300,Home Support (Ext) OS&HCD,05/01/2011,3301177098,2022.83,Oxfordshire Crossroads
http://statistics.data.gov.uk/id/local-authority/38,Oxfordshire County Council,Social & Community Services,Stroke Grant,Other Agency and Contracted Services,57300,Home Support (Ext) OS&HCD,05/01/2011,3301177099,1003.51,Oxfordshire Crossroads
http://statistics.data.gov.uk/id/local-authority/38,Oxfordshire County Council,SCS Pooled Budgets,OP Pool Continuing Care Medication Only,Other Agency and Contracted Services,57306,Home Support (Ext) Medication Only,05/01/2011,3301177100,2475.01,Oxford Private Care
http://statistics.data.gov.uk/id/local-authority/38,Oxfordshire County Council,SCS Pooled Budgets,OP Pool Continuing Care Medication Only,Other Agency and Contracted Services,57306,Home Support (Ext) Medication Only,05/01/2011,3301177103,1296.53,HOME HELPERS CARE LTD
http://statistics.data.gov.uk/id/local-authority/38,Oxfordshire County Council,SCS Pooled Budgets,PD Comm Supp Budgt - Bicester/Kidlington,Other Agency and Contracted Services,57401,Direct Payments,05/01/2011,3301177148,738.12,REDACTED PERSONAL DATA
http://statistics.data.gov.uk/id/local-authority/38,Oxfordshire County Council,Social & Community Services,Residential Purchasing Carers Grant,Other Agency and Contracted Services,57401,Direct Payments,05/01/2011,3301177179,750,REDACTED PERSONAL DATA
http://statistics.data.gov.uk/id/local-authority/38,Oxfordshire County Council,Social & Community Services,Residential Purchasing Carers Grant,Other Agency and Contracted Services,57401,Direct Payments,05/01/2011,3301177276,600,REDACTED PERSONAL DATA
http://statistics.data.gov.uk/id/local-authority/38,Oxfordshire County Council,"Commissioning, Performance & Quality Ass",Meadowbrook Transprt,Contract Hire/Leasing,33101,Home to School Trans,06/01/2011,3301177490,518,SJB Cars
http://statistics.data.gov.uk/id/local-authority/38,Oxfordshire County Council,"Commissioning, Performance & Quality Ass",Meadowbrook Transprt,Contract Hire/Leasing,33101,Home to School Trans,06/01/2011,3301177491,639,SJB Cars
http://statistics.data.gov.uk/id/local-authority/38,Oxfordshire County Council,"Commissioning, Performance & Quality Ass",FE Special Trans,Contract Hire/Leasing,33101,Home to School Trans,06/01/2011,3301177495,1638,Excel Cars
http://statistics.data.gov.uk/id/local-authority/38,Oxfordshire County Council,"Commissioning, Performance & Quality Ass",FE Special Trans,Contract Hire/Leasing,33101,Home to School Trans,06/01/2011,3301177498,1534.84,Excel Cars
http://statistics.data.gov.uk/id/local-authority/38,Oxfordshire County Council,"Commissioning, Performance & Quality Ass",Oxford Nth SEN Trans,Contract Hire/Leasing,33101,Home to School Trans,06/01/2011,3301177500,2205.06,Excel Cars
http://statistics.data.gov.uk/id/local-authority/38,Oxfordshire County Council,"Commissioning, Performance & Quality Ass",Oxford Nth SEN Trans,Contract Hire/Leasing,33300,Transport (General),06/01/2011,3301177501,483.99,Excel Cars
http://statistics.data.gov.uk/id/local-authority/38,Oxfordshire County Council,"Commissioning, Performance & Quality Ass",Witney SEN Trans,Contract Hire/Leasing,33101,Home to School Trans,06/01/2011,3301177502,910,Excel Cars
http://statistics.data.gov.uk/id/local-authority/38,Oxfordshire County Council,"Commissioning, Performance & Quality Ass",Witney SEN Trans,Contract Hire/Leasing,33101,Home to School Trans,06/01/2011,3301177504,780,Excel Cars
http://statistics.data.gov.uk/id/local-authority/38,Oxfordshire County Council,"Commissioning, Performance & Quality Ass",Witney SEN Trans,Contract Hire/Leasing,33101,Home to School Trans,06/01/2011,3301177506,845,Excel Cars
http://statistics.data.gov.uk/id/local-authority/38,Oxfordshire County Council,"Commissioning, Performance & Quality Ass",Witney SEN Trans,Contract Hire/Leasing,33101,Home to School Trans,06/01/2011,3301177508,1222,Excel Cars
http://statistics.data.gov.uk/id/local-authority/38,Oxfordshire County Council,"Commissioning, Performance & Quality Ass",Witney SEN Trans,Contract Hire/Leasing,33101,Home to School Trans,06/01/2011,3301177510,884,Excel Cars
http://statistics.data.gov.uk/id/local-authority/38,Oxfordshire County Council,"Commissioning, Performance & Quality Ass",Witney SEN Trans,Contract Hire/Leasing,33101,Home to School Trans,06/01/2011,3301177512,975,Excel Cars
http://statistics.data.gov.uk/id/local-authority/38,Oxfordshire County Council,"Commissioning, Performance & Quality Ass",Witney SEN Trans,Contract Hire/Leasing,33101,Home to School Trans,06/01/2011,3301177514,442,Excel Cars
http://statistics.data.gov.uk/id/local-authority/38,Oxfordshire County Council,"Commissioning, Performance & Quality Ass",Zone 2 - East,Contract Hire/Leasing,33101,Home to School Trans,06/01/2011,3301177517,1040,Excel Cars
http://statistics.data.gov.uk/id/local-authority/38,Oxfordshire County Council,"Commissioning, Performance & Quality Ass",Zone 1 - North,Contract Hire/Leasing,33101,Home to School Trans,06/01/2011,3301177524,1971.19,Bakers Commercial Services Ltd
http://statistics.data.gov.uk/id/local-authority/38,Oxfordshire County Council,"Commissioning, Performance & Quality Ass",Zone 3 - West,Contract Hire/Leasing,33101,Home to School Trans,06/01/2011,3301177525,4787.51,Bakers Commercial Services Ltd
http://statistics.data.gov.uk/id/local-authority/38,Oxfordshire County Council,"Commissioning, Performance & Quality Ass",Zone 1 - North,Contract Hire/Leasing,33101,Home to School Trans,06/01/2011,3301177526,2878.07,Jeffs Coaches Limited
http://statistics.data.gov.uk/id/local-authority/38,Oxfordshire County Council,"Commissioning, Performance & Quality Ass",Zone 1 - North,Contract Hire/Leasing,33101,Home to School Trans,06/01/2011,3301177527,3140.93,Jeffs Coaches Limited
http://statistics.data.gov.uk/id/local-authority/38,Oxfordshire County Council,"Commissioning, Performance & Quality Ass",Zone 1 - North,Contract Hire/Leasing,33101,Home to School Trans,06/01/2011,3301177528,3140.93,Jeffs Coaches Limited
http://statistics.data.gov.uk/id/local-authority/38,Oxfordshire County Council,"Commissioning, Performance & Quality Ass",Zone 1 - North,Contract Hire/Leasing,33101,Home to School Trans,06/01/2011,3301177529,4199.52,Jeffs Coaches Limited
http://statistics.data.gov.uk/id/local-authority/38,Oxfordshire County Council,"Commissioning, Performance & Quality Ass",Zone 1 - North,Contract Hire/Leasing,33101,Home to School Trans,06/01/2011,3301177530,2496.91,Jeffs Coaches Limited
http://statistics.data.gov.uk/id/local-authority/38,Oxfordshire County Council,"Commissioning, Performance & Quality Ass",Mainstream Misc,Public Transport,34101,Pupils Season Ticket,06/01/2011,3301177531,3762,Jeffs Coaches Limited
http://statistics.data.gov.uk/id/local-authority/38,Oxfordshire County Council,"Commissioning, Performance & Quality Ass",S'Common SEN Trans,Contract Hire/Leasing,33101,Home to School Trans,06/01/2011,3301177533,2589.26,Hills Taxis
http://statistics.data.gov.uk/id/local-authority/38,Oxfordshire County Council,"Commissioning, Performance & Quality Ass",S'Common SEN Trans,Contract Hire/Leasing,33101,Home to School Trans,06/01/2011,3301177534,800,Hills Taxis
http://statistics.data.gov.uk/id/local-authority/38,Oxfordshire County Council,"Commissioning, Performance & Quality Ass",FE Special Trans,Contract Hire/Leasing,33101,Home to School Trans,06/01/2011,3301177535,754.74,Courtesy Cars
http://statistics.data.gov.uk/id/local-authority/38,Oxfordshire County Council,"Commissioning, Performance & Quality Ass",Meadowbrook Transprt,Contract Hire/Leasing,33101,Home to School Trans,06/01/2011,3301177537,3473,Courtesy Cars
http://statistics.data.gov.uk/id/local-authority/38,Oxfordshire County Council,"Commissioning, Performance & Quality Ass",Meadowbrook Transprt,Contract Hire/Leasing,33101,Home to School Trans,06/01/2011,3301177538,1464,Courtesy Cars
http://statistics.data.gov.uk/id/local-authority/38,Oxfordshire County Council,"Commissioning, Performance & Quality Ass",Meadowbrook Transprt,Contract Hire/Leasing,33101,Home to School Trans,06/01/2011,3301177539,1540,Courtesy Cars
http://statistics.data.gov.uk/id/local-authority/38,Oxfordshire County Council,"Commissioning, Performance & Quality Ass",Oxford Nth SEN Trans,Contract Hire/Leasing,33101,Home to School Trans,06/01/2011,3301177540,1650,Courtesy Cars
http://statistics.data.gov.uk/id/local-authority/38,Oxfordshire County Council,"Commissioning, Performance & Quality Ass",Meadowbrook Transprt,Contract Hire/Leasing,33101,Home to School Trans,06/01/2011,3301177541,1170,Courtesy Cars
http://statistics.data.gov.uk/id/local-authority/38,Oxfordshire County Council,"Commissioning, Performance & Quality Ass",Oxford Nth SEN Trans,Contract Hire/Leasing,33101,Home to School Trans,06/01/2011,3301177542,1056,Courtesy Cars
http://statistics.data.gov.uk/id/local-authority/38,Oxfordshire County Council,"Commissioning, Performance & Quality Ass",FE Special Trans,Contract Hire/Leasing,33101,Home to School Trans,06/01/2011,3301177543,880,Courtesy Cars
http://statistics.data.gov.uk/id/local-authority/38,Oxfordshire County Council,"Commissioning, Performance & Quality Ass",FE Special Trans,Contract Hire/Leasing,33101,Home to School Trans,06/01/2011,3301177544,1056,Courtesy Cars
http://statistics.data.gov.uk/id/local-authority/38,Oxfordshire County Council,"Commissioning, Performance & Quality Ass",Out of County,Contract Hire/Leasing,33101,Home to School Trans,06/01/2011,3301177545,1642.2,Buckinghamshire County Council
http://statistics.data.gov.uk/id/local-authority/38,Oxfordshire County Council,"Commissioning, Performance & Quality Ass",Oxford Sth SEN Trans,Contract Hire/Leasing,33101,Home to School Trans,06/01/2011,3301177546,715,Jackie's Services
http://statistics.data.gov.uk/id/local-authority/38,Oxfordshire County Council,"Commissioning, Performance & Quality Ass",Oxford Nth SEN Trans,Contract Hire/Leasing,33101,Home to School Trans,06/01/2011,3301177547,1427.53,001 TAXIS
http://statistics.data.gov.uk/id/local-authority/38,Oxfordshire County Council,"Commissioning, Performance & Quality Ass",Oxford Nth SEN Trans,Contract Hire/Leasing,33101,Home to School Trans,06/01/2011,3301177549,819,001 TAXIS
http://statistics.data.gov.uk/id/local-authority/38,Oxfordshire County Council,"Commissioning, Performance & Quality Ass",Oxford Nth SEN Trans,Contract Hire/Leasing,33101,Home to School Trans,06/01/2011,3301177551,726,001 TAXIS
http://statistics.data.gov.uk/id/local-authority/38,Oxfordshire County Council,"Commissioning, Performance & Quality Ass",Oxford Nth SEN Trans,Contract Hire/Leasing,33101,Home to School Trans,06/01/2011,3301177553,850,001 TAXIS
http://statistics.data.gov.uk/id/local-authority/38,Oxfordshire County Council,"Commissioning, Performance & Quality Ass",Oxford Nth SEN Trans,Contract Hire/Leasing,33101,Home to School Trans,06/01/2011,3301177555,798.75,001 TAXIS
http://statistics.data.gov.uk/id/local-authority/38,Oxfordshire County Council,"Commissioning, Performance & Quality Ass",Oxford Nth SEN Trans,Contract Hire/Leasing,33101,Home to School Trans,06/01/2011,3301177557,832,001 TAXIS
http://statistics.data.gov.uk/id/local-authority/38,Oxfordshire County Council,"Commissioning, Performance & Quality Ass",Oxford Sth SEN Trans,Contract Hire/Leasing,33101,Home to School Trans,06/01/2011,3301177560,858,001 TAXIS
http://statistics.data.gov.uk/id/local-authority/38,Oxfordshire County Council,"Commissioning, Performance & Quality Ass",Oxford Nth SEN Trans,Contract Hire/Leasing,33101,Home to School Trans,06/01/2011,3301177561,728,001 TAXIS
http://statistics.data.gov.uk/id/local-authority/38,Oxfordshire County Council,"Commissioning, Performance & Quality Ass",Oxford Nth SEN Trans,Contract Hire/Leasing,33101,Home to School Trans,06/01/2011,3301177562,683.28,001 TAXIS
http://statistics.data.gov.uk/id/local-authority/38,Oxfordshire County Council,"Commissioning, Performance & Quality Ass",Oxford Nth SEN Trans,Contract Hire/Leasing,33101,Home to School Trans,06/01/2011,3301177563,840,001 TAXIS
http://statistics.data.gov.uk/id/local-authority/38,Oxfordshire County Council,"Commissioning, Performance & Quality Ass",Oxford Nth SEN Trans,Contract Hire/Leasing,33101,Home to School Trans,06/01/2011,3301177564,1250,001 TAXIS
http://statistics.data.gov.uk/id/local-authority/38,Oxfordshire County Council,"Commissioning, Performance & Quality Ass",Oxford Sth SEN Trans,Contract Hire/Leasing,33101,Home to School Trans,06/01/2011,3301177565,1051.31,001 TAXIS
http://statistics.data.gov.uk/id/local-authority/38,Oxfordshire County Council,"Commissioning, Performance & Quality Ass",Oxford Sth SEN Trans,Contract Hire/Leasing,33101,Home to School Trans,06/01/2011,3301177567,1768,001 TAXIS
http://statistics.data.gov.uk/id/local-authority/38,Oxfordshire County Council,"Commissioning, Performance & Quality Ass",Oxford Sth SEN Trans,Contract Hire/Leasing,33101,Home to School Trans,06/01/2011,3301177569,520,001 TAXIS
http://statistics.data.gov.uk/id/local-authority/38,Oxfordshire County Council,"Commissioning, Performance & Quality Ass",Zone 3 - West,Contract Hire/Leasing,33101,Home to School Trans,06/01/2011,3301177570,721.47,001 TAXIS
http://statistics.data.gov.uk/id/local-authority/38,Oxfordshire County Council,"Commissioning, Performance & Quality Ass",Oxford Nth SEN Trans,Contract Hire/Leasing,33101,Home to School Trans,06/01/2011,3301177574,702,001 TAXIS
http://statistics.data.gov.uk/id/local-authority/38,Oxfordshire County Council,Social & Community Services,Generic Services,Balance Sheet General,B2040,ABACUS Accounts Payable Control A/c,06/01/2011,3301177977,11012.96,Kingfisher HVHS Housing Association
http://statistics.data.gov.uk/id/local-authority/38,Oxfordshire County Council,Social & Community Services,Generic Services,Balance Sheet General,B2040,ABACUS Accounts Payable Control A/c,06/01/2011,3301177978,49031.2,Banbury Homes Housing Assc
http://statistics.data.gov.uk/id/local-authority/38,Oxfordshire County Council,Social & Community Services,Generic Services,Balance Sheet General,B2040,ABACUS Accounts Payable Control A/c,06/01/2011,3301177979,53462.66,VALE HOUSING ASSOCIATION
http://statistics.data.gov.uk/id/local-authority/38,Oxfordshire County Council,Social & Community Services,Generic Services,Balance Sheet General,B2040,ABACUS Accounts Payable Control A/c,06/01/2011,3301177980,58943.35,OXFORDSHIRE GROUP HOMES
http://statistics.data.gov.uk/id/local-authority/38,Oxfordshire County Council,Social & Community Services,Generic Services,Balance Sheet General,B2040,ABACUS Accounts Payable Control A/c,06/01/2011,3301177981,568.92,ABILITY HOUSING ASSOCIATION
http://statistics.data.gov.uk/id/local-authority/38,Oxfordshire County Council,Social & Community Services,Generic Services,Balance Sheet General,B2040,ABACUS Accounts Payable Control A/c,06/01/2011,3301177982,29215.26,Oxfordshire Mind Housing
http://statistics.data.gov.uk/id/local-authority/38,Oxfordshire County Council,Social & Community Services,Generic Services,Balance Sheet General,B2040,ABACUS Accounts Payable Control A/c,06/01/2011,3301177983,9398.4,Bromford Carinthia Housing Group
http://statistics.data.gov.uk/id/local-authority/38,Oxfordshire County Council,Social & Community Services,Generic Services,Balance Sheet General,B2040,ABACUS Accounts Payable Control A/c,06/01/2011,3301177984,5494.84,OXFORD CITY COUNCIL
http://statistics.data.gov.uk/id/local-authority/38,Oxfordshire County Council,Social & Community Services,Generic Services,Balance Sheet General,B2040,ABACUS Accounts Payable Control A/c,06/01/2011,3301177985,196315.7,Community Voice Limited
http://statistics.data.gov.uk/id/local-authority/38,Oxfordshire County Council,Social & Community Services,Generic Services,Balance Sheet General,B2040,ABACUS Accounts Payable Control A/c,06/01/2011,3301178063,510.57,JEPHSON HOMES HOUSING
http://statistics.data.gov.uk/id/local-authority/38,Oxfordshire County Council,Scheduled Bodies,Oxfordshire County Council,Contributions Leaving the Fund,PR401,Transfers out,07/01/2011,3301178312,2984.33,West Yorkshire Pension Fund
http://statistics.data.gov.uk/id/local-authority/38,Oxfordshire County Council,SCS Pooled Budgets,CSDP Sensory Impairment Team,Other Agency and Contracted Services,57401,Direct Payments,06/01/2011,3301178389,600,REDACTED PERSONAL DATA
http://statistics.data.gov.uk/id/local-authority/38,Oxfordshire County Council,Scheduled Bodies,Oxfordshire County Council,Contributions Leaving the Fund,PR401,Transfers out,07/01/2011,3301178861,54010.63,MC Trustees (Pensions) Ltd
http://statistics.data.gov.uk/id/local-authority/38,Oxfordshire County Council,SCS Pooled Budgets,Community Support Budget - County Carers,Other Agency and Contracted Services,57401,Direct Payments,07/01/2011,3301178925,500,REDACTED PERSONAL DATA
http://statistics.data.gov.uk/id/local-authority/38,Oxfordshire County Council,SCS Pooled Budgets,Carers Break / Respite Project,Other Agency and Contracted Services,57401,Direct Payments,07/01/2011,3301178926,750,REDACTED PERSONAL DATA
http://statistics.data.gov.uk/id/local-authority/38,Oxfordshire County Council,SCS Pooled Budgets,Carers Break / Respite Project,Other Agency and Contracted Services,57401,Direct Payments,07/01/2011,3301178928,750,REDACTED PERSONAL DATA
http://statistics.data.gov.uk/id/local-authority/38,Oxfordshire County Council,SCS Pooled Budgets,Direct Payments North Team,Other Agency and Contracted Services,57401,Direct Payments,07/01/2011,3301178929,1660,REDACTED PERSONAL DATA
http://statistics.data.gov.uk/id/local-authority/38,Oxfordshire County Council,Scheduled Bodies,Oxfordshire County Council,Transfer Values Received,PR101,Transfer Values Received,10/01/2011,3301179021,3358.61,Prudential Assurance Co. Ltd
http://statistics.data.gov.uk/id/local-authority/38,Oxfordshire County Council,Admitted Bodies,Order of St John's Care Trust,Contributions Leaving the Fund,PR401,Transfers out,10/01/2011,3301179110,34991.58,Scottish Life - division of Royal L
http://statistics.data.gov.uk/id/local-authority/38,Oxfordshire County Council,"Commissioning, Performance & Quality Ass",FE Special Trans,Contract Hire/Leasing,33101,Home to School Trans,10/01/2011,3301179867,1360,Oxon Transport Services Limited t/a
http://statistics.data.gov.uk/id/local-authority/38,Oxfordshire County Council,"Commissioning, Performance & Quality Ass",Abingdon SEN Trans,Contract Hire/Leasing,33101,Home to School Trans,10/01/2011,3301179869,924,Oxon Transport Services Limited t/a
http://statistics.data.gov.uk/id/local-authority/38,Oxfordshire County Council,"Commissioning, Performance & Quality Ass",Zone 2 - East,Contract Hire/Leasing,33101,Home to School Trans,10/01/2011,3301179870,848,Oxon Transport Services Limited t/a
http://statistics.data.gov.uk/id/local-authority/38,Oxfordshire County Council,"Commissioning, Performance & Quality Ass",Zone 2 - East,Contract Hire/Leasing,33101,Home to School Trans,10/01/2011,3301179871,888,Oxon Transport Services Limited t/a
http://statistics.data.gov.uk/id/local-authority/38,Oxfordshire County Council,"Commissioning, Performance & Quality Ass",Zone 4 - Vale,Contract Hire/Leasing,33101,Home to School Trans,10/01/2011,3301179872,968,Oxon Transport Services Limited t/a
http://statistics.data.gov.uk/id/local-authority/38,Oxfordshire County Council,"Commissioning, Performance & Quality Ass",Zone 2 - East,Contract Hire/Leasing,33101,Home to School Trans,10/01/2011,3301179875,1050,Oxon Transport Services Limited t/a
http://statistics.data.gov.uk/id/local-authority/38,Oxfordshire County Council,"Commissioning, Performance & Quality Ass",Zone 5 - South,Contract Hire/Leasing,33101,Home to School Trans,10/01/2011,3301179881,734.36,Oxon Transport Services Limited t/a
http://statistics.data.gov.uk/id/local-authority/38,Oxfordshire County Council,"Commissioning, Performance & Quality Ass",Zone 2 - East,Contract Hire/Leasing,33101,Home to School Trans,10/01/2011,3301179882,792,Oxon Transport Services Limited t/a
http://statistics.data.gov.uk/id/local-authority/38,Oxfordshire County Council,"Commissioning, Performance & Quality Ass",Zone 2 - East,Contract Hire/Leasing,33101,Home to School Trans,10/01/2011,3301179883,1408,Oxon Transport Services Limited t/a
http://statistics.data.gov.uk/id/local-authority/38,Oxfordshire County Council,"Commissioning, Performance & Quality Ass",Oxford Sth SEN Trans,Contract Hire/Leasing,33101,Home to School Trans,10/01/2011,3301179884,1210,Oxon Transport Services Limited t/a
http://statistics.data.gov.uk/id/local-authority/38,Oxfordshire County Council,"Commissioning, Performance & Quality Ass",Oxford Nth SEN Trans,Contract Hire/Leasing,33101,Home to School Trans,10/01/2011,3301179885,1316.19,Oxon Transport Services Limited t/a
http://statistics.data.gov.uk/id/local-authority/38,Oxfordshire County Council,"Commissioning, Performance & Quality Ass",Oxford Sth SEN Trans,Contract Hire/Leasing,33101,Home to School Trans,10/01/2011,3301179887,689,Oxon Transport Services Limited t/a
http://statistics.data.gov.uk/id/local-authority/38,Oxfordshire County Council,"Commissioning, Performance & Quality Ass",Zone 2 - East,Contract Hire/Leasing,33101,Home to School Trans,10/01/2011,3301179888,1320,Oxon Transport Services Limited t/a
http://statistics.data.gov.uk/id/local-authority/38,Oxfordshire County Council,"Commissioning, Performance & Quality Ass",Oxford Nth SEN Trans,Contract Hire/Leasing,33101,Home to School Trans,10/01/2011,3301179889,1328.08,Oxon Transport Services Limited t/a
http://statistics.data.gov.uk/id/local-authority/38,Oxfordshire County Council,"Commissioning, Performance & Quality Ass",Oxford Sth SEN Trans,Contract Hire/Leasing,33101,Home to School Trans,10/01/2011,3301179891,1016.4,Oxon Transport Services Limited t/a
http://statistics.data.gov.uk/id/local-authority/38,Oxfordshire County Council,"Commissioning, Performance & Quality Ass",Zone 2 - East,Contract Hire/Leasing,33101,Home to School Trans,10/01/2011,3301179892,528,Oxon Transport Services Limited t/a
http://statistics.data.gov.uk/id/local-authority/38,Oxfordshire County Council,"Commissioning, Performance & Quality Ass",Oxford Sth SEN Trans,Contract Hire/Leasing,33101,Home to School Trans,10/01/2011,3301179894,1147.57,Oxon Transport Services Limited t/a
http://statistics.data.gov.uk/id/local-authority/38,Oxfordshire County Council,"Commissioning, Performance & Quality Ass",Oxford Sth SEN Trans,Contract Hire/Leasing,33300,Transport (General),10/01/2011,3301179895,889.59,Oxon Transport Services Limited t/a
http://statistics.data.gov.uk/id/local-authority/38,Oxfordshire County Council,"Commissioning, Performance & Quality Ass",Zone 4 - Vale,Contract Hire/Leasing,33101,Home to School Trans,10/01/2011,3301179897,1584,Oxon Transport Services Limited t/a
http://statistics.data.gov.uk/id/local-authority/38,Oxfordshire County Council,"Commissioning, Performance & Quality Ass",Zone 2 - East,Contract Hire/Leasing,33101,Home to School Trans,10/01/2011,3301179898,528,Oxon Transport Services Limited t/a
http://statistics.data.gov.uk/id/local-authority/38,Oxfordshire County Council,"Commissioning, Performance & Quality Ass",Oxford Nth SEN Trans,Contract Hire/Leasing,33101,Home to School Trans,10/01/2011,3301179899,1170,Oxon Transport Services Limited t/a
http://statistics.data.gov.uk/id/local-authority/38,Oxfordshire County Council,"Commissioning, Performance & Quality Ass",Meadowbrook Transprt,Contract Hire/Leasing,33101,Home to School Trans,10/01/2011,3301179900,1360,Oxon Transport Services Limited t/a
http://statistics.data.gov.uk/id/local-authority/38,Oxfordshire County Council,"Commissioning, Performance & Quality Ass",Meadowbrook Transprt,Contract Hire/Leasing,33101,Home to School Trans,10/01/2011,3301179902,1088,Oxon Transport Services Limited t/a
http://statistics.data.gov.uk/id/local-authority/38,Oxfordshire County Council,"Commissioning, Performance & Quality Ass",Zone 2 - East,Contract Hire/Leasing,33101,Home to School Trans,10/01/2011,3301179903,704,Oxon Transport Services Limited t/a
http://statistics.data.gov.uk/id/local-authority/38,Oxfordshire County Council,"Commissioning, Performance & Quality Ass",Zone 2 - East,Contract Hire/Leasing,33101,Home to School Trans,10/01/2011,3301179904,1512,Oxon Transport Services Limited t/a
http://statistics.data.gov.uk/id/local-authority/38,Oxfordshire County Council,"Commissioning, Performance & Quality Ass",Zone 2 - East,Contract Hire/Leasing,33101,Home to School Trans,10/01/2011,3301179905,1050,Oxon Transport Services Limited t/a
http://statistics.data.gov.uk/id/local-authority/38,Oxfordshire County Council,"Commissioning, Performance & Quality Ass",Zone 2 - East,Contract Hire/Leasing,33101,Home to School Trans,10/01/2011,3301179908,616,Oxon Transport Services Limited t/a
http://statistics.data.gov.uk/id/local-authority/38,Oxfordshire County Council,"Commissioning, Performance & Quality Ass",Zone 2 - East,Contract Hire/Leasing,33101,Home to School Trans,10/01/2011,3301179909,748,Oxon Transport Services Limited t/a
http://statistics.data.gov.uk/id/local-authority/38,Oxfordshire County Council,"Commissioning, Performance & Quality Ass",Oxford Sth SEN Trans,Contract Hire/Leasing,33101,Home to School Trans,10/01/2011,3301179914,990,Oxon Transport Services Limited t/a
http://statistics.data.gov.uk/id/local-authority/38,Oxfordshire County Council,"Commissioning, Performance & Quality Ass",Oxford Sth SEN Trans,Contract Hire/Leasing,33101,Home to School Trans,10/01/2011,3301179917,810,Oxon Transport Services Limited t/a
http://statistics.data.gov.uk/id/local-authority/38,Oxfordshire County Council,"Commissioning, Performance & Quality Ass",Meadowbrook Transprt,Contract Hire/Leasing,33101,Home to School Trans,10/01/2011,3301179919,1122,Oxon Transport Services Limited t/a
http://statistics.data.gov.uk/id/local-authority/38,Oxfordshire County Council,"Commissioning, Performance & Quality Ass",Abingdon SEN Trans,Contract Hire/Leasing,33101,Home to School Trans,10/01/2011,3301179920,876.33,Abingdon Taxis
http://statistics.data.gov.uk/id/local-authority/38,Oxfordshire County Council,"Commissioning, Performance & Quality Ass",Oxford Sth SEN Trans,Contract Hire/Leasing,33101,Home to School Trans,10/01/2011,3301179923,1182.74,001 TAXIS
http://statistics.data.gov.uk/id/local-authority/38,Oxfordshire County Council,"Commissioning, Performance & Quality Ass",Zone 2 - East,Contract Hire/Leasing,33101,Home to School Trans,10/01/2011,3301179924,1131,Charlton-On-Otmoor Services
http://statistics.data.gov.uk/id/local-authority/38,Oxfordshire County Council,"Commissioning, Performance & Quality Ass",Zone 3 - West,Contract Hire/Leasing,33101,Home to School Trans,10/01/2011,3301179925,2147.73,Charlton-On-Otmoor Services
http://statistics.data.gov.uk/id/local-authority/38,Oxfordshire County Council,"Commissioning, Performance & Quality Ass",Zone 2 - East,Contract Hire/Leasing,33101,Home to School Trans,10/01/2011,3301179926,1807,Charlton-On-Otmoor Services
http://statistics.data.gov.uk/id/local-authority/38,Oxfordshire County Council,"Commissioning, Performance & Quality Ass",Zone 2 - East,Contract Hire/Leasing,33101,Home to School Trans,10/01/2011,3301179927,1781,Charlton-On-Otmoor Services
http://statistics.data.gov.uk/id/local-authority/38,Oxfordshire County Council,"Commissioning, Performance & Quality Ass",Zone 5 - South,Contract Hire/Leasing,33101,Home to School Trans,10/01/2011,3301179928,1850.28,Charlton-On-Otmoor Services
http://statistics.data.gov.uk/id/local-authority/38,Oxfordshire County Council,"Commissioning, Performance & Quality Ass",Zone 5 - South,Contract Hire/Leasing,33101,Home to School Trans,10/01/2011,3301179929,1681.55,Charlton-On-Otmoor Services
http://statistics.data.gov.uk/id/local-authority/38,Oxfordshire County Council,"Commissioning, Performance & Quality Ass",Zone 5 - South,Contract Hire/Leasing,33101,Home to School Trans,10/01/2011,3301179930,1681.55,Charlton-On-Otmoor Services
http://statistics.data.gov.uk/id/local-authority/38,Oxfordshire County Council,"Commissioning, Performance & Quality Ass",Zone 5 - South,Contract Hire/Leasing,33101,Home to School Trans,10/01/2011,3301179931,2004.47,Charlton-On-Otmoor Services
http://statistics.data.gov.uk/id/local-authority/38,Oxfordshire County Council,"Commissioning, Performance & Quality Ass",Zone 5 - South,Contract Hire/Leasing,33101,Home to School Trans,10/01/2011,3301179932,2075.97,Charlton-On-Otmoor Services
http://statistics.data.gov.uk/id/local-authority/38,Oxfordshire County Council,"Commissioning, Performance & Quality Ass",Zone 2 - East,Contract Hire/Leasing,33101,Home to School Trans,10/01/2011,3301179933,1612,Charlton-On-Otmoor Services
http://statistics.data.gov.uk/id/local-authority/38,Oxfordshire County Council,"Commissioning, Performance & Quality Ass",Zone 2 - East,Contract Hire/Leasing,33101,Home to School Trans,10/01/2011,3301179934,1612,Charlton-On-Otmoor Services
http://statistics.data.gov.uk/id/local-authority/38,Oxfordshire County Council,"Commissioning, Performance & Quality Ass",Zone 2 - East,Contract Hire/Leasing,33101,Home to School Trans,10/01/2011,3301179935,1170,Charlton-On-Otmoor Services
http://statistics.data.gov.uk/id/local-authority/38,Oxfordshire County Council,"Commissioning, Performance & Quality Ass",Bicester SEN Trans,Contract Hire/Leasing,33101,Home to School Trans,10/01/2011,3301179936,1755,Luxicars Ltd
http://statistics.data.gov.uk/id/local-authority/38,Oxfordshire County Council,"Commissioning, Performance & Quality Ass",Bicester SEN Trans,Contract Hire/Leasing,33101,Home to School Trans,10/01/2011,3301179938,1625,Luxicars Ltd
http://statistics.data.gov.uk/id/local-authority/38,Oxfordshire County Council,"Commissioning, Performance & Quality Ass",Bicester SEN Trans,Contract Hire/Leasing,33101,Home to School Trans,10/01/2011,3301179940,1755,Luxicars Ltd
http://statistics.data.gov.uk/id/local-authority/38,Oxfordshire County Council,"Commissioning, Performance & Quality Ass",Bicester SEN Trans,Contract Hire/Leasing,33101,Home to School Trans,10/01/2011,3301179942,715,Luxicars Ltd
http://statistics.data.gov.uk/id/local-authority/38,Oxfordshire County Council,"Commissioning, Performance & Quality Ass",Bicester SEN Trans,Contract Hire/Leasing,33101,Home to School Trans,10/01/2011,3301179944,1755,Luxicars Ltd
http://statistics.data.gov.uk/id/local-authority/38,Oxfordshire County Council,"Commissioning, Performance & Quality Ass",Abingdon SEN Trans,Contract Hire/Leasing,33101,Home to School Trans,10/01/2011,3301179946,1560,Luxicars Ltd
http://statistics.data.gov.uk/id/local-authority/38,Oxfordshire County Council,"Commissioning, Performance & Quality Ass",Abingdon SEN Trans,Contract Hire/Leasing,33101,Home to School Trans,10/01/2011,3301179948,1690,Luxicars Ltd
http://statistics.data.gov.uk/id/local-authority/38,Oxfordshire County Council,"Commissioning, Performance & Quality Ass",Oxford Nth SEN Trans,Contract Hire/Leasing,33101,Home to School Trans,10/01/2011,3301179950,1627.34,Luxicars Ltd
http://statistics.data.gov.uk/id/local-authority/38,Oxfordshire County Council,"Commissioning, Performance & Quality Ass",Oxford Sth SEN Trans,Contract Hire/Leasing,33101,Home to School Trans,10/01/2011,3301179952,1491.75,Luxicars Ltd
http://statistics.data.gov.uk/id/local-authority/38,Oxfordshire County Council,"Commissioning, Performance & Quality Ass",Oxford Nth SEN Trans,Contract Hire/Leasing,33101,Home to School Trans,10/01/2011,3301179954,1559.48,Luxicars Ltd
http://statistics.data.gov.uk/id/local-authority/38,Oxfordshire County Council,"Commissioning, Performance & Quality Ass",Oxford Nth SEN Trans,Contract Hire/Leasing,33101,Home to School Trans,10/01/2011,3301179956,1820,Luxicars Ltd
http://statistics.data.gov.uk/id/local-authority/38,Oxfordshire County Council,"Commissioning, Performance & Quality Ass",Oxford Nth SEN Trans,Contract Hire/Leasing,33101,Home to School Trans,10/01/2011,3301179958,1220.44,Luxicars Ltd
http://statistics.data.gov.uk/id/local-authority/38,Oxfordshire County Council,"Commissioning, Performance & Quality Ass",Oxford Sth SEN Trans,Contract Hire/Leasing,33101,Home to School Trans,10/01/2011,3301179960,1955.85,Luxicars Ltd
http://statistics.data.gov.uk/id/local-authority/38,Oxfordshire County Council,"Commissioning, Performance & Quality Ass",Wantage SEN Trans,Contract Hire/Leasing,33101,Home to School Trans,10/01/2011,3301179962,1675.57,Luxicars Ltd
http://statistics.data.gov.uk/id/local-authority/38,Oxfordshire County Council,"Commissioning, Performance & Quality Ass",FE Special Trans,Contract Hire/Leasing,33101,Home to School Trans,10/01/2011,3301179963,2080,Luxicars Ltd
http://statistics.data.gov.uk/id/local-authority/38,Oxfordshire County Council,"Commissioning, Performance & Quality Ass",Witney SEN Trans,Contract Hire/Leasing,33101,Home to School Trans,10/01/2011,3301179965,1105,Luxicars Ltd
http://statistics.data.gov.uk/id/local-authority/38,Oxfordshire County Council,"Commissioning, Performance & Quality Ass",Witney SEN Trans,Contract Hire/Leasing,33101,Home to School Trans,10/01/2011,3301179967,1513.2,Luxicars Ltd
http://statistics.data.gov.uk/id/local-authority/38,Oxfordshire County Council,SCS Pooled Budgets,LD CMPB - South Transport,Public Transport,34200,Client Journeys,10/01/2011,3301179969,1000,Luxicars Ltd
http://statistics.data.gov.uk/id/local-authority/38,Oxfordshire County Council,"Commissioning, Performance & Quality Ass",Zone 2 - East,Contract Hire/Leasing,33101,Home to School Trans,10/01/2011,3301179970,1040,Luxicars Ltd
http://statistics.data.gov.uk/id/local-authority/38,Oxfordshire County Council,"Commissioning, Performance & Quality Ass",Zone 2 - East,Contract Hire/Leasing,33101,Home to School Trans,10/01/2011,3301179971,1300,Luxicars Ltd
http://statistics.data.gov.uk/id/local-authority/38,Oxfordshire County Council,"Commissioning, Performance & Quality Ass",Mainstream Misc,Contract Hire/Leasing,33101,Home to School Trans,10/01/2011,3301179972,1560,Luxicars Ltd
http://statistics.data.gov.uk/id/local-authority/38,Oxfordshire County Council,"Commissioning, Performance & Quality Ass",Zone 2 - East,Contract Hire/Leasing,33101,Home to School Trans,10/01/2011,3301179973,780,Luxicars Ltd
http://statistics.data.gov.uk/id/local-authority/38,Oxfordshire County Council,"Commissioning, Performance & Quality Ass",Wantage SEN Trans,Contract Hire/Leasing,33101,Home to School Trans,10/01/2011,3301179974,1281.25,Grove Taxis
http://statistics.data.gov.uk/id/local-authority/38,Oxfordshire County Council,"Commissioning, Performance & Quality Ass",Zone 5 - South,Contract Hire/Leasing,33101,Home to School Trans,10/01/2011,3301179975,2616.84,Carousel Buses Limited
http://statistics.data.gov.uk/id/local-authority/38,Oxfordshire County Council,"Commissioning, Performance & Quality Ass",Zone 5 - South,Contract Hire/Leasing,33101,Home to School Trans,10/01/2011,3301179976,2616.84,Carousel Buses Limited
http://statistics.data.gov.uk/id/local-authority/38,Oxfordshire County Council,"Commissioning, Performance & Quality Ass",Oxford Sth SEN Trans,Contract Hire/Leasing,33101,Home to School Trans,10/01/2011,3301179977,1540,M J Cars
http://statistics.data.gov.uk/id/local-authority/38,Oxfordshire County Council,"Commissioning, Performance & Quality Ass",Banbury SEN Trans,Contract Hire/Leasing,33101,Home to School Trans,10/01/2011,3301179978,650,M J Cars
http://statistics.data.gov.uk/id/local-authority/38,Oxfordshire County Council,In-House,Miscellaneous,Pension Fund Balance Sheet,PB810,Give As You Earn,10/01/2011,3301180087,602,GAYE
http://statistics.data.gov.uk/id/local-authority/38,Oxfordshire County Council,In-House,Miscellaneous,Pension Fund Balance Sheet,PB806,Court Order Deductions,10/01/2011,3301180092,647.75,CHILD SUPPORT AGENCY
http://statistics.data.gov.uk/id/local-authority/38,Oxfordshire County Council,In-House,Miscellaneous,Pension Fund Balance Sheet,PB805,Senior Care Plan,10/01/2011,3301180110,658.35,AIG Europe (UK) Ltd
http://statistics.data.gov.uk/id/local-authority/38,Oxfordshire County Council,Social & Community Services,Residential Purchasing Carers Grant,Other Agency and Contracted Services,57401,Direct Payments,10/01/2011,3301180151,600,REDACTED PERSONAL DATA
http://statistics.data.gov.uk/id/local-authority/38,Oxfordshire County Council,SCS Pooled Budgets,PD Comm Supp Purchasg Budget - Henley,Other Agency and Contracted Services,57401,Direct Payments,12/01/2011,3301181582,1280,REDACTED PERSONAL DATA
http://statistics.data.gov.uk/id/local-authority/38,Oxfordshire County Council,SCS Pooled Budgets,Community Support Budget - City,Other Agency and Contracted Services,57401,Direct Payments,12/01/2011,3301181583,2535.4,REDACTED PERSONAL DATA
http://statistics.data.gov.uk/id/local-authority/38,Oxfordshire County Council,SCS Pooled Budgets,Community Support Budget - City,Other Agency and Contracted Services,57401,Direct Payments,12/01/2011,3301181584,2211.52,REDACTED PERSONAL DATA
http://statistics.data.gov.uk/id/local-authority/38,Oxfordshire County Council,SCS Pooled Budgets,Community Support Budget - Banbury,Other Agency and Contracted Services,57401,Direct Payments,12/01/2011,3301181587,1273.4,REDACTED PERSONAL DATA
http://statistics.data.gov.uk/id/local-authority/38,Oxfordshire County Council,SCS Pooled Budgets,PD Comm Supp Purchasg Budget - Abingdon,Other Agency and Contracted Services,57401,Direct Payments,12/01/2011,3301181588,1536.71,REDACTED PERSONAL DATA
http://statistics.data.gov.uk/id/local-authority/38,Oxfordshire County Council,SCS Pooled Budgets,PD Comm Supp Purchasg Budget - Thame,Other Agency and Contracted Services,57401,Direct Payments,12/01/2011,3301181589,844.76,REDACTED PERSONAL DATA
http://statistics.data.gov.uk/id/local-authority/38,Oxfordshire County Council,SCS Pooled Budgets,Direct Payments South Team,Other Agency and Contracted Services,57401,Direct Payments,12/01/2011,3301181590,15370.2,REDACTED PERSONAL DATA
http://statistics.data.gov.uk/id/local-authority/38,Oxfordshire County Council,SCS Pooled Budgets,PD Comm Supp Budget - Banbury,Other Agency and Contracted Services,57401,Direct Payments,12/01/2011,3301181591,1200,REDACTED PERSONAL DATA
http://statistics.data.gov.uk/id/local-authority/38,Oxfordshire County Council,SCS Pooled Budgets,PD Community Support Budget - Kidlington,Other Agency and Contracted Services,57401,Direct Payments,12/01/2011,3301181592,1903.72,REDACTED PERSONAL DATA
http://statistics.data.gov.uk/id/local-authority/38,Oxfordshire County Council,SCS Pooled Budgets,PD CS Purch Budget - Health S28a JC,Other Agency and Contracted Services,57401,Direct Payments,12/01/2011,3301181592,815.88,REDACTED PERSONAL DATA
http://statistics.data.gov.uk/id/local-authority/38,Oxfordshire County Council,SCS Pooled Budgets,Community Support Budget - Didcot,Other Agency and Contracted Services,57401,Direct Payments,12/01/2011,3301181594,727.48,REDACTED PERSONAL DATA
http://statistics.data.gov.uk/id/local-authority/38,Oxfordshire County Council,SCS Pooled Budgets,Direct Payments City Team,Other Agency and Contracted Services,57401,Direct Payments,12/01/2011,3301181595,1302,REDACTED PERSONAL DATA
http://statistics.data.gov.uk/id/local-authority/38,Oxfordshire County Council,SCS Pooled Budgets,Direct Payments South Team,Other Agency and Contracted Services,57401,Direct Payments,12/01/2011,3301181596,3842.2,REDACTED PERSONAL DATA
http://statistics.data.gov.uk/id/local-authority/38,Oxfordshire County Council,SCS Pooled Budgets,Community Support Budget - Banbury,Other Agency and Contracted Services,57401,Direct Payments,12/01/2011,3301181597,1253.48,REDACTED PERSONAL DATA
http://statistics.data.gov.uk/id/local-authority/38,Oxfordshire County Council,SCS Pooled Budgets,PD Comm Supp Purchasg Budget - Witney,Other Agency and Contracted Services,57401,Direct Payments,12/01/2011,3301181598,2789.28,REDACTED PERSONAL DATA
http://statistics.data.gov.uk/id/local-authority/38,Oxfordshire County Council,SCS Pooled Budgets,PD Comm Supp Purchasg Budget - Abingdon,Other Agency and Contracted Services,57401,Direct Payments,12/01/2011,3301181599,1457.04,REDACTED PERSONAL DATA
http://statistics.data.gov.uk/id/local-authority/38,Oxfordshire County Council,SCS Pooled Budgets,Direct Payments North Team,Other Agency and Contracted Services,57401,Direct Payments,12/01/2011,3301181600,1822.8,REDACTED PERSONAL DATA
http://statistics.data.gov.uk/id/local-authority/38,Oxfordshire County Council,SCS Pooled Budgets,Community Support Budget - Chipping Nort,Other Agency and Contracted Services,57401,Direct Payments,12/01/2011,3301181603,2069.17,REDACTED PERSONAL DATA
http://statistics.data.gov.uk/id/local-authority/38,Oxfordshire County Council,SCS Pooled Budgets,Direct Payments South Team,Other Agency and Contracted Services,57401,Direct Payments,12/01/2011,3301181604,954.68,REDACTED PERSONAL DATA
http://statistics.data.gov.uk/id/local-authority/38,Oxfordshire County Council,SCS Pooled Budgets,PD Comm Supp Purchasg Budget - City,Other Agency and Contracted Services,57401,Direct Payments,12/01/2011,3301181605,1146.02,REDACTED PERSONAL DATA
http://statistics.data.gov.uk/id/local-authority/38,Oxfordshire County Council,SCS Pooled Budgets,PD CS Purch Budget - Health S28a JC,Other Agency and Contracted Services,57401,Direct Payments,12/01/2011,3301181605,673.06,REDACTED PERSONAL DATA
http://statistics.data.gov.uk/id/local-authority/38,Oxfordshire County Council,SCS Pooled Budgets,PD Comm Supp Budget - Banbury,Other Agency and Contracted Services,57401,Direct Payments,12/01/2011,3301181606,1637.04,REDACTED PERSONAL DATA
http://statistics.data.gov.uk/id/local-authority/38,Oxfordshire County Council,SCS Pooled Budgets,PD Comm Supp Purchasg Budget - Witney,Other Agency and Contracted Services,57401,Direct Payments,12/01/2011,3301181607,700,REDACTED PERSONAL DATA
http://statistics.data.gov.uk/id/local-authority/38,Oxfordshire County Council,SCS Pooled Budgets,Community Support Budget - Didcot,Other Agency and Contracted Services,57401,Direct Payments,12/01/2011,3301181608,633.84,REDACTED PERSONAL DATA
http://statistics.data.gov.uk/id/local-authority/38,Oxfordshire County Council,SCS Pooled Budgets,Community Support Budget - Banbury,Other Agency and Contracted Services,57401,Direct Payments,12/01/2011,3301181609,1445.84,REDACTED PERSONAL DATA
http://statistics.data.gov.uk/id/local-authority/38,Oxfordshire County Council,SCS Pooled Budgets,PD CS Purch Budget - Health S28a JC,Other Agency and Contracted Services,57401,Direct Payments,12/01/2011,3301181612,960.27,REDACTED PERSONAL DATA
http://statistics.data.gov.uk/id/local-authority/38,Oxfordshire County Council,SCS Pooled Budgets,PD Comm Supp Budgt - Bicester/Kidlington,Other Agency and Contracted Services,57401,Direct Payments,12/01/2011,3301181612,1082.85,REDACTED PERSONAL DATA
http://statistics.data.gov.uk/id/local-authority/38,Oxfordshire County Council,SCS Pooled Budgets,PD Comm Supp Purchasg Budget - City,Other Agency and Contracted Services,57401,Direct Payments,12/01/2011,3301181615,993.56,REDACTED PERSONAL DATA
http://statistics.data.gov.uk/id/local-authority/38,Oxfordshire County Council,SCS Pooled Budgets,OP Pool Continuing Care Home Support,Other Agency and Contracted Services,57401,Direct Payments,12/01/2011,3301181616,4470.92,REDACTED PERSONAL DATA
http://statistics.data.gov.uk/id/local-authority/38,Oxfordshire County Council,SCS Pooled Budgets,Direct Payments North Team,Other Agency and Contracted Services,57401,Direct Payments,12/01/2011,3301181618,933.6,REDACTED PERSONAL DATA
http://statistics.data.gov.uk/id/local-authority/38,Oxfordshire County Council,SCS Pooled Budgets,PD Comm Supp Budget - Banbury,Other Agency and Contracted Services,57401,Direct Payments,12/01/2011,3301181620,2604,REDACTED PERSONAL DATA
http://statistics.data.gov.uk/id/local-authority/38,Oxfordshire County Council,SCS Pooled Budgets,Direct Payments South Team,Other Agency and Contracted Services,57401,Direct Payments,12/01/2011,3301181621,954.68,REDACTED PERSONAL DATA
http://statistics.data.gov.uk/id/local-authority/38,Oxfordshire County Council,SCS Pooled Budgets,PD Comm Supp Purchasg Budget - Witney,Other Agency and Contracted Services,57401,Direct Payments,12/01/2011,3301181622,1846.44,REDACTED PERSONAL DATA
http://statistics.data.gov.uk/id/local-authority/38,Oxfordshire County Council,SCS Pooled Budgets,Community Support Budget - Kidlington,Other Agency and Contracted Services,57401,Direct Payments,12/01/2011,3301181623,1231.48,REDACTED PERSONAL DATA
http://statistics.data.gov.uk/id/local-authority/38,Oxfordshire County Council,SCS Pooled Budgets,Community Support Budget - Kidlington,Other Agency and Contracted Services,57401,Direct Payments,12/01/2011,3301181625,2028.32,REDACTED PERSONAL DATA
http://statistics.data.gov.uk/id/local-authority/38,Oxfordshire County Council,SCS Pooled Budgets,Community Support Budget - City,Other Agency and Contracted Services,57401,Direct Payments,12/01/2011,3301181626,1079.36,REDACTED PERSONAL DATA
http://statistics.data.gov.uk/id/local-authority/38,Oxfordshire County Council,SCS Pooled Budgets,Community Support Budget - Didcot,Other Agency and Contracted Services,57401,Direct Payments,12/01/2011,3301181627,1600,REDACTED PERSONAL DATA
http://statistics.data.gov.uk/id/local-authority/38,Oxfordshire County Council,SCS Pooled Budgets,Community Support Budget - Didcot,Other Agency and Contracted Services,57401,Direct Payments,12/01/2011,3301181628,887.39,REDACTED PERSONAL DATA
http://statistics.data.gov.uk/id/local-authority/38,Oxfordshire County Council,SCS Pooled Budgets,PD CS Purch Budget - Health S28a JC,Other Agency and Contracted Services,57401,Direct Payments,12/01/2011,3301181630,1144.26,REDACTED PERSONAL DATA
http://statistics.data.gov.uk/id/local-authority/38,Oxfordshire County Council,SCS Pooled Budgets,PD Comm Supp Purchasg Budget - Witney,Other Agency and Contracted Services,57401,Direct Payments,12/01/2011,3301181630,974.74,REDACTED PERSONAL DATA
http://statistics.data.gov.uk/id/local-authority/38,Oxfordshire County Council,Social & Community Services,"LD Day Services, Service Managers",Other Agency and Contracted Services,57401,Direct Payments,12/01/2011,3301181631,1227.75,REDACTED PERSONAL DATA
http://statistics.data.gov.uk/id/local-authority/38,Oxfordshire County Council,SCS Pooled Budgets,Direct Payments North Team,Other Agency and Contracted Services,57401,Direct Payments,12/01/2011,3301181631,5379.46,REDACTED PERSONAL DATA
http://statistics.data.gov.uk/id/local-authority/38,Oxfordshire County Council,SCS Pooled Budgets,Community Support Budget - Banbury,Other Agency and Contracted Services,57401,Direct Payments,12/01/2011,3301181632,651.96,REDACTED PERSONAL DATA
http://statistics.data.gov.uk/id/local-authority/38,Oxfordshire County Council,SCS Pooled Budgets,Direct Payments City Team,Other Agency and Contracted Services,57401,Direct Payments,12/01/2011,3301181633,720.16,REDACTED PERSONAL DATA
http://statistics.data.gov.uk/id/local-authority/38,Oxfordshire County Council,SCS Pooled Budgets,OP Pool Continuing Care Delegated Health,Other Agency and Contracted Services,57401,Direct Payments,12/01/2011,3301181634,661.48,REDACTED PERSONAL DATA
http://statistics.data.gov.uk/id/local-authority/38,Oxfordshire County Council,SCS Pooled Budgets,Community Support Budget - Bicester,Other Agency and Contracted Services,57401,Direct Payments,12/01/2011,3301181634,1548.4,REDACTED PERSONAL DATA
http://statistics.data.gov.uk/id/local-authority/38,Oxfordshire County Council,SCS Pooled Budgets,Community Support Budget - Banbury,Other Agency and Contracted Services,57401,Direct Payments,12/01/2011,3301181636,912,REDACTED PERSONAL DATA
http://statistics.data.gov.uk/id/local-authority/38,Oxfordshire County Council,SCS Pooled Budgets,Community Support Budget - Bicester,Other Agency and Contracted Services,57401,Direct Payments,12/01/2011,3301181638,1603,REDACTED PERSONAL DATA
http://statistics.data.gov.uk/id/local-authority/38,Oxfordshire County Council,SCS Pooled Budgets,Community Support Budget - Thame,Other Agency and Contracted Services,57401,Direct Payments,12/01/2011,3301181641,1902.76,REDACTED PERSONAL DATA
http://statistics.data.gov.uk/id/local-authority/38,Oxfordshire County Council,SCS Pooled Budgets,Direct Payments City Team,Other Agency and Contracted Services,57401,Direct Payments,12/01/2011,3301181642,3379.28,REDACTED PERSONAL DATA
http://statistics.data.gov.uk/id/local-authority/38,Oxfordshire County Council,SCS Pooled Budgets,Direct Payments South Team,Other Agency and Contracted Services,57401,Direct Payments,12/01/2011,3301181643,2307.68,REDACTED PERSONAL DATA
http://statistics.data.gov.uk/id/local-authority/38,Oxfordshire County Council,SCS Pooled Budgets,Community Support Budget - Thame,Other Agency and Contracted Services,57401,Direct Payments,12/01/2011,3301181644,1189.32,REDACTED PERSONAL DATA
http://statistics.data.gov.uk/id/local-authority/38,Oxfordshire County Council,SCS Pooled Budgets,Direct Payments North Team,Other Agency and Contracted Services,57401,Direct Payments,12/01/2011,3301181645,1980,REDACTED PERSONAL DATA
http://statistics.data.gov.uk/id/local-authority/38,Oxfordshire County Council,SCS Pooled Budgets,PD Comm Supp Purchasg Budget - Abingdon,Other Agency and Contracted Services,57401,Direct Payments,12/01/2011,3301181646,879.78,REDACTED PERSONAL DATA
http://statistics.data.gov.uk/id/local-authority/38,Oxfordshire County Council,SCS Pooled Budgets,Direct Payments City Team,Other Agency and Contracted Services,57401,Direct Payments,12/01/2011,3301181647,3080,REDACTED PERSONAL DATA
http://statistics.data.gov.uk/id/local-authority/38,Oxfordshire County Council,SCS Pooled Budgets,Community Support Budget - Abingdon,Other Agency and Contracted Services,57401,Direct Payments,12/01/2011,3301181648,730.68,REDACTED PERSONAL DATA
http://statistics.data.gov.uk/id/local-authority/38,Oxfordshire County Council,SCS Pooled Budgets,Direct Payments South Team,Other Agency and Contracted Services,57401,Direct Payments,12/01/2011,3301181649,3600,REDACTED PERSONAL DATA
http://statistics.data.gov.uk/id/local-authority/38,Oxfordshire County Council,SCS Pooled Budgets,Direct Payments South Team,Other Agency and Contracted Services,57401,Direct Payments,12/01/2011,3301181651,5684.16,REDACTED PERSONAL DATA
http://statistics.data.gov.uk/id/local-authority/38,Oxfordshire County Council,SCS Pooled Budgets,Community Support Budget - Banbury,Other Agency and Contracted Services,57401,Direct Payments,12/01/2011,3301181652,2200,REDACTED PERSONAL DATA
http://statistics.data.gov.uk/id/local-authority/38,Oxfordshire County Council,SCS Pooled Budgets,PD Comm Supp Budget - Banbury,Other Agency and Contracted Services,57401,Direct Payments,12/01/2011,3301181654,1547.76,REDACTED PERSONAL DATA
http://statistics.data.gov.uk/id/local-authority/38,Oxfordshire County Council,SCS Pooled Budgets,PD CS Purch Budget - Health S28a JC,Other Agency and Contracted Services,57401,Direct Payments,12/01/2011,3301181654,2051.68,REDACTED PERSONAL DATA
http://statistics.data.gov.uk/id/local-authority/38,Oxfordshire County Council,SCS Pooled Budgets,PD Comm Supp Purchasg Budget - City,Other Agency and Contracted Services,57401,Direct Payments,12/01/2011,3301181656,1520.52,REDACTED PERSONAL DATA
http://statistics.data.gov.uk/id/local-authority/38,Oxfordshire County Council,Social & Community Services,Community Support Budget - City East,Other Agency and Contracted Services,57401,Direct Payments,12/01/2011,3301181659,640,REDACTED PERSONAL DATA
http://statistics.data.gov.uk/id/local-authority/38,Oxfordshire County Council,SCS Pooled Budgets,Community Support Budget - Witney,Other Agency and Contracted Services,57401,Direct Payments,12/01/2011,3301181660,1520,REDACTED PERSONAL DATA
http://statistics.data.gov.uk/id/local-authority/38,Oxfordshire County Council,SCS Pooled Budgets,Community Support Budget - Banbury,Other Agency and Contracted Services,57401,Direct Payments,12/01/2011,3301181661,2680.28,REDACTED PERSONAL DATA
http://statistics.data.gov.uk/id/local-authority/38,Oxfordshire County Council,SCS Pooled Budgets,PD Comm Supp Purchasg Budget - Chip. N.,Other Agency and Contracted Services,57401,Direct Payments,12/01/2011,3301181662,640,REDACTED PERSONAL DATA
http://statistics.data.gov.uk/id/local-authority/38,Oxfordshire County Council,SCS Pooled Budgets,PD Comm Supp Purchasg Budget - Didcot,Other Agency and Contracted Services,57401,Direct Payments,12/01/2011,3301181663,1313.52,REDACTED PERSONAL DATA
http://statistics.data.gov.uk/id/local-authority/38,Oxfordshire County Council,SCS Pooled Budgets,PD CS Purch Budget - Health S28a JC,Other Agency and Contracted Services,57401,Direct Payments,12/01/2011,3301181663,1313.52,REDACTED PERSONAL DATA
http://statistics.data.gov.uk/id/local-authority/38,Oxfordshire County Council,SCS Pooled Budgets,PD Comm Supp Purchasg Budget - City,Other Agency and Contracted Services,57401,Direct Payments,12/01/2011,3301181664,1302,REDACTED PERSONAL DATA
http://statistics.data.gov.uk/id/local-authority/38,Oxfordshire County Council,SCS Pooled Budgets,Direct Payments North Team,Other Agency and Contracted Services,57401,Direct Payments,12/01/2011,3301181665,4860,REDACTED PERSONAL DATA
http://statistics.data.gov.uk/id/local-authority/38,Oxfordshire County Council,SCS Pooled Budgets,Community Support Budget - City,Other Agency and Contracted Services,57401,Direct Payments,12/01/2011,3301181666,2064.8,REDACTED PERSONAL DATA
http://statistics.data.gov.uk/id/local-authority/38,Oxfordshire County Council,SCS Pooled Budgets,Direct Payments North Team,Other Agency and Contracted Services,57401,Direct Payments,12/01/2011,3301181667,5324,REDACTED PERSONAL DATA
http://statistics.data.gov.uk/id/local-authority/38,Oxfordshire County Council,SCS Pooled Budgets,PD Comm Supp Budget - Banbury,Other Agency and Contracted Services,57401,Direct Payments,12/01/2011,3301181669,2291.84,REDACTED PERSONAL DATA
http://statistics.data.gov.uk/id/local-authority/38,Oxfordshire County Council,SCS Pooled Budgets,Direct Payments City Team,Other Agency and Contracted Services,57401,Direct Payments,12/01/2011,3301181670,588.8,A4e Management Ltd Week 3
http://statistics.data.gov.uk/id/local-authority/38,Oxfordshire County Council,SCS Pooled Budgets,Community Support Budget - City,Other Agency and Contracted Services,57401,Direct Payments,12/01/2011,3301181671,1085,A4e Management Ltd Week 3
http://statistics.data.gov.uk/id/local-authority/38,Oxfordshire County Council,SCS Pooled Budgets,Community Support Budget - Bicester,Other Agency and Contracted Services,57401,Direct Payments,12/01/2011,3301181678,680,A4e Management Ltd Week 3
http://statistics.data.gov.uk/id/local-authority/38,Oxfordshire County Council,SCS Pooled Budgets,Community Support Budget - Chipping Nort,Other Agency and Contracted Services,57401,Direct Payments,12/01/2011,3301181679,1520,A4e Management Ltd Week 3
http://statistics.data.gov.uk/id/local-authority/38,Oxfordshire County Council,SCS Pooled Budgets,Community Support Budget - Banbury,Other Agency and Contracted Services,57401,Direct Payments,12/01/2011,3301181680,1268,A4e Management Ltd Week 3
http://statistics.data.gov.uk/id/local-authority/38,Oxfordshire County Council,SCS Pooled Budgets,Community Support Budget - City,Other Agency and Contracted Services,57401,Direct Payments,12/01/2011,3301181681,1975.72,A4e Management Ltd Week 3
http://statistics.data.gov.uk/id/local-authority/38,Oxfordshire County Council,SCS Pooled Budgets,PD Comm Supp Purchasg Budget - Abingdon,Other Agency and Contracted Services,57401,Direct Payments,12/01/2011,3301181682,926.4,A4e Management Ltd Week 3
http://statistics.data.gov.uk/id/local-authority/38,Oxfordshire County Council,SCS Pooled Budgets,PD Comm Supp Budget - Banbury,Other Agency and Contracted Services,57401,Direct Payments,12/01/2011,3301181683,2091.43,A4e Management Ltd Week 3
http://statistics.data.gov.uk/id/local-authority/38,Oxfordshire County Council,SCS Pooled Budgets,Direct Payments City Team,Other Agency and Contracted Services,57401,Direct Payments,12/01/2011,3301181685,728.8,A4e Management Ltd Week 3
http://statistics.data.gov.uk/id/local-authority/38,Oxfordshire County Council,SCS Pooled Budgets,Community Support Budget - Witney,Other Agency and Contracted Services,57401,Direct Payments,12/01/2011,3301181686,736.16,A4e Management Ltd Week 3
http://statistics.data.gov.uk/id/local-authority/38,Oxfordshire County Council,SCS Pooled Budgets,Community Support Budget - Banbury,Other Agency and Contracted Services,57401,Direct Payments,12/01/2011,3301181687,2000,A4e Management Ltd Week 3
http://statistics.data.gov.uk/id/local-authority/38,Oxfordshire County Council,SCS Pooled Budgets,Community Support Budget - Bicester,Other Agency and Contracted Services,57401,Direct Payments,12/01/2011,3301181689,959.84,A4e Management Ltd Week 3
http://statistics.data.gov.uk/id/local-authority/38,Oxfordshire County Council,SCS Pooled Budgets,Direct Payments City Team,Other Agency and Contracted Services,57401,Direct Payments,12/01/2011,3301181690,511.6,A4e Management Ltd Week 3
http://statistics.data.gov.uk/id/local-authority/38,Oxfordshire County Council,SCS Pooled Budgets,Community Support Budget - Banbury,Other Agency and Contracted Services,57401,Direct Payments,12/01/2011,3301181692,1120,A4e Management Ltd Week 3
http://statistics.data.gov.uk/id/local-authority/38,Oxfordshire County Council,Social & Community Services,Community Support Budget - City East,Other Agency and Contracted Services,57401,Direct Payments,12/01/2011,3301181693,682,A4e Management Ltd Week 3
http://statistics.data.gov.uk/id/local-authority/38,Oxfordshire County Council,SCS Pooled Budgets,PD Comm Supp Purchasg Budget - City,Other Agency and Contracted Services,57401,Direct Payments,12/01/2011,3301181694,737.8,A4e Management Ltd Week 3
http://statistics.data.gov.uk/id/local-authority/38,Oxfordshire County Council,SCS Pooled Budgets,Community Support Budget - Chipping Nort,Other Agency and Contracted Services,57401,Direct Payments,12/01/2011,3301181695,1200,A4e Management Ltd Week 3
http://statistics.data.gov.uk/id/local-authority/38,Oxfordshire County Council,SCS Pooled Budgets,Direct Payments City Team,Other Agency and Contracted Services,57401,Direct Payments,12/01/2011,3301181696,583.04,A4e Management Ltd Week 3
http://statistics.data.gov.uk/id/local-authority/38,Oxfordshire County Council,Social & Community Services,Community Support Budget - City East,Other Agency and Contracted Services,57401,Direct Payments,12/01/2011,3301181697,1014,A4e Management Ltd Week 3
http://statistics.data.gov.uk/id/local-authority/38,Oxfordshire County Council,SCS Pooled Budgets,Direct Payments City Team,Other Agency and Contracted Services,57401,Direct Payments,12/01/2011,3301181698,1473.6,A4e Management Ltd Week 3
http://statistics.data.gov.uk/id/local-authority/38,Oxfordshire County Council,SCS Pooled Budgets,PD Comm Supp Purchasg Budget - Thame,Other Agency and Contracted Services,57401,Direct Payments,12/01/2011,3301181700,1176.04,A4e Management Ltd Week 3
http://statistics.data.gov.uk/id/local-authority/38,Oxfordshire County Council,SCS Pooled Budgets,Community Support Budget - Kidlington,Other Agency and Contracted Services,57401,Direct Payments,12/01/2011,3301181702,959.84,A4e Management Ltd Week 3
http://statistics.data.gov.uk/id/local-authority/38,Oxfordshire County Council,SCS Pooled Budgets,Community Support Budget - Banbury,Other Agency and Contracted Services,57401,Direct Payments,12/01/2011,3301181704,12000.71,A4e Management Ltd Week 3
http://statistics.data.gov.uk/id/local-authority/38,Oxfordshire County Council,SCS Pooled Budgets,Community Support Budget - Kidlington,Other Agency and Contracted Services,57401,Direct Payments,12/01/2011,3301181706,1267.7,A4e Management Ltd Week 3
http://statistics.data.gov.uk/id/local-authority/38,Oxfordshire County Council,SCS Pooled Budgets,PD CS Purch Budget - Health S28a JC,Other Agency and Contracted Services,57401,Direct Payments,12/01/2011,3301181708,1556.17,A4e Management Ltd Week 3
http://statistics.data.gov.uk/id/local-authority/38,Oxfordshire County Council,SCS Pooled Budgets,PD Comm Supp Purchasg Budget - City,Other Agency and Contracted Services,57401,Direct Payments,12/01/2011,3301181708,699.15,A4e Management Ltd Week 3
http://statistics.data.gov.uk/id/local-authority/38,Oxfordshire County Council,SCS Pooled Budgets,Community Support Budget - Banbury,Other Agency and Contracted Services,57401,Direct Payments,12/01/2011,3301181709,727.2,A4e Management Ltd Week 3
http://statistics.data.gov.uk/id/local-authority/38,Oxfordshire County Council,SCS Pooled Budgets,PD Comm Supp Purchasg Budget - Thame,Other Agency and Contracted Services,57401,Direct Payments,12/01/2011,3301181710,1228.24,A4e Management Ltd Week 3
http://statistics.data.gov.uk/id/local-authority/38,Oxfordshire County Council,SCS Pooled Budgets,PD Comm Supp Purchasg Budget - Witney,Other Agency and Contracted Services,57401,Direct Payments,12/01/2011,3301181712,1440,A4e Management Ltd Week 3
http://statistics.data.gov.uk/id/local-authority/38,Oxfordshire County Council,SCS Pooled Budgets,Direct Payments North Team,Other Agency and Contracted Services,57401,Direct Payments,12/01/2011,3301181715,4260.32,A4e Management Ltd Week 3
http://statistics.data.gov.uk/id/local-authority/38,Oxfordshire County Council,SCS Pooled Budgets,Community Support Budget - Banbury,Other Agency and Contracted Services,57401,Direct Payments,12/01/2011,3301181716,1294.04,A4e Management Ltd Week 3
http://statistics.data.gov.uk/id/local-authority/38,Oxfordshire County Council,SCS Pooled Budgets,Direct Payments City Team,Other Agency and Contracted Services,57401,Direct Payments,12/01/2011,3301181717,588.88,A4e Management Ltd Week 3
http://statistics.data.gov.uk/id/local-authority/38,Oxfordshire County Council,SCS Pooled Budgets,Direct Payments City Team,Other Agency and Contracted Services,57401,Direct Payments,12/01/2011,3301181719,1016.4,A4e Management Ltd Week 3
http://statistics.data.gov.uk/id/local-authority/38,Oxfordshire County Council,SCS Pooled Budgets,PD Comm Supp Budget - Banbury,Other Agency and Contracted Services,57401,Direct Payments,12/01/2011,3301181720,687.36,A4e Management Ltd Week 3
http://statistics.data.gov.uk/id/local-authority/38,Oxfordshire County Council,SCS Pooled Budgets,Community Support Budget - Banbury,Other Agency and Contracted Services,57401,Direct Payments,12/01/2011,3301181721,3170,A4e Management Ltd Week 3
http://statistics.data.gov.uk/id/local-authority/38,Oxfordshire County Council,SCS Pooled Budgets,Community Support Budget - Witney,Other Agency and Contracted Services,57401,Direct Payments,12/01/2011,3301181723,1220,A4e Management Ltd Week 3
http://statistics.data.gov.uk/id/local-authority/38,Oxfordshire County Council,SCS Pooled Budgets,PD Community Support Budget - Kidlington,Other Agency and Contracted Services,57401,Direct Payments,12/01/2011,3301181725,2654.28,A4e Management Ltd Week 3
http://statistics.data.gov.uk/id/local-authority/38,Oxfordshire County Council,SCS Pooled Budgets,PD Comm Supp Purchasg Budget - Didcot,Other Agency and Contracted Services,57401,Direct Payments,12/01/2011,3301181726,1519,A4e Management Ltd Week 3
http://statistics.data.gov.uk/id/local-authority/38,Oxfordshire County Council,SCS Pooled Budgets,Direct Payments North Team,Other Agency and Contracted Services,57401,Direct Payments,12/01/2011,3301181727,600,A4e Management Ltd Week 3
http://statistics.data.gov.uk/id/local-authority/38,Oxfordshire County Council,SCS Pooled Budgets,PD Comm Supp Purchasg Budget - City,Other Agency and Contracted Services,57401,Direct Payments,12/01/2011,3301181731,1115.88,HOLD Ltd
http://statistics.data.gov.uk/id/local-authority/38,Oxfordshire County Council,SCS Pooled Budgets,Direct Payments South Team,Other Agency and Contracted Services,57401,Direct Payments,12/01/2011,3301181732,536.64,HOLD Ltd
http://statistics.data.gov.uk/id/local-authority/38,Oxfordshire County Council,SCS Pooled Budgets,Direct Payments South Team,Other Agency and Contracted Services,57401,Direct Payments,12/01/2011,3301181733,939.12,HOLD Ltd
http://statistics.data.gov.uk/id/local-authority/38,Oxfordshire County Council,SCS Pooled Budgets,Direct Payments South Team,Other Agency and Contracted Services,57401,Direct Payments,12/01/2011,3301181734,670.8,HOLD Ltd
http://statistics.data.gov.uk/id/local-authority/38,Oxfordshire County Council,SCS Pooled Budgets,Direct Payments South Team,Other Agency and Contracted Services,57401,Direct Payments,12/01/2011,3301181735,1006.2,HOLD Ltd
http://statistics.data.gov.uk/id/local-authority/38,Oxfordshire County Council,SCS Pooled Budgets,Direct Payments South Team,Other Agency and Contracted Services,57401,Direct Payments,12/01/2011,3301181737,1006.2,HOLD Ltd
http://statistics.data.gov.uk/id/local-authority/38,Oxfordshire County Council,SCS Pooled Budgets,Direct Payments South Team,Other Agency and Contracted Services,57401,Direct Payments,12/01/2011,3301181738,939.12,HOLD Ltd
http://statistics.data.gov.uk/id/local-authority/38,Oxfordshire County Council,SCS Pooled Budgets,Direct Payments South Team,Other Agency and Contracted Services,57401,Direct Payments,12/01/2011,3301181739,804.96,HOLD Ltd
http://statistics.data.gov.uk/id/local-authority/38,Oxfordshire County Council,SCS Pooled Budgets,Direct Payments South Team,Other Agency and Contracted Services,57401,Direct Payments,12/01/2011,3301181740,536.64,HOLD Ltd
http://statistics.data.gov.uk/id/local-authority/38,Oxfordshire County Council,SCS Pooled Budgets,Direct Payments South Team,Other Agency and Contracted Services,57401,Direct Payments,12/01/2011,3301181741,1006.2,HOLD Ltd
http://statistics.data.gov.uk/id/local-authority/38,Oxfordshire County Council,SCS Pooled Budgets,Direct Payments South Team,Other Agency and Contracted Services,57401,Direct Payments,12/01/2011,3301181742,1006.2,HOLD Ltd
http://statistics.data.gov.uk/id/local-authority/38,Oxfordshire County Council,SCS Pooled Budgets,Direct Payments South Team,Other Agency and Contracted Services,57401,Direct Payments,12/01/2011,3301181744,1006.2,HOLD Ltd
http://statistics.data.gov.uk/id/local-authority/38,Oxfordshire County Council,SCS Pooled Budgets,Direct Payments South Team,Other Agency and Contracted Services,57401,Direct Payments,12/01/2011,3301181747,804.96,HOLD Ltd
http://statistics.data.gov.uk/id/local-authority/38,Oxfordshire County Council,SCS Pooled Budgets,Direct Payments South Team,Other Agency and Contracted Services,57401,Direct Payments,12/01/2011,3301181749,1006.2,HOLD Ltd
http://statistics.data.gov.uk/id/local-authority/38,Oxfordshire County Council,SCS Pooled Budgets,Direct Payments South Team,Other Agency and Contracted Services,57401,Direct Payments,12/01/2011,3301181750,536.64,HOLD Ltd
http://statistics.data.gov.uk/id/local-authority/38,Oxfordshire County Council,SCS Pooled Budgets,Direct Payments South Team,Other Agency and Contracted Services,57401,Direct Payments,12/01/2011,3301181751,939.12,HOLD Ltd
http://statistics.data.gov.uk/id/local-authority/38,Oxfordshire County Council,SCS Pooled Budgets,Direct Payments South Team,Other Agency and Contracted Services,57401,Direct Payments,12/01/2011,3301181753,939.12,HOLD Ltd
http://statistics.data.gov.uk/id/local-authority/38,Oxfordshire County Council,SCS Pooled Budgets,Direct Payments South Team,Other Agency and Contracted Services,57401,Direct Payments,12/01/2011,3301181754,1006.2,HOLD Ltd
http://statistics.data.gov.uk/id/local-authority/38,Oxfordshire County Council,SCS Pooled Budgets,Direct Payments South Team,Other Agency and Contracted Services,57401,Direct Payments,12/01/2011,3301181755,939.12,HOLD Ltd
http://statistics.data.gov.uk/id/local-authority/38,Oxfordshire County Council,"Commissioning, Performance & Quality Ass",Oxford Sth SEN Trans,Contract Hire/Leasing,33101,Home to School Trans,12/01/2011,3301181762,697.27,001 TAXIS
http://statistics.data.gov.uk/id/local-authority/38,Oxfordshire County Council,"Commissioning, Performance & Quality Ass",Zone 5 - South,Contract Hire/Leasing,33101,Home to School Trans,12/01/2011,3301181763,2565.68,Red Rose Travel
http://statistics.data.gov.uk/id/local-authority/38,Oxfordshire County Council,"Commissioning, Performance & Quality Ass",Zone 5 - South,Contract Hire/Leasing,33101,Home to School Trans,12/01/2011,3301181764,2495.22,Red Rose Travel
http://statistics.data.gov.uk/id/local-authority/38,Oxfordshire County Council,"Commissioning, Performance & Quality Ass",Zone 5 - South,Contract Hire/Leasing,33101,Home to School Trans,12/01/2011,3301181765,2712.06,Kingfisher Mini Coaches
http://statistics.data.gov.uk/id/local-authority/38,Oxfordshire County Council,"Commissioning, Performance & Quality Ass",Zone 5 - South,Contract Hire/Leasing,33101,Home to School Trans,12/01/2011,3301181766,1084.85,Kingfisher Mini Coaches
http://statistics.data.gov.uk/id/local-authority/38,Oxfordshire County Council,"Commissioning, Performance & Quality Ass",Oxford Sth SEN Trans,Contract Hire/Leasing,33101,Home to School Trans,12/01/2011,3301181767,715,John Cleaton Airport Cars Oxford
http://statistics.data.gov.uk/id/local-authority/38,Oxfordshire County Council,"Commissioning, Performance & Quality Ass",FE Special Trans,Contract Hire/Leasing,33101,Home to School Trans,12/01/2011,3301181769,1760,Hunts Cabs
http://statistics.data.gov.uk/id/local-authority/38,Oxfordshire County Council,"Commissioning, Performance & Quality Ass",Zone 1 - North,Contract Hire/Leasing,33101,Home to School Trans,12/01/2011,3301181773,1051,Cherwell Cars
http://statistics.data.gov.uk/id/local-authority/38,Oxfordshire County Council,"Commissioning, Performance & Quality Ass",Zone 1 - North,Contract Hire/Leasing,33101,Home to School Trans,12/01/2011,3301181775,1320,Cherwell Cars
http://statistics.data.gov.uk/id/local-authority/38,Oxfordshire County Council,"Commissioning, Performance & Quality Ass",Zone 1 - North,Contract Hire/Leasing,33101,Home to School Trans,12/01/2011,3301181776,660,Cherwell Cars
http://statistics.data.gov.uk/id/local-authority/38,Oxfordshire County Council,"Commissioning, Performance & Quality Ass",Zone 5 - South,Contract Hire/Leasing,33101,Home to School Trans,12/01/2011,3301181780,2266.03,Express Taxis
http://statistics.data.gov.uk/id/local-authority/38,Oxfordshire County Council,"Commissioning, Performance & Quality Ass",Zone 5 - South,Contract Hire/Leasing,33101,Home to School Trans,12/01/2011,3301181781,1048.45,Express Taxis
http://statistics.data.gov.uk/id/local-authority/38,Oxfordshire County Council,"Commissioning, Performance & Quality Ass",Zone 5 - South,Contract Hire/Leasing,33101,Home to School Trans,12/01/2011,3301181782,1058.85,Express Taxis
http://statistics.data.gov.uk/id/local-authority/38,Oxfordshire County Council,"Commissioning, Performance & Quality Ass",Zone 5 - South,Contract Hire/Leasing,33101,Home to School Trans,12/01/2011,3301181783,1459.64,Express Taxis
http://statistics.data.gov.uk/id/local-authority/38,Oxfordshire County Council,"Commissioning, Performance & Quality Ass",Zone 5 - South,Contract Hire/Leasing,33101,Home to School Trans,12/01/2011,3301181784,1710.8,Express Taxis
http://statistics.data.gov.uk/id/local-authority/38,Oxfordshire County Council,"Commissioning, Performance & Quality Ass",Zone 4 - Vale,Contract Hire/Leasing,33101,Home to School Trans,12/01/2011,3301181785,1800.63,Express Taxis
http://statistics.data.gov.uk/id/local-authority/38,Oxfordshire County Council,"Commissioning, Performance & Quality Ass",Zone 2 - East,Contract Hire/Leasing,33101,Home to School Trans,12/01/2011,3301181786,780,Express Taxis
http://statistics.data.gov.uk/id/local-authority/38,Oxfordshire County Council,"Commissioning, Performance & Quality Ass",Zone 2 - East,Contract Hire/Leasing,33101,Home to School Trans,12/01/2011,3301181787,910,Express Taxis
http://statistics.data.gov.uk/id/local-authority/38,Oxfordshire County Council,"Commissioning, Performance & Quality Ass",Zone 2 - East,Contract Hire/Leasing,33101,Home to School Trans,12/01/2011,3301181788,1430,Express Taxis
http://statistics.data.gov.uk/id/local-authority/38,Oxfordshire County Council,"Commissioning, Performance & Quality Ass",Out of County,Contract Hire/Leasing,33101,Home to School Trans,12/01/2011,3301181789,910,Express Taxis
http://statistics.data.gov.uk/id/local-authority/38,Oxfordshire County Council,"Commissioning, Performance & Quality Ass",Oxford Sth SEN Trans,Contract Hire/Leasing,33101,Home to School Trans,12/01/2011,3301181791,760,Monarch Oxford
http://statistics.data.gov.uk/id/local-authority/38,Oxfordshire County Council,"Commissioning, Performance & Quality Ass",FE Special Trans,Contract Hire/Leasing,33101,Home to School Trans,12/01/2011,3301181793,625,Monarch Oxford
http://statistics.data.gov.uk/id/local-authority/38,Oxfordshire County Council,"Commissioning, Performance & Quality Ass",Zone 3 - West,Contract Hire/Leasing,33101,Home to School Trans,12/01/2011,3301181795,2217.8,Blunsdon's Coach Travel
http://statistics.data.gov.uk/id/local-authority/38,Oxfordshire County Council,"Commissioning, Performance & Quality Ass",Zone 3 - West,Contract Hire/Leasing,33101,Home to School Trans,12/01/2011,3301181796,2217.8,Blunsdon's Coach Travel
http://statistics.data.gov.uk/id/local-authority/38,Oxfordshire County Council,"Commissioning, Performance & Quality Ass",Zone 3 - West,Contract Hire/Leasing,33101,Home to School Trans,12/01/2011,3301181797,2147.47,Blunsdon's Coach Travel
http://statistics.data.gov.uk/id/local-authority/38,Oxfordshire County Council,"Commissioning, Performance & Quality Ass",Zone 3 - West,Contract Hire/Leasing,33101,Home to School Trans,12/01/2011,3301181798,2432.19,Blunsdon's Coach Travel
http://statistics.data.gov.uk/id/local-authority/38,Oxfordshire County Council,"Commissioning, Performance & Quality Ass",Zone 3 - West,Contract Hire/Leasing,33101,Home to School Trans,12/01/2011,3301181799,2430.35,Blunsdon's Coach Travel
http://statistics.data.gov.uk/id/local-authority/38,Oxfordshire County Council,"Commissioning, Performance & Quality Ass",Oxford Sth SEN Trans,Contract Hire/Leasing,33101,Home to School Trans,12/01/2011,3301181800,1511.25,Lynkcabs
http://statistics.data.gov.uk/id/local-authority/38,Oxfordshire County Council,"Commissioning, Performance & Quality Ass",Zone 4 - Vale,Contract Hire/Leasing,33101,Home to School Trans,12/01/2011,3301181802,1172.08,Lynkcabs
http://statistics.data.gov.uk/id/local-authority/38,Oxfordshire County Council,"Commissioning, Performance & Quality Ass",Zone 5 - South,Contract Hire/Leasing,33101,Home to School Trans,12/01/2011,3301181804,925.6,Lynkcabs
http://statistics.data.gov.uk/id/local-authority/38,Oxfordshire County Council,"Commissioning, Performance & Quality Ass",Zone 2 - East,Contract Hire/Leasing,33101,Home to School Trans,12/01/2011,3301181805,931.84,Lynkcabs
http://statistics.data.gov.uk/id/local-authority/38,Oxfordshire County Council,"Commissioning, Performance & Quality Ass",Zone 2 - East,Contract Hire/Leasing,33101,Home to School Trans,12/01/2011,3301181806,958.1,Lynkcabs
http://statistics.data.gov.uk/id/local-authority/38,Oxfordshire County Council,"Commissioning, Performance & Quality Ass",Zone 2 - East,Contract Hire/Leasing,33101,Home to School Trans,12/01/2011,3301181807,866.84,Lynkcabs
http://statistics.data.gov.uk/id/local-authority/38,Oxfordshire County Council,"Commissioning, Performance & Quality Ass",Zone 5 - South,Contract Hire/Leasing,33101,Home to School Trans,12/01/2011,3301181808,1237.6,Lynkcabs
http://statistics.data.gov.uk/id/local-authority/38,Oxfordshire County Council,"Commissioning, Performance & Quality Ass",Zone 5 - South,Contract Hire/Leasing,33101,Home to School Trans,12/01/2011,3301181809,1455.48,Lynkcabs
http://statistics.data.gov.uk/id/local-authority/38,Oxfordshire County Council,"Commissioning, Performance & Quality Ass",Zone 5 - South,Contract Hire/Leasing,33101,Home to School Trans,12/01/2011,3301181810,1274,Lynkcabs
http://statistics.data.gov.uk/id/local-authority/38,Oxfordshire County Council,"Commissioning, Performance & Quality Ass",Zone 4 - Vale,Contract Hire/Leasing,33101,Home to School Trans,12/01/2011,3301181811,2513.16,Abingdon Coaches
http://statistics.data.gov.uk/id/local-authority/38,Oxfordshire County Council,"Commissioning, Performance & Quality Ass",Zone 4 - Vale,Contract Hire/Leasing,33101,Home to School Trans,12/01/2011,3301181812,2584.92,Abingdon Coaches
http://statistics.data.gov.uk/id/local-authority/38,Oxfordshire County Council,"Commissioning, Performance & Quality Ass",Zone 4 - Vale,Contract Hire/Leasing,33101,Home to School Trans,12/01/2011,3301181813,2584.92,Abingdon Coaches
http://statistics.data.gov.uk/id/local-authority/38,Oxfordshire County Council,"Commissioning, Performance & Quality Ass",Zone 4 - Vale,Contract Hire/Leasing,33101,Home to School Trans,12/01/2011,3301181814,2584.92,Abingdon Coaches
http://statistics.data.gov.uk/id/local-authority/38,Oxfordshire County Council,"Commissioning, Performance & Quality Ass",Zone 4 - Vale,Contract Hire/Leasing,33101,Home to School Trans,12/01/2011,3301181815,2513.16,Abingdon Coaches
http://statistics.data.gov.uk/id/local-authority/38,Oxfordshire County Council,"Commissioning, Performance & Quality Ass",Zone 5 - South,Contract Hire/Leasing,33101,Home to School Trans,12/01/2011,3301181816,4746.3,Abingdon Coaches
http://statistics.data.gov.uk/id/local-authority/38,Oxfordshire County Council,"Commissioning, Performance & Quality Ass",Zone 5 - South,Contract Hire/Leasing,33101,Home to School Trans,12/01/2011,3301181817,520,Henley Taxis Ltd
http://statistics.data.gov.uk/id/local-authority/38,Oxfordshire County Council,"Commissioning, Performance & Quality Ass",Zone 5 - South,Contract Hire/Leasing,33101,Home to School Trans,12/01/2011,3301181818,533,Henley Taxis Ltd
http://statistics.data.gov.uk/id/local-authority/38,Oxfordshire County Council,"Commissioning, Performance & Quality Ass",Zone 5 - South,Contract Hire/Leasing,33101,Home to School Trans,12/01/2011,3301181820,650,Henley Taxis Ltd
http://statistics.data.gov.uk/id/local-authority/38,Oxfordshire County Council,"Commissioning, Performance & Quality Ass",Zone 5 - South,Contract Hire/Leasing,33101,Home to School Trans,12/01/2011,3301181821,1475.5,Henley Taxis Ltd
http://statistics.data.gov.uk/id/local-authority/38,Oxfordshire County Council,SCS Pooled Budgets,LD CMPB - South Transport,Public Transport,34200,Client Journeys,12/01/2011,3301181824,1400,Chiltern Taxis
http://statistics.data.gov.uk/id/local-authority/38,Oxfordshire County Council,SCS Pooled Budgets,LD CMPB - South Transport,Public Transport,34200,Client Journeys,12/01/2011,3301181825,918,Chiltern Taxis
http://statistics.data.gov.uk/id/local-authority/38,Oxfordshire County Council,"Commissioning, Performance & Quality Ass",Oxford Nth SEN Trans,Contract Hire/Leasing,33101,Home to School Trans,12/01/2011,3301181826,1672,Chiltern Taxis
http://statistics.data.gov.uk/id/local-authority/38,Oxfordshire County Council,"Commissioning, Performance & Quality Ass",Oxford Sth SEN Trans,Contract Hire/Leasing,33101,Home to School Trans,12/01/2011,3301181831,897,Sonia Lees
http://statistics.data.gov.uk/id/local-authority/38,Oxfordshire County Council,"Commissioning, Performance & Quality Ass",LSC Transport,Contract Hire/Leasing,33101,Home to School Trans,12/01/2011,3301181834,600,ABINGDON AND WITNEY COLLEGE
http://statistics.data.gov.uk/id/local-authority/38,Oxfordshire County Council,"Commissioning, Performance & Quality Ass",LSC Transport,Contract Hire/Leasing,33101,Home to School Trans,12/01/2011,3301181836,600,ABINGDON AND WITNEY COLLEGE
http://statistics.data.gov.uk/id/local-authority/38,Oxfordshire County Council,"Commissioning, Performance & Quality Ass",Zone 1 - North,Contract Hire/Leasing,33101,Home to School Trans,12/01/2011,3301181839,1577.03,The Claydon Fox
http://statistics.data.gov.uk/id/local-authority/38,Oxfordshire County Council,"Commissioning, Performance & Quality Ass",Zone 1 - North,Contract Hire/Leasing,33101,Home to School Trans,12/01/2011,3301181840,2226.25,Worths Motor Services Ltd.
http://statistics.data.gov.uk/id/local-authority/38,Oxfordshire County Council,"Commissioning, Performance & Quality Ass",Zone 1 - North,Contract Hire/Leasing,33101,Home to School Trans,12/01/2011,3301181841,2558.4,Worths Motor Services Ltd.
http://statistics.data.gov.uk/id/local-authority/38,Oxfordshire County Council,"Commissioning, Performance & Quality Ass",Zone 1 - North,Contract Hire/Leasing,33101,Home to School Trans,12/01/2011,3301181842,1772.81,Worths Motor Services Ltd.
http://statistics.data.gov.uk/id/local-authority/38,Oxfordshire County Council,"Commissioning, Performance & Quality Ass",Zone 2 - East,Contract Hire/Leasing,33101,Home to School Trans,12/01/2011,3301181843,1742,Worths Motor Services Ltd.
http://statistics.data.gov.uk/id/local-authority/38,Oxfordshire County Council,"Commissioning, Performance & Quality Ass",Zone 2 - East,Contract Hire/Leasing,33101,Home to School Trans,12/01/2011,3301181844,1742,Worths Motor Services Ltd.
http://statistics.data.gov.uk/id/local-authority/38,Oxfordshire County Council,"Commissioning, Performance & Quality Ass",Zone 2 - East,Contract Hire/Leasing,33101,Home to School Trans,12/01/2011,3301181845,1872,Worths Motor Services Ltd.
http://statistics.data.gov.uk/id/local-authority/38,Oxfordshire County Council,SCS Pooled Budgets,Community Support Budget - Kidlington,Other Agency and Contracted Services,57300,Home Support (Ext) OS&HCD,12/01/2011,3301181866,3162.87,1 to 1 Care
http://statistics.data.gov.uk/id/local-authority/38,Oxfordshire County Council,SCS Pooled Budgets,Community Support Budget - City,Other Agency and Contracted Services,57300,Home Support (Ext) OS&HCD,12/01/2011,3301181867,4009.13,1 to 1 Care
http://statistics.data.gov.uk/id/local-authority/38,Oxfordshire County Council,SCS Pooled Budgets,Community Support Budget - Didcot,Other Agency and Contracted Services,57300,Home Support (Ext) OS&HCD,12/01/2011,3301181868,950.4,1 to 1 Care
http://statistics.data.gov.uk/id/local-authority/38,Oxfordshire County Council,SCS Pooled Budgets,Community Support Budget - Abingdon,Other Agency and Contracted Services,57300,Home Support (Ext) OS&HCD,12/01/2011,3301181869,1467.03,1 to 1 Care
http://statistics.data.gov.uk/id/local-authority/38,Oxfordshire County Council,SCS Pooled Budgets,Community Support Budget - Thame,Other Agency and Contracted Services,57300,Home Support (Ext) OS&HCD,12/01/2011,3301181871,5401.88,Nestor Primecare Services Ltd.
http://statistics.data.gov.uk/id/local-authority/38,Oxfordshire County Council,SCS Pooled Budgets,Community Support Budget - Kidlington,Other Agency and Contracted Services,57300,Home Support (Ext) OS&HCD,12/01/2011,3301181874,3891.2,Allied Healthcare Group Ltd
http://statistics.data.gov.uk/id/local-authority/38,Oxfordshire County Council,SCS Pooled Budgets,Community Support Budget - Banbury,Other Agency and Contracted Services,57300,Home Support (Ext) OS&HCD,12/01/2011,3301181875,2905.7,Allied Healthcare Group Ltd
http://statistics.data.gov.uk/id/local-authority/38,Oxfordshire County Council,SCS Pooled Budgets,Community Support Budget - Chipping Nort,Other Agency and Contracted Services,57300,Home Support (Ext) OS&HCD,12/01/2011,3301181876,5120.88,Allied Healthcare Group Ltd
http://statistics.data.gov.uk/id/local-authority/38,Oxfordshire County Council,SCS Pooled Budgets,PD Comm Supp Budget - Banbury,Other Agency and Contracted Services,57300,Home Support (Ext) OS&HCD,12/01/2011,3301181878,1476.97,Allied Healthcare Group Ltd
http://statistics.data.gov.uk/id/local-authority/38,Oxfordshire County Council,SCS Pooled Budgets,Community Support Budget - City,Other Agency and Contracted Services,57300,Home Support (Ext) OS&HCD,12/01/2011,3301181880,1393.18,AMBER HEALTHCARE
http://statistics.data.gov.uk/id/local-authority/38,Oxfordshire County Council,SCS Pooled Budgets,Community Support Budget - Abingdon,Other Agency and Contracted Services,57300,Home Support (Ext) OS&HCD,12/01/2011,3301181882,10063.82,AMBER HEALTHCARE
http://statistics.data.gov.uk/id/local-authority/38,Oxfordshire County Council,SCS Pooled Budgets,Community Support Budget - Witney,Other Agency and Contracted Services,57300,Home Support (Ext) OS&HCD,12/01/2011,3301181883,3158.66,AMBER HEALTHCARE
http://statistics.data.gov.uk/id/local-authority/38,Oxfordshire County Council,SCS Pooled Budgets,OP Pool Continuing Care Medication Only,Other Agency and Contracted Services,57306,Home Support (Ext) Medication Only,12/01/2011,3301181885,860.12,Home Choice Care
http://statistics.data.gov.uk/id/local-authority/38,Oxfordshire County Council,SCS Pooled Budgets,Community Support Budget - City,Other Agency and Contracted Services,57300,Home Support (Ext) OS&HCD,12/01/2011,3301181886,18767.07,Home Choice Care
http://statistics.data.gov.uk/id/local-authority/38,Oxfordshire County Council,SCS Pooled Budgets,Community Support Budget - Abingdon,Other Agency and Contracted Services,57300,Home Support (Ext) OS&HCD,12/01/2011,3301181888,4108.4,Home Choice Care
http://statistics.data.gov.uk/id/local-authority/38,Oxfordshire County Council,SCS Pooled Budgets,PD Comm Supp Purchasg Budget - City,Other Agency and Contracted Services,57300,Home Support (Ext) OS&HCD,12/01/2011,3301181890,784.77,Home Choice Care
http://statistics.data.gov.uk/id/local-authority/38,Oxfordshire County Council,SCS Pooled Budgets,OP Pool Continuing Care Medication Only,Other Agency and Contracted Services,57306,Home Support (Ext) Medication Only,12/01/2011,3301181891,1745.75,Bright Yellow Group Plc
http://statistics.data.gov.uk/id/local-authority/38,Oxfordshire County Council,SCS Pooled Budgets,Community Support Budget - Banbury,Other Agency and Contracted Services,57300,Home Support (Ext) OS&HCD,12/01/2011,3301181892,16682.89,Bright Yellow Group Plc
http://statistics.data.gov.uk/id/local-authority/38,Oxfordshire County Council,SCS Pooled Budgets,Community Support Budget - Bicester,Other Agency and Contracted Services,57300,Home Support (Ext) OS&HCD,12/01/2011,3301181893,11830.48,Bright Yellow Group Plc
http://statistics.data.gov.uk/id/local-authority/38,Oxfordshire County Council,SCS Pooled Budgets,Community Support Budget - Witney,Other Agency and Contracted Services,57300,Home Support (Ext) OS&HCD,12/01/2011,3301181894,2821.48,Bright Yellow Group Plc
http://statistics.data.gov.uk/id/local-authority/38,Oxfordshire County Council,SCS Pooled Budgets,Community Support Budget - Chipping Nort,Other Agency and Contracted Services,57300,Home Support (Ext) OS&HCD,12/01/2011,3301181895,14568.42,Bright Yellow Group Plc
http://statistics.data.gov.uk/id/local-authority/38,Oxfordshire County Council,SCS Pooled Budgets,PD Comm Supp Budget - Banbury,Other Agency and Contracted Services,57300,Home Support (Ext) OS&HCD,12/01/2011,3301181896,5445.15,Bright Yellow Group Plc
http://statistics.data.gov.uk/id/local-authority/38,Oxfordshire County Council,SCS Pooled Budgets,PD Comm Supp Budgt - Bicester/Kidlington,Other Agency and Contracted Services,57300,Home Support (Ext) OS&HCD,12/01/2011,3301181897,1664.24,Bright Yellow Group Plc
http://statistics.data.gov.uk/id/local-authority/38,Oxfordshire County Council,SCS Pooled Budgets,PD Comm Supp Purchasg Budget - Chip. N.,Other Agency and Contracted Services,57300,Home Support (Ext) OS&HCD,12/01/2011,3301181899,803.83,Bright Yellow Group Plc
http://statistics.data.gov.uk/id/local-authority/38,Oxfordshire County Council,SCS Pooled Budgets,Community Support Budget - Witney,Other Agency and Contracted Services,57300,Home Support (Ext) OS&HCD,12/01/2011,3301181901,11290.61,Charterville Care At Home
http://statistics.data.gov.uk/id/local-authority/38,Oxfordshire County Council,Social & Community Services,Acquired Brain Injury,Other Agency and Contracted Services,57300,Home Support (Ext) OS&HCD,12/01/2011,3301181902,1782.49,Charterville Care At Home
http://statistics.data.gov.uk/id/local-authority/38,Oxfordshire County Council,SCS Pooled Budgets,PD North Supporting People,Other Agency and Contracted Services,57300,Home Support (Ext) OS&HCD,12/01/2011,3301181903,597.29,Charterville Care At Home
http://statistics.data.gov.uk/id/local-authority/38,Oxfordshire County Council,SCS Pooled Budgets,PD Comm Supp Purchasg Budget - Witney,Other Agency and Contracted Services,57300,Home Support (Ext) OS&HCD,12/01/2011,3301181904,2720.96,Charterville Care At Home
http://statistics.data.gov.uk/id/local-authority/38,Oxfordshire County Council,SCS Pooled Budgets,OP Pool Continuing Care Medication Only,Other Agency and Contracted Services,57306,Home Support (Ext) Medication Only,12/01/2011,3301181905,1275.13,Cherwell Care Services
http://statistics.data.gov.uk/id/local-authority/38,Oxfordshire County Council,SCS Pooled Budgets,Community Support Budget - Kidlington,Other Agency and Contracted Services,57300,Home Support (Ext) OS&HCD,12/01/2011,3301181906,1937.01,Cherwell Care Services
http://statistics.data.gov.uk/id/local-authority/38,Oxfordshire County Council,SCS Pooled Budgets,Community Support Budget - Bicester,Other Agency and Contracted Services,57300,Home Support (Ext) OS&HCD,12/01/2011,3301181907,13719.79,Cherwell Care Services
http://statistics.data.gov.uk/id/local-authority/38,Oxfordshire County Council,SCS Pooled Budgets,PD Comm Supp Budgt - Bicester/Kidlington,Other Agency and Contracted Services,57300,Home Support (Ext) OS&HCD,12/01/2011,3301181909,1807.26,Cherwell Care Services
http://statistics.data.gov.uk/id/local-authority/38,Oxfordshire County Council,SCS Pooled Budgets,Community Support Budget - Kidlington,Other Agency and Contracted Services,57300,Home Support (Ext) OS&HCD,12/01/2011,3301181912,4041.04,Oxfordshire Crossroads
http://statistics.data.gov.uk/id/local-authority/38,Oxfordshire County Council,SCS Pooled Budgets,Community Support Budget - City,Other Agency and Contracted Services,57300,Home Support (Ext) OS&HCD,12/01/2011,3301181913,6402.13,Oxfordshire Crossroads
http://statistics.data.gov.uk/id/local-authority/38,Oxfordshire County Council,SCS Pooled Budgets,Community Support Budget - Witney,Other Agency and Contracted Services,57300,Home Support (Ext) OS&HCD,12/01/2011,3301181915,737.38,Oxfordshire Crossroads
http://statistics.data.gov.uk/id/local-authority/38,Oxfordshire County Council,Social & Community Services,Dementia Advisers,Other Agency and Contracted Services,57300,Home Support (Ext) OS&HCD,12/01/2011,3301181916,3402.27,Oxfordshire Crossroads
http://statistics.data.gov.uk/id/local-authority/38,Oxfordshire County Council,Social & Community Services,Stroke Grant,Other Agency and Contracted Services,57300,Home Support (Ext) OS&HCD,12/01/2011,3301181917,1065.6,Oxfordshire Crossroads
http://statistics.data.gov.uk/id/local-authority/38,Oxfordshire County Council,SCS Pooled Budgets,PD Community Support Budget - Kidlington,Other Agency and Contracted Services,57300,Home Support (Ext) OS&HCD,12/01/2011,3301181921,4452.68,Oxfordshire Crossroads
http://statistics.data.gov.uk/id/local-authority/38,Oxfordshire County Council,SCS Pooled Budgets,PD Comm Supp Budgt - Bicester/Kidlington,Other Agency and Contracted Services,57300,Home Support (Ext) OS&HCD,12/01/2011,3301181922,1623.67,Oxfordshire Crossroads
http://statistics.data.gov.uk/id/local-authority/38,Oxfordshire County Council,SCS Pooled Budgets,PD Comm Supp Purchasg Budget - City,Other Agency and Contracted Services,57300,Home Support (Ext) OS&HCD,12/01/2011,3301181923,864.63,Oxfordshire Crossroads
http://statistics.data.gov.uk/id/local-authority/38,Oxfordshire County Council,SCS Pooled Budgets,OP Pool Continuing Care Medication Only,Other Agency and Contracted Services,57306,Home Support (Ext) Medication Only,12/01/2011,3301181925,2806.47,Day & Night Care Assistance
http://statistics.data.gov.uk/id/local-authority/38,Oxfordshire County Council,SCS Pooled Budgets,Community Support Budget - City,Other Agency and Contracted Services,57300,Home Support (Ext) OS&HCD,12/01/2011,3301181928,6490.37,Day & Night Care Assistance
http://statistics.data.gov.uk/id/local-authority/38,Oxfordshire County Council,SCS Pooled Budgets,Community Support Budget - Didcot,Other Agency and Contracted Services,57300,Home Support (Ext) OS&HCD,12/01/2011,3301181929,528.73,Day & Night Care Assistance
http://statistics.data.gov.uk/id/local-authority/38,Oxfordshire County Council,SCS Pooled Budgets,Community Support Budget - Abingdon,Other Agency and Contracted Services,57300,Home Support (Ext) OS&HCD,12/01/2011,3301181931,558.07,Day & Night Care Assistance
http://statistics.data.gov.uk/id/local-authority/38,Oxfordshire County Council,SCS Pooled Budgets,Community Support Budget - Wantage,Other Agency and Contracted Services,57300,Home Support (Ext) OS&HCD,12/01/2011,3301181932,12958.37,Day & Night Care Assistance
http://statistics.data.gov.uk/id/local-authority/38,Oxfordshire County Council,SCS Pooled Budgets,Community Support Budget - Witney,Other Agency and Contracted Services,57300,Home Support (Ext) OS&HCD,12/01/2011,3301181933,6641.07,Day & Night Care Assistance
http://statistics.data.gov.uk/id/local-authority/38,Oxfordshire County Council,Social & Community Services,Dementia Advisers,Other Agency and Contracted Services,57300,Home Support (Ext) OS&HCD,12/01/2011,3301181934,1724.04,Day & Night Care Assistance
http://statistics.data.gov.uk/id/local-authority/38,Oxfordshire County Council,SCS Pooled Budgets,LD Team budget (CMPB) - City,Other Agency and Contracted Services,57300,Home Support (Ext) OS&HCD,12/01/2011,3301181936,1087.9,Day & Night Care Assistance
http://statistics.data.gov.uk/id/local-authority/38,Oxfordshire County Council,SCS Pooled Budgets,PD Comm Supp Purchasg Budget - City,Other Agency and Contracted Services,57300,Home Support (Ext) OS&HCD,12/01/2011,3301181938,826.1,Day & Night Care Assistance
http://statistics.data.gov.uk/id/local-authority/38,Oxfordshire County Council,SCS Pooled Budgets,PD Comm Supp Purchasg Budget - Didcot,Other Agency and Contracted Services,57300,Home Support (Ext) OS&HCD,12/01/2011,3301181939,906.77,Day & Night Care Assistance
http://statistics.data.gov.uk/id/local-authority/38,Oxfordshire County Council,SCS Pooled Budgets,PD Comm Supp Purchasg Budget - Wantage,Other Agency and Contracted Services,57300,Home Support (Ext) OS&HCD,12/01/2011,3301181940,629.2,Day & Night Care Assistance
http://statistics.data.gov.uk/id/local-authority/38,Oxfordshire County Council,SCS Pooled Budgets,PD North Supporting People,Other Agency and Contracted Services,57300,Home Support (Ext) OS&HCD,12/01/2011,3301181941,819.87,Day & Night Care Assistance
http://statistics.data.gov.uk/id/local-authority/38,Oxfordshire County Council,SCS Pooled Budgets,OP Pool Continuing Care Medication Only,Other Agency and Contracted Services,57306,Home Support (Ext) Medication Only,12/01/2011,3301181942,603.58,ELITE CARE AGENCY
http://statistics.data.gov.uk/id/local-authority/38,Oxfordshire County Council,SCS Pooled Budgets,Community Support Budget - Bicester,Other Agency and Contracted Services,57300,Home Support (Ext) OS&HCD,12/01/2011,3301181943,3048.11,ELITE CARE AGENCY
http://statistics.data.gov.uk/id/local-authority/38,Oxfordshire County Council,SCS Pooled Budgets,OP Pool Continuing Care Medication Only,Other Agency and Contracted Services,57306,Home Support (Ext) Medication Only,12/01/2011,3301181945,869.45,Greigcare Home Service
http://statistics.data.gov.uk/id/local-authority/38,Oxfordshire County Council,SCS Pooled Budgets,Community Support Budget - Banbury,Other Agency and Contracted Services,57300,Home Support (Ext) OS&HCD,12/01/2011,3301181946,20187.77,Greigcare Home Service
http://statistics.data.gov.uk/id/local-authority/38,Oxfordshire County Council,SCS Pooled Budgets,LD Team budget (CMPB) North,Other Agency and Contracted Services,57300,Home Support (Ext) OS&HCD,12/01/2011,3301181948,1576.12,Greigcare Home Service
http://statistics.data.gov.uk/id/local-authority/38,Oxfordshire County Council,SCS Pooled Budgets,OP Pool Continuing Care Medication Only,Other Agency and Contracted Services,57306,Home Support (Ext) Medication Only,12/01/2011,3301181950,517.56,Heart to Heart Care Ltd
http://statistics.data.gov.uk/id/local-authority/38,Oxfordshire County Council,SCS Pooled Budgets,Community Support Budget - Faringdon,Other Agency and Contracted Services,57300,Home Support (Ext) OS&HCD,12/01/2011,3301181951,553.18,Heart to Heart Care Ltd
http://statistics.data.gov.uk/id/local-authority/38,Oxfordshire County Council,SCS Pooled Budgets,Community Support Budget - Witney,Other Agency and Contracted Services,57300,Home Support (Ext) OS&HCD,12/01/2011,3301181952,24447.29,Heart to Heart Care Ltd
http://statistics.data.gov.uk/id/local-authority/38,Oxfordshire County Council,SCS Pooled Budgets,PD Comm Supp Purchasg Budget - Witney,Other Agency and Contracted Services,57300,Home Support (Ext) OS&HCD,12/01/2011,3301181954,5766.77,Heart to Heart Care Ltd
http://statistics.data.gov.uk/id/local-authority/38,Oxfordshire County Council,SCS Pooled Budgets,Relief to Care Vale Carers Grant,Services,44500,Other Hired & Contra,12/01/2011,3301181955,620.82,HOME HELPERS CARE LTD
http://statistics.data.gov.uk/id/local-authority/38,Oxfordshire County Council,SCS Pooled Budgets,OP Pool Continuing Care Medication Only,Other Agency and Contracted Services,57306,Home Support (Ext) Medication Only,12/01/2011,3301181956,1648.53,HOME HELPERS CARE LTD
http://statistics.data.gov.uk/id/local-authority/38,Oxfordshire County Council,SCS Pooled Budgets,Community Support Budget - Didcot,Other Agency and Contracted Services,57300,Home Support (Ext) OS&HCD,12/01/2011,3301181957,7000.4,HOME HELPERS CARE LTD
http://statistics.data.gov.uk/id/local-authority/38,Oxfordshire County Council,SCS Pooled Budgets,Community Support Budget - Abingdon,Other Agency and Contracted Services,57300,Home Support (Ext) OS&HCD,12/01/2011,3301181958,7795.33,HOME HELPERS CARE LTD
http://statistics.data.gov.uk/id/local-authority/38,Oxfordshire County Council,SCS Pooled Budgets,Community Support Budget - Wantage,Other Agency and Contracted Services,57300,Home Support (Ext) OS&HCD,12/01/2011,3301181959,4184.77,HOME HELPERS CARE LTD
http://statistics.data.gov.uk/id/local-authority/38,Oxfordshire County Council,SCS Pooled Budgets,LD Team budget (CMPB) South,Other Agency and Contracted Services,57300,Home Support (Ext) OS&HCD,12/01/2011,3301181960,583.73,HOME HELPERS CARE LTD
http://statistics.data.gov.uk/id/local-authority/38,Oxfordshire County Council,SCS Pooled Budgets,Community Support Budget - Banbury,Other Agency and Contracted Services,57300,Home Support (Ext) OS&HCD,12/01/2011,3301181965,12096.2,Leonard Cheshire FOR PAYMENTS ONLY
http://statistics.data.gov.uk/id/local-authority/38,Oxfordshire County Council,SCS Pooled Budgets,Community Support Budget - Bicester,Other Agency and Contracted Services,57300,Home Support (Ext) OS&HCD,12/01/2011,3301181966,4939.79,Leonard Cheshire FOR PAYMENTS ONLY
http://statistics.data.gov.uk/id/local-authority/38,Oxfordshire County Council,SCS Pooled Budgets,LD Team budget (CMPB) North,Other Agency and Contracted Services,57300,Home Support (Ext) OS&HCD,12/01/2011,3301181967,1109.44,Leonard Cheshire FOR PAYMENTS ONLY
http://statistics.data.gov.uk/id/local-authority/38,Oxfordshire County Council,SCS Pooled Budgets,OP Pool Fast Track,Other Agency and Contracted Services,57304,Home Support (Ext) Palliative Care,12/01/2011,3301181969,786.61,Mears
http://statistics.data.gov.uk/id/local-authority/38,Oxfordshire County Council,SCS Pooled Budgets,OP Pool Continuing Care Medication Only,Other Agency and Contracted Services,57306,Home Support (Ext) Medication Only,12/01/2011,3301181970,560.29,Mears
http://statistics.data.gov.uk/id/local-authority/38,Oxfordshire County Council,SCS Pooled Budgets,Community Support Budget - Kidlington,Other Agency and Contracted Services,57300,Home Support (Ext) OS&HCD,12/01/2011,3301181971,3011.37,Mears
http://statistics.data.gov.uk/id/local-authority/38,Oxfordshire County Council,SCS Pooled Budgets,Community Support Budget - Bicester,Other Agency and Contracted Services,57300,Home Support (Ext) OS&HCD,12/01/2011,3301181972,8552.56,Mears
http://statistics.data.gov.uk/id/local-authority/38,Oxfordshire County Council,SCS Pooled Budgets,Community Support Budget - Witney,Other Agency and Contracted Services,57300,Home Support (Ext) OS&HCD,12/01/2011,3301181974,8536.18,Mears
http://statistics.data.gov.uk/id/local-authority/38,Oxfordshire County Council,SCS Pooled Budgets,PD Community Support Budget - Kidlington,Other Agency and Contracted Services,57300,Home Support (Ext) OS&HCD,12/01/2011,3301181976,1142.88,Mears
http://statistics.data.gov.uk/id/local-authority/38,Oxfordshire County Council,SCS Pooled Budgets,PD Comm Supp Purchasg Budget - Witney,Other Agency and Contracted Services,57300,Home Support (Ext) OS&HCD,12/01/2011,3301181979,5600.36,Mears
http://statistics.data.gov.uk/id/local-authority/38,Oxfordshire County Council,SCS Pooled Budgets,OP Pool Continuing Care Medication Only,Other Agency and Contracted Services,57306,Home Support (Ext) Medication Only,12/01/2011,3301181980,7515.72,Oxford Private Care
http://statistics.data.gov.uk/id/local-authority/38,Oxfordshire County Council,SCS Pooled Budgets,Community Support Budget - City,Other Agency and Contracted Services,57300,Home Support (Ext) OS&HCD,12/01/2011,3301181981,36319.03,Oxford Private Care
http://statistics.data.gov.uk/id/local-authority/38,Oxfordshire County Council,SCS Pooled Budgets,Community Support Budget - Didcot,Other Agency and Contracted Services,57300,Home Support (Ext) OS&HCD,12/01/2011,3301181982,17675.69,Oxford Private Care
http://statistics.data.gov.uk/id/local-authority/38,Oxfordshire County Council,SCS Pooled Budgets,Community Support Budget - Faringdon,Other Agency and Contracted Services,57300,Home Support (Ext) OS&HCD,12/01/2011,3301181984,2961.87,Oxford Private Care
http://statistics.data.gov.uk/id/local-authority/38,Oxfordshire County Council,SCS Pooled Budgets,Community Support Budget - Abingdon,Other Agency and Contracted Services,57300,Home Support (Ext) OS&HCD,12/01/2011,3301181985,21782.26,Oxford Private Care
http://statistics.data.gov.uk/id/local-authority/38,Oxfordshire County Council,SCS Pooled Budgets,Community Support Budget - Wantage,Other Agency and Contracted Services,57300,Home Support (Ext) OS&HCD,12/01/2011,3301181986,11489.29,Oxford Private Care
http://statistics.data.gov.uk/id/local-authority/38,Oxfordshire County Council,SCS Pooled Budgets,PD Comm Supp Purchasg Budget - City,Other Agency and Contracted Services,57300,Home Support (Ext) OS&HCD,12/01/2011,3301181987,3109.53,Oxford Private Care
http://statistics.data.gov.uk/id/local-authority/38,Oxfordshire County Council,SCS Pooled Budgets,PD Comm Supp Purchasg Budget - Abingdon,Other Agency and Contracted Services,57300,Home Support (Ext) OS&HCD,12/01/2011,3301181990,1644.76,Oxford Private Care
http://statistics.data.gov.uk/id/local-authority/38,Oxfordshire County Council,SCS Pooled Budgets,OP Pool Continuing Care Medication Only,Other Agency and Contracted Services,57306,Home Support (Ext) Medication Only,12/01/2011,3301181992,964.14,Premier Personal Care
http://statistics.data.gov.uk/id/local-authority/38,Oxfordshire County Council,SCS Pooled Budgets,Community Support Budget - Henley,Other Agency and Contracted Services,57300,Home Support (Ext) OS&HCD,12/01/2011,3301181993,11292.03,Premier Personal Care
http://statistics.data.gov.uk/id/local-authority/38,Oxfordshire County Council,SCS Pooled Budgets,LD Team budget (CMPB) South,Other Agency and Contracted Services,57300,Home Support (Ext) OS&HCD,12/01/2011,3301181994,954.11,Premier Personal Care
http://statistics.data.gov.uk/id/local-authority/38,Oxfordshire County Council,SCS Pooled Budgets,OP Pool Continuing Care Medication Only,Other Agency and Contracted Services,57306,Home Support (Ext) Medication Only,12/01/2011,3301181995,1047.72,Primary Healthcare
http://statistics.data.gov.uk/id/local-authority/38,Oxfordshire County Council,SCS Pooled Budgets,Community Support Budget - Didcot,Other Agency and Contracted Services,57300,Home Support (Ext) OS&HCD,12/01/2011,3301181996,858.55,Primary Healthcare
http://statistics.data.gov.uk/id/local-authority/38,Oxfordshire County Council,SCS Pooled Budgets,Community Support Budget - Henley,Other Agency and Contracted Services,57300,Home Support (Ext) OS&HCD,12/01/2011,3301181997,16082.4,Primary Healthcare
http://statistics.data.gov.uk/id/local-authority/38,Oxfordshire County Council,SCS Pooled Budgets,Community Support Budget - Faringdon,Other Agency and Contracted Services,57300,Home Support (Ext) OS&HCD,12/01/2011,3301181998,2290.1,Primary Healthcare
http://statistics.data.gov.uk/id/local-authority/38,Oxfordshire County Council,SCS Pooled Budgets,Community Support Budget - Wantage,Other Agency and Contracted Services,57300,Home Support (Ext) OS&HCD,12/01/2011,3301181999,3814.12,Primary Healthcare
http://statistics.data.gov.uk/id/local-authority/38,Oxfordshire County Council,SCS Pooled Budgets,PD Comm Supp Purchasg Budget - Henley,Other Agency and Contracted Services,57300,Home Support (Ext) OS&HCD,12/01/2011,3301182001,1310.57,Primary Healthcare
http://statistics.data.gov.uk/id/local-authority/38,Oxfordshire County Council,SCS Pooled Budgets,Community Support Budget - Kidlington,Other Agency and Contracted Services,57300,Home Support (Ext) OS&HCD,12/01/2011,3301182004,561.24,Radis Community Care
http://statistics.data.gov.uk/id/local-authority/38,Oxfordshire County Council,SCS Pooled Budgets,Community Support Budget - City,Other Agency and Contracted Services,57300,Home Support (Ext) OS&HCD,12/01/2011,3301182005,5339.45,Radis Community Care
http://statistics.data.gov.uk/id/local-authority/38,Oxfordshire County Council,SCS Pooled Budgets,Community Support Budget - Abingdon,Other Agency and Contracted Services,57300,Home Support (Ext) OS&HCD,12/01/2011,3301182006,3621.57,Radis Community Care
http://statistics.data.gov.uk/id/local-authority/38,Oxfordshire County Council,SCS Pooled Budgets,PD Community Support Budget - Kidlington,Other Agency and Contracted Services,57300,Home Support (Ext) OS&HCD,12/01/2011,3301182007,601.82,Radis Community Care
http://statistics.data.gov.uk/id/local-authority/38,Oxfordshire County Council,SCS Pooled Budgets,PD Comm Supp Purchasg Budget - City,Other Agency and Contracted Services,57300,Home Support (Ext) OS&HCD,12/01/2011,3301182008,1412.99,Radis Community Care
http://statistics.data.gov.uk/id/local-authority/38,Oxfordshire County Council,SCS Pooled Budgets,Community Support Budget - Thame,Other Agency and Contracted Services,57300,Home Support (Ext) OS&HCD,12/01/2011,3301182010,19487.33,Risborough Carers Ltd
http://statistics.data.gov.uk/id/local-authority/38,Oxfordshire County Council,SCS Pooled Budgets,PD Comm Supp Purchasg Budget - Thame,Other Agency and Contracted Services,57300,Home Support (Ext) OS&HCD,12/01/2011,3301182012,1270.86,Risborough Carers Ltd
http://statistics.data.gov.uk/id/local-authority/38,Oxfordshire County Council,SCS Pooled Budgets,OP Pool Continuing Care Medication Only,Other Agency and Contracted Services,57306,Home Support (Ext) Medication Only,12/01/2011,3301182013,1126.5,Secure Care (Oxford) Ltd
http://statistics.data.gov.uk/id/local-authority/38,Oxfordshire County Council,SCS Pooled Budgets,Community Support Budget - City,Other Agency and Contracted Services,57300,Home Support (Ext) OS&HCD,12/01/2011,3301182015,11783,Secure Care (Oxford) Ltd
http://statistics.data.gov.uk/id/local-authority/38,Oxfordshire County Council,SCS Pooled Budgets,Community Support Budget - Didcot,Other Agency and Contracted Services,57300,Home Support (Ext) OS&HCD,12/01/2011,3301182016,838.8,Secure Care (Oxford) Ltd
http://statistics.data.gov.uk/id/local-authority/38,Oxfordshire County Council,SCS Pooled Budgets,Community Support Budget - Thame,Other Agency and Contracted Services,57300,Home Support (Ext) OS&HCD,12/01/2011,3301182017,7710.63,Secure Care (Oxford) Ltd
http://statistics.data.gov.uk/id/local-authority/38,Oxfordshire County Council,SCS Pooled Budgets,PD Comm Supp Purchasg Budget - City,Other Agency and Contracted Services,57300,Home Support (Ext) OS&HCD,12/01/2011,3301182020,659.1,Secure Care (Oxford) Ltd
http://statistics.data.gov.uk/id/local-authority/38,Oxfordshire County Council,SCS Pooled Budgets,PD Comm Supp Purchasg Budget - Didcot,Other Agency and Contracted Services,57300,Home Support (Ext) OS&HCD,12/01/2011,3301182021,596.37,Secure Care (Oxford) Ltd
http://statistics.data.gov.uk/id/local-authority/38,Oxfordshire County Council,SCS Pooled Budgets,PD Comm Supp Purchasg Budget - Henley,Other Agency and Contracted Services,57300,Home Support (Ext) OS&HCD,12/01/2011,3301182022,734.9,Secure Care (Oxford) Ltd
http://statistics.data.gov.uk/id/local-authority/38,Oxfordshire County Council,SCS Pooled Budgets,Community Support Budget - Banbury,Other Agency and Contracted Services,57300,Home Support (Ext) OS&HCD,12/01/2011,3301182023,32048.14,Sevacare (UK) Ltd
http://statistics.data.gov.uk/id/local-authority/38,Oxfordshire County Council,SCS Pooled Budgets,PD Comm Supp Budget - Banbury,Other Agency and Contracted Services,57300,Home Support (Ext) OS&HCD,12/01/2011,3301182024,8772.01,Sevacare (UK) Ltd
http://statistics.data.gov.uk/id/local-authority/38,Oxfordshire County Council,SCS Pooled Budgets,Community Support Budget - City,Other Agency and Contracted Services,57300,Home Support (Ext) OS&HCD,12/01/2011,3301182027,15247.7,Sevacare (UK) Ltd
http://statistics.data.gov.uk/id/local-authority/38,Oxfordshire County Council,SCS Pooled Budgets,Community Support Budget - Didcot,Other Agency and Contracted Services,57300,Home Support (Ext) OS&HCD,12/01/2011,3301182028,799.87,Sevacare (UK) Ltd
http://statistics.data.gov.uk/id/local-authority/38,Oxfordshire County Council,SCS Pooled Budgets,Community Support Budget - Thame,Other Agency and Contracted Services,57300,Home Support (Ext) OS&HCD,12/01/2011,3301182029,506.63,Sevacare (UK) Ltd
http://statistics.data.gov.uk/id/local-authority/38,Oxfordshire County Council,SCS Pooled Budgets,Community Support Budget - Abingdon,Other Agency and Contracted Services,57300,Home Support (Ext) OS&HCD,12/01/2011,3301182030,4422.17,Sevacare (UK) Ltd
http://statistics.data.gov.uk/id/local-authority/38,Oxfordshire County Council,SCS Pooled Budgets,Community Support Budget - Wantage,Other Agency and Contracted Services,57300,Home Support (Ext) OS&HCD,12/01/2011,3301182031,642.24,Sevacare (UK) Ltd
http://statistics.data.gov.uk/id/local-authority/38,Oxfordshire County Council,SCS Pooled Budgets,LD Team budget (CMPB) - City,Other Agency and Contracted Services,57300,Home Support (Ext) OS&HCD,12/01/2011,3301182032,627.1,Sevacare (UK) Ltd
http://statistics.data.gov.uk/id/local-authority/38,Oxfordshire County Council,SCS Pooled Budgets,PD Comm Supp Purchasg Budget - Abingdon,Other Agency and Contracted Services,57300,Home Support (Ext) OS&HCD,12/01/2011,3301182035,612.68,Sevacare (UK) Ltd
http://statistics.data.gov.uk/id/local-authority/38,Oxfordshire County Council,SCS Pooled Budgets,Community Support Budget - Kidlington,Other Agency and Contracted Services,57300,Home Support (Ext) OS&HCD,12/01/2011,3301182036,1143.25,Total Home Care Solutions
http://statistics.data.gov.uk/id/local-authority/38,Oxfordshire County Council,SCS Pooled Budgets,Community Support Budget - City,Other Agency and Contracted Services,57300,Home Support (Ext) OS&HCD,12/01/2011,3301182037,2969.77,Total Home Care Solutions
http://statistics.data.gov.uk/id/local-authority/38,Oxfordshire County Council,SCS Pooled Budgets,Community Support Budget - Thame,Other Agency and Contracted Services,57300,Home Support (Ext) OS&HCD,12/01/2011,3301182039,1528.59,Total Home Care Solutions
http://statistics.data.gov.uk/id/local-authority/38,Oxfordshire County Council,SCS Pooled Budgets,Community Support Budget - Faringdon,Other Agency and Contracted Services,57300,Home Support (Ext) OS&HCD,12/01/2011,3301182040,860.1,Total Home Care Solutions
http://statistics.data.gov.uk/id/local-authority/38,Oxfordshire County Council,SCS Pooled Budgets,Community Support Budget - Abingdon,Other Agency and Contracted Services,57300,Home Support (Ext) OS&HCD,12/01/2011,3301182041,689.75,Total Home Care Solutions
http://statistics.data.gov.uk/id/local-authority/38,Oxfordshire County Council,SCS Pooled Budgets,Community Support Budget - Witney,Other Agency and Contracted Services,57300,Home Support (Ext) OS&HCD,12/01/2011,3301182042,857.88,Total Home Care Solutions
http://statistics.data.gov.uk/id/local-authority/38,Oxfordshire County Council,SCS Pooled Budgets,PD Community Support Budget - Kidlington,Other Agency and Contracted Services,57300,Home Support (Ext) OS&HCD,12/01/2011,3301182044,549.18,Total Home Care Solutions
http://statistics.data.gov.uk/id/local-authority/38,Oxfordshire County Council,SCS Pooled Budgets,Community Support Budget - Banbury,Other Agency and Contracted Services,57300,Home Support (Ext) OS&HCD,12/01/2011,3301182051,902.95,Allied Healthcare Group Ltd
http://statistics.data.gov.uk/id/local-authority/38,Oxfordshire County Council,SCS Pooled Budgets,Community Support Budget - City,Other Agency and Contracted Services,57300,Home Support (Ext) OS&HCD,12/01/2011,3301182052,5697.41,Home Choice Care
http://statistics.data.gov.uk/id/local-authority/38,Oxfordshire County Council,SCS Pooled Budgets,Community Support Budget - City,Other Agency and Contracted Services,57300,Home Support (Ext) OS&HCD,12/01/2011,3301182053,5729.74,Home Choice Care
http://statistics.data.gov.uk/id/local-authority/38,Oxfordshire County Council,SCS Pooled Budgets,Community Support Budget - City,Other Agency and Contracted Services,57300,Home Support (Ext) OS&HCD,12/01/2011,3301182056,601.33,Day & Night Care Assistance
http://statistics.data.gov.uk/id/local-authority/38,Oxfordshire County Council,SCS Pooled Budgets,Community Support Budget - Wantage,Other Agency and Contracted Services,57300,Home Support (Ext) OS&HCD,12/01/2011,3301182057,1455.85,Day & Night Care Assistance
http://statistics.data.gov.uk/id/local-authority/38,Oxfordshire County Council,SCS Pooled Budgets,OP Pool Continuing Care Delegated Health,Other Agency and Contracted Services,57300,Home Support (Ext) OS&HCD,12/01/2011,3301182061,3916.61,Greigcare Home Service
http://statistics.data.gov.uk/id/local-authority/38,Oxfordshire County Council,SCS Pooled Budgets,Community Support Budget - Banbury,Other Agency and Contracted Services,57300,Home Support (Ext) OS&HCD,12/01/2011,3301182062,5520.04,Greigcare Home Service
http://statistics.data.gov.uk/id/local-authority/38,Oxfordshire County Council,SCS Pooled Budgets,Community Support Budget - City,Other Agency and Contracted Services,57300,Home Support (Ext) OS&HCD,12/01/2011,3301182063,2149.87,Oxfordshire Crossroads
http://statistics.data.gov.uk/id/local-authority/38,Oxfordshire County Council,SCS Pooled Budgets,Community Support Budget - Kidlington,Other Agency and Contracted Services,57300,Home Support (Ext) OS&HCD,12/01/2011,3301182064,510.13,Oxfordshire Crossroads
http://statistics.data.gov.uk/id/local-authority/38,Oxfordshire County Council,SCS Pooled Budgets,Community Support Budget - Didcot,Other Agency and Contracted Services,57300,Home Support (Ext) OS&HCD,12/01/2011,3301182067,5269.65,Oxford Private Care
http://statistics.data.gov.uk/id/local-authority/38,Oxfordshire County Council,SCS Pooled Budgets,Community Support Budget - Didcot,Other Agency and Contracted Services,57300,Home Support (Ext) OS&HCD,12/01/2011,3301182069,3624.87,Oxford Private Care
http://statistics.data.gov.uk/id/local-authority/38,Oxfordshire County Council,SCS Pooled Budgets,Community Support Budget - Abingdon,Other Agency and Contracted Services,57300,Home Support (Ext) OS&HCD,12/01/2011,3301182071,4020.17,Oxford Private Care
http://statistics.data.gov.uk/id/local-authority/38,Oxfordshire County Council,SCS Pooled Budgets,OP Pool Continuing Care Delegated Health,Other Agency and Contracted Services,57300,Home Support (Ext) OS&HCD,12/01/2011,3301182079,712.83,Sevacare (UK) Ltd
http://statistics.data.gov.uk/id/local-authority/38,Oxfordshire County Council,SCS Pooled Budgets,Community Support Budget - Banbury,Other Agency and Contracted Services,57300,Home Support (Ext) OS&HCD,12/01/2011,3301182080,3540.87,Sevacare (UK) Ltd
http://statistics.data.gov.uk/id/local-authority/38,Oxfordshire County Council,SCS Pooled Budgets,Community Support Budget - Banbury,Other Agency and Contracted Services,57300,Home Support (Ext) OS&HCD,12/01/2011,3301182082,571.69,Sevacare (UK) Ltd
http://statistics.data.gov.uk/id/local-authority/38,Oxfordshire County Council,SCS Pooled Budgets,Community Support Budget - Witney,Other Agency and Contracted Services,57300,Home Support (Ext) OS&HCD,12/01/2011,3301182083,897.26,Heart to Heart Care Ltd
http://statistics.data.gov.uk/id/local-authority/38,Oxfordshire County Council,SCS Pooled Budgets,Community Support Budget - Didcot,Other Agency and Contracted Services,57300,Home Support (Ext) OS&HCD,12/01/2011,3301182085,987.8,HOME HELPERS CARE LTD
http://statistics.data.gov.uk/id/local-authority/38,Oxfordshire County Council,SCS Pooled Budgets,OP Pool Continuing Care Delegated Health,Other Agency and Contracted Services,57300,Home Support (Ext) OS&HCD,12/01/2011,3301182088,1781.28,Leonard Cheshire FOR PAYMENTS ONLY
http://statistics.data.gov.uk/id/local-authority/38,Oxfordshire County Council,SCS Pooled Budgets,Community Support Budget - Abingdon,Other Agency and Contracted Services,57300,Home Support (Ext) OS&HCD,12/01/2011,3301182090,1982.9,AMBER HEALTHCARE
http://statistics.data.gov.uk/id/local-authority/38,Oxfordshire County Council,SCS Pooled Budgets,Community Support Budget - Henley,Other Agency and Contracted Services,57300,Home Support (Ext) OS&HCD,12/01/2011,3301182094,2489.01,Primary Healthcare
http://statistics.data.gov.uk/id/local-authority/38,Oxfordshire County Council,SCS Pooled Budgets,Community Support Budget - Henley,Other Agency and Contracted Services,57300,Home Support (Ext) OS&HCD,12/01/2011,3301182097,2440.53,Primary Healthcare
http://statistics.data.gov.uk/id/local-authority/38,Oxfordshire County Council,SCS Pooled Budgets,Community Support Budget - Thame,Other Agency and Contracted Services,57300,Home Support (Ext) OS&HCD,12/01/2011,3301182099,959.19,Risborough Carers Ltd
http://statistics.data.gov.uk/id/local-authority/38,Oxfordshire County Council,SCS Pooled Budgets,Community Support Budget - Thame,Other Agency and Contracted Services,57300,Home Support (Ext) OS&HCD,12/01/2011,3301182101,1473.05,Risborough Carers Ltd
http://statistics.data.gov.uk/id/local-authority/38,Oxfordshire County Council,SCS Pooled Budgets,OP Pool Continuing Care Delegated Health,Other Agency and Contracted Services,57300,Home Support (Ext) OS&HCD,12/01/2011,3301182102,581.12,Bright Yellow Group Plc
http://statistics.data.gov.uk/id/local-authority/38,Oxfordshire County Council,SCS Pooled Budgets,Community Support Budget - Banbury,Other Agency and Contracted Services,57300,Home Support (Ext) OS&HCD,12/01/2011,3301182103,7252.87,Bright Yellow Group Plc
http://statistics.data.gov.uk/id/local-authority/38,Oxfordshire County Council,SCS Pooled Budgets,OP Pool Continuing Care Delegated Health,Other Agency and Contracted Services,57300,Home Support (Ext) OS&HCD,12/01/2011,3301182105,658,Radis Community Care
http://statistics.data.gov.uk/id/local-authority/38,Oxfordshire County Council,SCS Pooled Budgets,Community Support Budget - Bicester,Other Agency and Contracted Services,57300,Home Support (Ext) OS&HCD,12/01/2011,3301182106,981.71,Mears
http://statistics.data.gov.uk/id/local-authority/38,Oxfordshire County Council,SCS Pooled Budgets,Community Support Budget - Witney,Other Agency and Contracted Services,57300,Home Support (Ext) OS&HCD,12/01/2011,3301182108,2778.08,Mears
http://statistics.data.gov.uk/id/local-authority/38,Oxfordshire County Council,Social & Community Services,Residential Purchasing Carers Grant,Other Agency and Contracted Services,57401,Direct Payments,12/01/2011,3301182309,500,REDACTED PERSONAL DATA
http://statistics.data.gov.uk/id/local-authority/38,Oxfordshire County Council,Social & Community Services,Residential Purchasing Carers Grant,Other Agency and Contracted Services,57401,Direct Payments,12/01/2011,3301182310,750,REDACTED PERSONAL DATA
http://statistics.data.gov.uk/id/local-authority/38,Oxfordshire County Council,SCS Pooled Budgets,"CSDP, Aids and Adaptions - Cherwell",Other Agency and Contracted Services,57401,Direct Payments,12/01/2011,3301182313,768.26,REDACTED PERSONAL DATA
http://statistics.data.gov.uk/id/local-authority/38,Oxfordshire County Council,SCS Pooled Budgets,Carers Break / Respite Project,Other Agency and Contracted Services,57401,Direct Payments,12/01/2011,3301182315,750,REDACTED PERSONAL DATA
http://statistics.data.gov.uk/id/local-authority/38,Oxfordshire County Council,SCS Pooled Budgets,Community Support Budget - County Carers,Other Agency and Contracted Services,57401,Direct Payments,12/01/2011,3301182317,600,REDACTED PERSONAL DATA
http://statistics.data.gov.uk/id/local-authority/38,Oxfordshire County Council,Social & Community Services,Residential Purchasing Carers Grant,Other Agency and Contracted Services,57401,Direct Payments,12/01/2011,3301182318,614,REDACTED PERSONAL DATA
http://statistics.data.gov.uk/id/local-authority/38,Oxfordshire County Council,Social & Community Services,Residential Purchasing Carers Grant,Other Agency and Contracted Services,57401,Direct Payments,12/01/2011,3301182320,750,REDACTED PERSONAL DATA
http://statistics.data.gov.uk/id/local-authority/38,Oxfordshire County Council,Social & Community Services,Residential Purchasing Carers Grant,Other Agency and Contracted Services,57401,Direct Payments,12/01/2011,3301182321,500,REDACTED PERSONAL DATA
http://statistics.data.gov.uk/id/local-authority/38,Oxfordshire County Council,SCS Other Cost Centres,Control Account Trojan Residential Care,Balance Sheet General,B2040,ABACUS Accounts Payable Control A/c,13/01/2011,3301182705,6490.71,2 CARE SALES LTD The Knowl Abingdon
http://statistics.data.gov.uk/id/local-authority/38,Oxfordshire County Council,SCS Other Cost Centres,Control Account Trojan Residential Care,Balance Sheet General,B2040,ABACUS Accounts Payable Control A/c,13/01/2011,3301182706,17943.99,Abbey Crest Nursing Home
http://statistics.data.gov.uk/id/local-authority/38,Oxfordshire County Council,SCS Other Cost Centres,Control Account Trojan Residential Care,Balance Sheet General,B2040,ABACUS Accounts Payable Control A/c,13/01/2011,3301182707,103950.59,Carebase (Abingdon) Limited
http://statistics.data.gov.uk/id/local-authority/38,Oxfordshire County Council,SCS Other Cost Centres,Control Account Trojan Residential Care,Balance Sheet General,B2040,ABACUS Accounts Payable Control A/c,13/01/2011,3301182708,35576.59,ACACIA LODGE
http://statistics.data.gov.uk/id/local-authority/38,Oxfordshire County Council,SCS Other Cost Centres,Control Account Trojan Residential Care,Balance Sheet General,B2040,ABACUS Accounts Payable Control A/c,13/01/2011,3301182709,24668.55,Advance Housing & Support Ltd
http://statistics.data.gov.uk/id/local-authority/38,Oxfordshire County Council,SCS Other Cost Centres,Control Account Trojan Residential Care,Balance Sheet General,B2040,ABACUS Accounts Payable Control A/c,13/01/2011,3301182710,698.61,REDACTED PERSONAL DATA
http://statistics.data.gov.uk/id/local-authority/38,Oxfordshire County Council,SCS Other Cost Centres,Control Account Trojan Residential Care,Balance Sheet General,B2040,ABACUS Accounts Payable Control A/c,13/01/2011,3301182711,1882.42,REDACTED PERSONAL DATA
http://statistics.data.gov.uk/id/local-authority/38,Oxfordshire County Council,SCS Other Cost Centres,Control Account Trojan Residential Care,Balance Sheet General,B2040,ABACUS Accounts Payable Control A/c,13/01/2011,3301182712,534.62,REDACTED PERSONAL DATA
http://statistics.data.gov.uk/id/local-authority/38,Oxfordshire County Council,SCS Other Cost Centres,Control Account Trojan Residential Care,Balance Sheet General,B2040,ABACUS Accounts Payable Control A/c,13/01/2011,3301182714,1368.46,REDACTED PERSONAL DATA
http://statistics.data.gov.uk/id/local-authority/38,Oxfordshire County Council,SCS Other Cost Centres,Control Account Trojan Residential Care,Balance Sheet General,B2040,ABACUS Accounts Payable Control A/c,13/01/2011,3301182715,1009.46,REDACTED PERSONAL DATA
http://statistics.data.gov.uk/id/local-authority/38,Oxfordshire County Council,SCS Other Cost Centres,Control Account Trojan Residential Care,Balance Sheet General,B2040,ABACUS Accounts Payable Control A/c,13/01/2011,3301182716,1961.66,REDACTED PERSONAL DATA
http://statistics.data.gov.uk/id/local-authority/38,Oxfordshire County Council,SCS Other Cost Centres,Control Account Trojan Residential Care,Balance Sheet General,B2040,ABACUS Accounts Payable Control A/c,13/01/2011,3301182717,2787.95,REDACTED PERSONAL DATA
http://statistics.data.gov.uk/id/local-authority/38,Oxfordshire County Council,SCS Other Cost Centres,Control Account Trojan Residential Care,Balance Sheet General,B2040,ABACUS Accounts Payable Control A/c,13/01/2011,3301182718,3024.06,REDACTED PERSONAL DATA
http://statistics.data.gov.uk/id/local-authority/38,Oxfordshire County Council,SCS Other Cost Centres,Control Account Trojan Residential Care,Balance Sheet General,B2040,ABACUS Accounts Payable Control A/c,13/01/2011,3301182719,2674.2,REDACTED PERSONAL DATA
http://statistics.data.gov.uk/id/local-authority/38,Oxfordshire County Council,SCS Other Cost Centres,Control Account Trojan Residential Care,Balance Sheet General,B2040,ABACUS Accounts Payable Control A/c,13/01/2011,3301182720,664.58,REDACTED PERSONAL DATA
http://statistics.data.gov.uk/id/local-authority/38,Oxfordshire County Council,SCS Other Cost Centres,Control Account Trojan Residential Care,Balance Sheet General,B2040,ABACUS Accounts Payable Control A/c,13/01/2011,3301182721,1859.12,REDACTED PERSONAL DATA
http://statistics.data.gov.uk/id/local-authority/38,Oxfordshire County Council,SCS Other Cost Centres,Control Account Trojan Residential Care,Balance Sheet General,B2040,ABACUS Accounts Payable Control A/c,13/01/2011,3301182722,929.56,REDACTED PERSONAL DATA
http://statistics.data.gov.uk/id/local-authority/38,Oxfordshire County Council,SCS Other Cost Centres,Control Account Trojan Residential Care,Balance Sheet General,B2040,ABACUS Accounts Payable Control A/c,13/01/2011,3301182724,936.2,REDACTED PERSONAL DATA
http://statistics.data.gov.uk/id/local-authority/38,Oxfordshire County Council,SCS Other Cost Centres,Control Account Trojan Residential Care,Balance Sheet General,B2040,ABACUS Accounts Payable Control A/c,13/01/2011,3301182725,1394.78,REDACTED PERSONAL DATA
http://statistics.data.gov.uk/id/local-authority/38,Oxfordshire County Council,SCS Other Cost Centres,Control Account Trojan Residential Care,Balance Sheet General,B2040,ABACUS Accounts Payable Control A/c,13/01/2011,3301182726,4035.9,REDACTED PERSONAL DATA
http://statistics.data.gov.uk/id/local-authority/38,Oxfordshire County Council,SCS Other Cost Centres,Control Account Trojan Residential Care,Balance Sheet General,B2040,ABACUS Accounts Payable Control A/c,13/01/2011,3301182727,1243.19,REDACTED PERSONAL DATA
http://statistics.data.gov.uk/id/local-authority/38,Oxfordshire County Council,SCS Other Cost Centres,Control Account Trojan Residential Care,Balance Sheet General,B2040,ABACUS Accounts Payable Control A/c,13/01/2011,3301182728,1154.09,REDACTED PERSONAL DATA
http://statistics.data.gov.uk/id/local-authority/38,Oxfordshire County Council,SCS Other Cost Centres,Control Account Trojan Residential Care,Balance Sheet General,B2040,ABACUS Accounts Payable Control A/c,13/01/2011,3301182730,1830.95,REDACTED PERSONAL DATA
http://statistics.data.gov.uk/id/local-authority/38,Oxfordshire County Council,SCS Other Cost Centres,Control Account Trojan Residential Care,Balance Sheet General,B2040,ABACUS Accounts Payable Control A/c,13/01/2011,3301182731,640.4,REDACTED PERSONAL DATA
http://statistics.data.gov.uk/id/local-authority/38,Oxfordshire County Council,SCS Other Cost Centres,Control Account Trojan Residential Care,Balance Sheet General,B2040,ABACUS Accounts Payable Control A/c,13/01/2011,3301182732,1195.55,REDACTED PERSONAL DATA
http://statistics.data.gov.uk/id/local-authority/38,Oxfordshire County Council,SCS Other Cost Centres,Control Account Trojan Residential Care,Balance Sheet General,B2040,ABACUS Accounts Payable Control A/c,13/01/2011,3301182733,1394.78,REDACTED PERSONAL DATA
http://statistics.data.gov.uk/id/local-authority/38,Oxfordshire County Council,SCS Other Cost Centres,Control Account Trojan Residential Care,Balance Sheet General,B2040,ABACUS Accounts Payable Control A/c,13/01/2011,3301182734,2335.56,REDACTED PERSONAL DATA
http://statistics.data.gov.uk/id/local-authority/38,Oxfordshire County Council,SCS Other Cost Centres,Control Account Trojan Residential Care,Balance Sheet General,B2040,ABACUS Accounts Payable Control A/c,13/01/2011,3301182735,2093.39,REDACTED PERSONAL DATA
http://statistics.data.gov.uk/id/local-authority/38,Oxfordshire County Council,SCS Other Cost Centres,Control Account Trojan Residential Care,Balance Sheet General,B2040,ABACUS Accounts Payable Control A/c,13/01/2011,3301182736,3282.47,REDACTED PERSONAL DATA
http://statistics.data.gov.uk/id/local-authority/38,Oxfordshire County Council,SCS Other Cost Centres,Control Account Trojan Residential Care,Balance Sheet General,B2040,ABACUS Accounts Payable Control A/c,14/01/2011,3301182737,929.6,REDACTED PERSONAL DATA
http://statistics.data.gov.uk/id/local-authority/38,Oxfordshire County Council,SCS Other Cost Centres,Control Account Trojan Residential Care,Balance Sheet General,B2040,ABACUS Accounts Payable Control A/c,13/01/2011,3301182739,1473.41,REDACTED PERSONAL DATA
http://statistics.data.gov.uk/id/local-authority/38,Oxfordshire County Council,SCS Other Cost Centres,Control Account Trojan Residential Care,Balance Sheet General,B2040,ABACUS Accounts Payable Control A/c,13/01/2011,3301182740,1885.2,REDACTED PERSONAL DATA
http://statistics.data.gov.uk/id/local-authority/38,Oxfordshire County Council,SCS Other Cost Centres,Control Account Trojan Residential Care,Balance Sheet General,B2040,ABACUS Accounts Payable Control A/c,13/01/2011,3301182741,2906.74,REDACTED PERSONAL DATA
http://statistics.data.gov.uk/id/local-authority/38,Oxfordshire County Council,SCS Other Cost Centres,Control Account Trojan Residential Care,Balance Sheet General,B2040,ABACUS Accounts Payable Control A/c,13/01/2011,3301182742,1069.72,REDACTED PERSONAL DATA
http://statistics.data.gov.uk/id/local-authority/38,Oxfordshire County Council,SCS Other Cost Centres,Control Account Trojan Residential Care,Balance Sheet General,B2040,ABACUS Accounts Payable Control A/c,13/01/2011,3301182743,929.56,REDACTED PERSONAL DATA
http://statistics.data.gov.uk/id/local-authority/38,Oxfordshire County Council,SCS Other Cost Centres,Control Account Trojan Residential Care,Balance Sheet General,B2040,ABACUS Accounts Payable Control A/c,13/01/2011,3301182744,3170.96,REDACTED PERSONAL DATA
http://statistics.data.gov.uk/id/local-authority/38,Oxfordshire County Council,SCS Other Cost Centres,Control Account Trojan Residential Care,Balance Sheet General,B2040,ABACUS Accounts Payable Control A/c,13/01/2011,3301182745,1792.36,REDACTED PERSONAL DATA
http://statistics.data.gov.uk/id/local-authority/38,Oxfordshire County Council,SCS Other Cost Centres,Control Account Trojan Residential Care,Balance Sheet General,B2040,ABACUS Accounts Payable Control A/c,13/01/2011,3301182746,3525.32,REDACTED PERSONAL DATA
http://statistics.data.gov.uk/id/local-authority/38,Oxfordshire County Council,SCS Other Cost Centres,Control Account Trojan Residential Care,Balance Sheet General,B2040,ABACUS Accounts Payable Control A/c,13/01/2011,3301182747,1203.36,REDACTED PERSONAL DATA
http://statistics.data.gov.uk/id/local-authority/38,Oxfordshire County Council,SCS Other Cost Centres,Control Account Trojan Residential Care,Balance Sheet General,B2040,ABACUS Accounts Payable Control A/c,13/01/2011,3301182748,542.52,REDACTED PERSONAL DATA
http://statistics.data.gov.uk/id/local-authority/38,Oxfordshire County Council,SCS Other Cost Centres,Control Account Trojan Residential Care,Balance Sheet General,B2040,ABACUS Accounts Payable Control A/c,13/01/2011,3301182749,1162.06,REDACTED PERSONAL DATA
http://statistics.data.gov.uk/id/local-authority/38,Oxfordshire County Council,SCS Other Cost Centres,Control Account Trojan Residential Care,Balance Sheet General,B2040,ABACUS Accounts Payable Control A/c,13/01/2011,3301182750,2891.42,REDACTED PERSONAL DATA
http://statistics.data.gov.uk/id/local-authority/38,Oxfordshire County Council,SCS Other Cost Centres,Control Account Trojan Residential Care,Balance Sheet General,B2040,ABACUS Accounts Payable Control A/c,13/01/2011,3301182751,2060.84,REDACTED PERSONAL DATA
http://statistics.data.gov.uk/id/local-authority/38,Oxfordshire County Council,SCS Other Cost Centres,Control Account Trojan Residential Care,Balance Sheet General,B2040,ABACUS Accounts Payable Control A/c,13/01/2011,3301182753,966.85,REDACTED PERSONAL DATA
http://statistics.data.gov.uk/id/local-authority/38,Oxfordshire County Council,SCS Other Cost Centres,Control Account Trojan Residential Care,Balance Sheet General,B2040,ABACUS Accounts Payable Control A/c,13/01/2011,3301182756,1279.42,REDACTED PERSONAL DATA
http://statistics.data.gov.uk/id/local-authority/38,Oxfordshire County Council,SCS Other Cost Centres,Control Account Trojan Residential Care,Balance Sheet General,B2040,ABACUS Accounts Payable Control A/c,13/01/2011,3301182757,2267.52,REDACTED PERSONAL DATA
http://statistics.data.gov.uk/id/local-authority/38,Oxfordshire County Council,SCS Other Cost Centres,Control Account Trojan Residential Care,Balance Sheet General,B2040,ABACUS Accounts Payable Control A/c,13/01/2011,3301182759,2821.56,REDACTED PERSONAL DATA
http://statistics.data.gov.uk/id/local-authority/38,Oxfordshire County Council,SCS Other Cost Centres,Control Account Trojan Residential Care,Balance Sheet General,B2040,ABACUS Accounts Payable Control A/c,13/01/2011,3301182760,2829,REDACTED PERSONAL DATA
http://statistics.data.gov.uk/id/local-authority/38,Oxfordshire County Council,SCS Other Cost Centres,Control Account Trojan Residential Care,Balance Sheet General,B2040,ABACUS Accounts Payable Control A/c,13/01/2011,3301182762,929.56,REDACTED PERSONAL DATA
http://statistics.data.gov.uk/id/local-authority/38,Oxfordshire County Council,SCS Other Cost Centres,Control Account Trojan Residential Care,Balance Sheet General,B2040,ABACUS Accounts Payable Control A/c,13/01/2011,3301182763,4534.28,REDACTED PERSONAL DATA
http://statistics.data.gov.uk/id/local-authority/38,Oxfordshire County Council,SCS Other Cost Centres,Control Account Trojan Residential Care,Balance Sheet General,B2040,ABACUS Accounts Payable Control A/c,13/01/2011,3301182765,5963.71,Phoenix House (Portland House)
http://statistics.data.gov.uk/id/local-authority/38,Oxfordshire County Council,SCS Other Cost Centres,Control Account Trojan Residential Care,Balance Sheet General,B2040,ABACUS Accounts Payable Control A/c,13/01/2011,3301182766,20572.87,Ashamber Homes Limited
http://statistics.data.gov.uk/id/local-authority/38,Oxfordshire County Council,SCS Other Cost Centres,Control Account Trojan Residential Care,Balance Sheet General,B2040,ABACUS Accounts Payable Control A/c,13/01/2011,3301182767,1801.43,Applewood Care Home
http://statistics.data.gov.uk/id/local-authority/38,Oxfordshire County Council,SCS Other Cost Centres,Control Account Trojan Residential Care,Balance Sheet General,B2040,ABACUS Accounts Payable Control A/c,13/01/2011,3301182768,2130.28,Lower Green Limited
http://statistics.data.gov.uk/id/local-authority/38,Oxfordshire County Council,SCS Other Cost Centres,Control Account Trojan Residential Care,Balance Sheet General,B2040,ABACUS Accounts Payable Control A/c,13/01/2011,3301182769,17724.96,Ascot N/Home (Robertson Homes)
http://statistics.data.gov.uk/id/local-authority/38,Oxfordshire County Council,SCS Other Cost Centres,Control Account Trojan Residential Care,Balance Sheet General,B2040,ABACUS Accounts Payable Control A/c,13/01/2011,3301182770,2339.61,ASHDOWN NURSING HOME
http://statistics.data.gov.uk/id/local-authority/38,Oxfordshire County Council,SCS Other Cost Centres,Control Account Trojan Residential Care,Balance Sheet General,B2040,ABACUS Accounts Payable Control A/c,13/01/2011,3301182771,6379.14,Ashgrange House
http://statistics.data.gov.uk/id/local-authority/38,Oxfordshire County Council,SCS Other Cost Centres,Control Account Trojan Residential Care,Balance Sheet General,B2040,ABACUS Accounts Payable Control A/c,13/01/2011,3301182772,2128.28,Sanctuary Care
http://statistics.data.gov.uk/id/local-authority/38,Oxfordshire County Council,SCS Other Cost Centres,Control Account Trojan Residential Care,Balance Sheet General,B2040,ABACUS Accounts Payable Control A/c,13/01/2011,3301182773,7509.57,Aspects and Milestones Trust
http://statistics.data.gov.uk/id/local-authority/38,Oxfordshire County Council,SCS Other Cost Centres,Control Account Trojan Residential Care,Balance Sheet General,B2040,ABACUS Accounts Payable Control A/c,13/01/2011,3301182774,970.95,Attwoods Manor
http://statistics.data.gov.uk/id/local-authority/38,Oxfordshire County Council,SCS Other Cost Centres,Control Account Trojan Residential Care,Balance Sheet General,B2040,ABACUS Accounts Payable Control A/c,13/01/2011,3301182775,2099.85,Auchlocan - Lower Johnshill
http://statistics.data.gov.uk/id/local-authority/38,Oxfordshire County Council,SCS Other Cost Centres,Control Account Trojan Residential Care,Balance Sheet General,B2040,ABACUS Accounts Payable Control A/c,13/01/2011,3301182776,4447.13,Austen House Care Home
http://statistics.data.gov.uk/id/local-authority/38,Oxfordshire County Council,SCS Other Cost Centres,Control Account Trojan Residential Care,Balance Sheet General,B2040,ABACUS Accounts Payable Control A/c,13/01/2011,3301182777,33257.32,Badby Park
http://statistics.data.gov.uk/id/local-authority/38,Oxfordshire County Council,SCS Other Cost Centres,Control Account Trojan Residential Care,Balance Sheet General,B2040,ABACUS Accounts Payable Control A/c,13/01/2011,3301182778,1698.14,Badgeworth Court Care Centre
http://statistics.data.gov.uk/id/local-authority/38,Oxfordshire County Council,SCS Other Cost Centres,Control Account Trojan Residential Care,Balance Sheet General,B2040,ABACUS Accounts Payable Control A/c,13/01/2011,3301182779,5288.6,Beacher Hall Nursing Centre
http://statistics.data.gov.uk/id/local-authority/38,Oxfordshire County Council,SCS Other Cost Centres,Control Account Trojan Residential Care,Balance Sheet General,B2040,ABACUS Accounts Payable Control A/c,13/01/2011,3301182780,2444.57,Beaumont Nursing Home
http://statistics.data.gov.uk/id/local-authority/38,Oxfordshire County Council,SCS Other Cost Centres,Control Account Trojan Residential Care,Balance Sheet General,B2040,ABACUS Accounts Payable Control A/c,13/01/2011,3301182781,1548.76,BEECH COURT CARE CENTRE
http://statistics.data.gov.uk/id/local-authority/38,Oxfordshire County Council,SCS Other Cost Centres,Control Account Trojan Residential Care,Balance Sheet General,B2040,ABACUS Accounts Payable Control A/c,13/01/2011,3301182782,37086.37,Beech Court Nursing Home
http://statistics.data.gov.uk/id/local-authority/38,Oxfordshire County Council,SCS Other Cost Centres,Control Account Trojan Residential Care,Balance Sheet General,B2040,ABACUS Accounts Payable Control A/c,13/01/2011,3301182783,11860.65,Beech Haven Care Home
http://statistics.data.gov.uk/id/local-authority/38,Oxfordshire County Council,SCS Other Cost Centres,Control Account Trojan Residential Care,Balance Sheet General,B2040,ABACUS Accounts Payable Control A/c,13/01/2011,3301182784,1549.6,Beechcroft Retirement Home
http://statistics.data.gov.uk/id/local-authority/38,Oxfordshire County Council,SCS Other Cost Centres,Control Account Trojan Residential Care,Balance Sheet General,B2040,ABACUS Accounts Payable Control A/c,13/01/2011,3301182785,20000.17,Beechwood College
http://statistics.data.gov.uk/id/local-authority/38,Oxfordshire County Council,SCS Other Cost Centres,Control Account Trojan Residential Care,Balance Sheet General,B2040,ABACUS Accounts Payable Control A/c,13/01/2011,3301182786,11517.87,Purbeck Care Ltd
http://statistics.data.gov.uk/id/local-authority/38,Oxfordshire County Council,SCS Other Cost Centres,Control Account Trojan Residential Care,Balance Sheet General,B2040,ABACUS Accounts Payable Control A/c,13/01/2011,3301182787,1355.5,SENAD LIMITED
http://statistics.data.gov.uk/id/local-authority/38,Oxfordshire County Council,SCS Other Cost Centres,Control Account Trojan Residential Care,Balance Sheet General,B2040,ABACUS Accounts Payable Control A/c,13/01/2011,3301182788,11426.37,PJ Care Ltd
http://statistics.data.gov.uk/id/local-authority/38,Oxfordshire County Council,SCS Other Cost Centres,Control Account Trojan Residential Care,Balance Sheet General,B2040,ABACUS Accounts Payable Control A/c,13/01/2011,3301182789,2791.06,Bon Accord Nursing Home
http://statistics.data.gov.uk/id/local-authority/38,Oxfordshire County Council,SCS Other Cost Centres,Control Account Trojan Residential Care,Balance Sheet General,B2040,ABACUS Accounts Payable Control A/c,13/01/2011,3301182790,3616.59,Brackley Fields Country House
http://statistics.data.gov.uk/id/local-authority/38,Oxfordshire County Council,SCS Other Cost Centres,Control Account Trojan Residential Care,Balance Sheet General,B2040,ABACUS Accounts Payable Control A/c,13/01/2011,3301182791,6281.04,BRACKLEY LODGE NURSING HOME
http://statistics.data.gov.uk/id/local-authority/38,Oxfordshire County Council,SCS Other Cost Centres,Control Account Trojan Residential Care,Balance Sheet General,B2040,ABACUS Accounts Payable Control A/c,13/01/2011,3301182792,2997.39,Bradbury House Organisation
http://statistics.data.gov.uk/id/local-authority/38,Oxfordshire County Council,SCS Other Cost Centres,Control Account Trojan Residential Care,Balance Sheet General,B2040,ABACUS Accounts Payable Control A/c,13/01/2011,3301182793,7402.14,Broadreach
http://statistics.data.gov.uk/id/local-authority/38,Oxfordshire County Council,SCS Other Cost Centres,Control Account Trojan Residential Care,Balance Sheet General,B2040,ABACUS Accounts Payable Control A/c,13/01/2011,3301182794,14930.19,Broadway Lodge
http://statistics.data.gov.uk/id/local-authority/38,Oxfordshire County Council,SCS Other Cost Centres,Control Account Trojan Residential Care,Balance Sheet General,B2040,ABACUS Accounts Payable Control A/c,13/01/2011,3301182795,2003.53,Bromson Hill
http://statistics.data.gov.uk/id/local-authority/38,Oxfordshire County Council,SCS Other Cost Centres,Control Account Trojan Residential Care,Balance Sheet General,B2040,ABACUS Accounts Payable Control A/c,13/01/2011,3301182796,9012.8,Brook House Residential
http://statistics.data.gov.uk/id/local-authority/38,Oxfordshire County Council,SCS Other Cost Centres,Control Account Trojan Residential Care,Balance Sheet General,B2040,ABACUS Accounts Payable Control A/c,13/01/2011,3301182797,146966.71,Brookfield Christian Care Home
http://statistics.data.gov.uk/id/local-authority/38,Oxfordshire County Council,SCS Other Cost Centres,Control Account Trojan Residential Care,Balance Sheet General,B2040,ABACUS Accounts Payable Control A/c,13/01/2011,3301182798,1941.04,BROOKLANDS CARE HOME
http://statistics.data.gov.uk/id/local-authority/38,Oxfordshire County Council,SCS Other Cost Centres,Control Account Trojan Residential Care,Balance Sheet General,B2040,ABACUS Accounts Payable Control A/c,13/01/2011,3301182799,61871.69,Brooklands One Ltd
http://statistics.data.gov.uk/id/local-authority/38,Oxfordshire County Council,SCS Other Cost Centres,Control Account Trojan Residential Care,Balance Sheet General,B2040,ABACUS Accounts Payable Control A/c,13/01/2011,3301182800,111997.9,Brooklands Two Ltd
http://statistics.data.gov.uk/id/local-authority/38,Oxfordshire County Council,SCS Other Cost Centres,Control Account Trojan Residential Care,Balance Sheet General,B2040,ABACUS Accounts Payable Control A/c,13/01/2011,3301182801,3187.73,Brothers of Charity Services
http://statistics.data.gov.uk/id/local-authority/38,Oxfordshire County Council,SCS Other Cost Centres,Control Account Trojan Residential Care,Balance Sheet General,B2040,ABACUS Accounts Payable Control A/c,13/01/2011,3301182802,3680.14,Browning Care Home
http://statistics.data.gov.uk/id/local-authority/38,Oxfordshire County Council,SCS Other Cost Centres,Control Account Trojan Residential Care,Balance Sheet General,B2040,ABACUS Accounts Payable Control A/c,13/01/2011,3301182803,5383.68,Bryn-y-Wawr
http://statistics.data.gov.uk/id/local-authority/38,Oxfordshire County Council,SCS Other Cost Centres,Control Account Trojan Residential Care,Balance Sheet General,B2040,ABACUS Accounts Payable Control A/c,13/01/2011,3301182804,2146.57,Burford House
http://statistics.data.gov.uk/id/local-authority/38,Oxfordshire County Council,SCS Other Cost Centres,Control Account Trojan Residential Care,Balance Sheet General,B2040,ABACUS Accounts Payable Control A/c,13/01/2011,3301182805,3905.96,MCCH Society Ltd
http://statistics.data.gov.uk/id/local-authority/38,Oxfordshire County Council,SCS Other Cost Centres,Control Account Trojan Residential Care,Balance Sheet General,B2040,ABACUS Accounts Payable Control A/c,13/01/2011,3301182806,2225.8,CAPWELL GRANGE (BUPA)
http://statistics.data.gov.uk/id/local-authority/38,Oxfordshire County Council,SCS Other Cost Centres,Control Account Trojan Residential Care,Balance Sheet General,B2040,ABACUS Accounts Payable Control A/c,13/01/2011,3301182807,115264.96,Caretech Community Services Ltd
http://statistics.data.gov.uk/id/local-authority/38,Oxfordshire County Council,SCS Other Cost Centres,Control Account Trojan Residential Care,Balance Sheet General,B2040,ABACUS Accounts Payable Control A/c,13/01/2011,3301182808,2044.36,Carrington House
http://statistics.data.gov.uk/id/local-authority/38,Oxfordshire County Council,SCS Other Cost Centres,Control Account Trojan Residential Care,Balance Sheet General,B2040,ABACUS Accounts Payable Control A/c,13/01/2011,3301182810,1564.53,CASTLE KEEP NURSING HOME
http://statistics.data.gov.uk/id/local-authority/38,Oxfordshire County Council,SCS Other Cost Centres,Control Account Trojan Residential Care,Balance Sheet General,B2040,ABACUS Accounts Payable Control A/c,13/01/2011,3301182811,32062.86,CastleBeck Care (Teesdale) Ltd
http://statistics.data.gov.uk/id/local-authority/38,Oxfordshire County Council,SCS Other Cost Centres,Control Account Trojan Residential Care,Balance Sheet General,B2040,ABACUS Accounts Payable Control A/c,13/01/2011,3301182812,26902.51,CastleBeck Care (Teesdale) Ltd
http://statistics.data.gov.uk/id/local-authority/38,Oxfordshire County Council,SCS Other Cost Centres,Control Account Trojan Residential Care,Balance Sheet General,B2040,ABACUS Accounts Payable Control A/c,13/01/2011,3301182813,1928.69,Runwood Homes plc
http://statistics.data.gov.uk/id/local-authority/38,Oxfordshire County Council,SCS Other Cost Centres,Control Account Trojan Residential Care,Balance Sheet General,B2040,ABACUS Accounts Payable Control A/c,13/01/2011,3301182814,104667.59,Cedar Court Care Home
http://statistics.data.gov.uk/id/local-authority/38,Oxfordshire County Council,SCS Other Cost Centres,Control Account Trojan Residential Care,Balance Sheet General,B2040,ABACUS Accounts Payable Control A/c,13/01/2011,3301182815,49698.87,Chacombe House Nursing Home
http://statistics.data.gov.uk/id/local-authority/38,Oxfordshire County Council,SCS Other Cost Centres,Control Account Trojan Residential Care,Balance Sheet General,B2040,ABACUS Accounts Payable Control A/c,13/01/2011,3301182816,13521.32,Chalfont Lodge Care Centre
http://statistics.data.gov.uk/id/local-authority/38,Oxfordshire County Council,SCS Other Cost Centres,Control Account Trojan Residential Care,Balance Sheet General,B2040,ABACUS Accounts Payable Control A/c,13/01/2011,3301182817,1843.61,CHATTERWOOD CARE HOME
http://statistics.data.gov.uk/id/local-authority/38,Oxfordshire County Council,SCS Other Cost Centres,Control Account Trojan Residential Care,Balance Sheet General,B2040,ABACUS Accounts Payable Control A/c,13/01/2011,3301182818,10016.77,Regal Care Homes Ltd
http://statistics.data.gov.uk/id/local-authority/38,Oxfordshire County Council,SCS Other Cost Centres,Control Account Trojan Residential Care,Balance Sheet General,B2040,ABACUS Accounts Payable Control A/c,14/01/2011,3301182819,3454.29,Cherry Tree Nursing Home
http://statistics.data.gov.uk/id/local-authority/38,Oxfordshire County Council,SCS Other Cost Centres,Control Account Trojan Residential Care,Balance Sheet General,B2040,ABACUS Accounts Payable Control A/c,13/01/2011,3301182820,6229.36,Cherry Trees Care Home
http://statistics.data.gov.uk/id/local-authority/38,Oxfordshire County Council,SCS Other Cost Centres,Control Account Trojan Residential Care,Balance Sheet General,B2040,ABACUS Accounts Payable Control A/c,13/01/2011,3301182821,8415.93,Chervil Cottage
http://statistics.data.gov.uk/id/local-authority/38,Oxfordshire County Council,SCS Other Cost Centres,Control Account Trojan Residential Care,Balance Sheet General,B2040,ABACUS Accounts Payable Control A/c,13/01/2011,3301182822,137314.83,Cherwood House Care Centre
http://statistics.data.gov.uk/id/local-authority/38,Oxfordshire County Council,SCS Other Cost Centres,Control Account Trojan Residential Care,Balance Sheet General,B2040,ABACUS Accounts Payable Control A/c,13/01/2011,3301182823,1895.43,Chichester Court Care Home
http://statistics.data.gov.uk/id/local-authority/38,Oxfordshire County Council,SCS Other Cost Centres,Control Account Trojan Residential Care,Balance Sheet General,B2040,ABACUS Accounts Payable Control A/c,13/01/2011,3301182824,4185,Chiltern View Brendoncare Home
http://statistics.data.gov.uk/id/local-authority/38,Oxfordshire County Council,SCS Other Cost Centres,Control Account Trojan Residential Care,Balance Sheet General,B2040,ABACUS Accounts Payable Control A/c,13/01/2011,3301182825,2148.3,CHILWORTH HOUSE RESIDENTIAL HOME
http://statistics.data.gov.uk/id/local-authority/38,Oxfordshire County Council,SCS Other Cost Centres,Control Account Trojan Residential Care,Balance Sheet General,B2040,ABACUS Accounts Payable Control A/c,13/01/2011,3301182826,109521.67,Choice Ltd
http://statistics.data.gov.uk/id/local-authority/38,Oxfordshire County Council,SCS Other Cost Centres,Control Account Trojan Residential Care,Balance Sheet General,B2040,ABACUS Accounts Payable Control A/c,13/01/2011,3301182827,2122.88,CLARE HOUSE RESIDENTIAL HOME
http://statistics.data.gov.uk/id/local-authority/38,Oxfordshire County Council,SCS Other Cost Centres,Control Account Trojan Residential Care,Balance Sheet General,B2040,ABACUS Accounts Payable Control A/c,13/01/2011,3301182828,4074.4,Robert & Doris Watts Residential
http://statistics.data.gov.uk/id/local-authority/38,Oxfordshire County Council,SCS Other Cost Centres,Control Account Trojan Residential Care,Balance Sheet General,B2040,ABACUS Accounts Payable Control A/c,13/01/2011,3301182829,15427.6,Cleeve Lodge Residential Home
http://statistics.data.gov.uk/id/local-authority/38,Oxfordshire County Council,SCS Other Cost Centres,Control Account Trojan Residential Care,Balance Sheet General,B2040,ABACUS Accounts Payable Control A/c,13/01/2011,3301182830,5062.96,Clervaux Trust Limited
http://statistics.data.gov.uk/id/local-authority/38,Oxfordshire County Council,SCS Other Cost Centres,Control Account Trojan Residential Care,Balance Sheet General,B2040,ABACUS Accounts Payable Control A/c,13/01/2011,3301182831,3384.91,Closereach
http://statistics.data.gov.uk/id/local-authority/38,Oxfordshire County Council,SCS Other Cost Centres,Control Account Trojan Residential Care,Balance Sheet General,B2040,ABACUS Accounts Payable Control A/c,13/01/2011,3301182832,1812.04,Coble House Nursing Home
http://statistics.data.gov.uk/id/local-authority/38,Oxfordshire County Council,SCS Other Cost Centres,Control Account Trojan Residential Care,Balance Sheet General,B2040,ABACUS Accounts Payable Control A/c,13/01/2011,3301182833,2269.16,Colbury House Nursing Home
http://statistics.data.gov.uk/id/local-authority/38,Oxfordshire County Council,SCS Other Cost Centres,Control Account Trojan Residential Care,Balance Sheet General,B2040,ABACUS Accounts Payable Control A/c,13/01/2011,3301182834,4838.08,Conquest Care Homes
http://statistics.data.gov.uk/id/local-authority/38,Oxfordshire County Council,SCS Other Cost Centres,Control Account Trojan Residential Care,Balance Sheet General,B2040,ABACUS Accounts Payable Control A/c,13/01/2011,3301182835,20448.86,Ashbourne (Eton) Ltd
http://statistics.data.gov.uk/id/local-authority/38,Oxfordshire County Council,SCS Other Cost Centres,Control Account Trojan Residential Care,Balance Sheet General,B2040,ABACUS Accounts Payable Control A/c,13/01/2011,3301182836,3003.86,COPLANDS NURSING HOME
http://statistics.data.gov.uk/id/local-authority/38,Oxfordshire County Council,SCS Other Cost Centres,Control Account Trojan Residential Care,Balance Sheet General,B2040,ABACUS Accounts Payable Control A/c,13/01/2011,3301182837,9300,Cotswold Chine Home-School
http://statistics.data.gov.uk/id/local-authority/38,Oxfordshire County Council,SCS Other Cost Centres,Control Account Trojan Residential Care,Balance Sheet General,B2040,ABACUS Accounts Payable Control A/c,13/01/2011,3301182838,100156.65,Coxwell Hall & Mews Nursing Home
http://statistics.data.gov.uk/id/local-authority/38,Oxfordshire County Council,SCS Other Cost Centres,Control Account Trojan Residential Care,Balance Sheet General,B2040,ABACUS Accounts Payable Control A/c,13/01/2011,3301182839,7516.88,Craegmoor Health
http://statistics.data.gov.uk/id/local-authority/38,Oxfordshire County Council,SCS Other Cost Centres,Control Account Trojan Residential Care,Balance Sheet General,B2040,ABACUS Accounts Payable Control A/c,13/01/2011,3301182840,1948.04,Runwood Homes plc
http://statistics.data.gov.uk/id/local-authority/38,Oxfordshire County Council,SCS Other Cost Centres,Control Account Trojan Residential Care,Balance Sheet General,B2040,ABACUS Accounts Payable Control A/c,13/01/2011,3301182841,14710.16,Culworth House
http://statistics.data.gov.uk/id/local-authority/38,Oxfordshire County Council,SCS Other Cost Centres,Control Account Trojan Residential Care,Balance Sheet General,B2040,ABACUS Accounts Payable Control A/c,13/01/2011,3301182842,8857.14,Dalguise Centre
http://statistics.data.gov.uk/id/local-authority/38,Oxfordshire County Council,SCS Other Cost Centres,Control Account Trojan Residential Care,Balance Sheet General,B2040,ABACUS Accounts Payable Control A/c,13/01/2011,3301182843,12227.29,Dame Hannah Rogers Trust
http://statistics.data.gov.uk/id/local-authority/38,Oxfordshire County Council,SCS Other Cost Centres,Control Account Trojan Residential Care,Balance Sheet General,B2040,ABACUS Accounts Payable Control A/c,13/01/2011,3301182844,18823.86,David Lewis Centre Ltd
http://statistics.data.gov.uk/id/local-authority/38,Oxfordshire County Council,SCS Other Cost Centres,Control Account Trojan Residential Care,Balance Sheet General,B2040,ABACUS Accounts Payable Control A/c,13/01/2011,3301182845,2059.06,Dean Park Residential Home
http://statistics.data.gov.uk/id/local-authority/38,Oxfordshire County Council,SCS Other Cost Centres,Control Account Trojan Residential Care,Balance Sheet General,B2040,ABACUS Accounts Payable Control A/c,13/01/2011,3301182846,14598.99,Derwen College
http://statistics.data.gov.uk/id/local-authority/38,Oxfordshire County Council,SCS Other Cost Centres,Control Account Trojan Residential Care,Balance Sheet General,B2040,ABACUS Accounts Payable Control A/c,13/01/2011,3301182847,234324.37,Dimensions (NSO) Ltd
http://statistics.data.gov.uk/id/local-authority/38,Oxfordshire County Council,SCS Other Cost Centres,Control Account Trojan Residential Care,Balance Sheet General,B2040,ABACUS Accounts Payable Control A/c,13/01/2011,3301182848,48077.34,Doris Watts Residential Home Ltd
http://statistics.data.gov.uk/id/local-authority/38,Oxfordshire County Council,SCS Other Cost Centres,Control Account Trojan Residential Care,Balance Sheet General,B2040,ABACUS Accounts Payable Control A/c,13/01/2011,3301182849,11194.1,DORLANDS
http://statistics.data.gov.uk/id/local-authority/38,Oxfordshire County Council,SCS Other Cost Centres,Control Account Trojan Residential Care,Balance Sheet General,B2040,ABACUS Accounts Payable Control A/c,13/01/2011,3301182850,1289.82,Dove Care T/A Duncote Hall
http://statistics.data.gov.uk/id/local-authority/38,Oxfordshire County Council,SCS Other Cost Centres,Control Account Trojan Residential Care,Balance Sheet General,B2040,ABACUS Accounts Payable Control A/c,13/01/2011,3301182851,2173.45,Dunraven Lodge/House
http://statistics.data.gov.uk/id/local-authority/38,Oxfordshire County Council,SCS Other Cost Centres,Control Account Trojan Residential Care,Balance Sheet General,B2040,ABACUS Accounts Payable Control A/c,13/01/2011,3301182852,10885.43,Dysons Wood House ( Reading)
http://statistics.data.gov.uk/id/local-authority/38,Oxfordshire County Council,SCS Other Cost Centres,Control Account Trojan Residential Care,Balance Sheet General,B2040,ABACUS Accounts Payable Control A/c,13/01/2011,3301182854,18437.68,Eastfield- House RH(Pangbourne)
http://statistics.data.gov.uk/id/local-authority/38,Oxfordshire County Council,SCS Other Cost Centres,Control Account Trojan Residential Care,Balance Sheet General,B2040,ABACUS Accounts Payable Control A/c,13/01/2011,3301182855,1774.88,Eden House
http://statistics.data.gov.uk/id/local-authority/38,Oxfordshire County Council,SCS Other Cost Centres,Control Account Trojan Residential Care,Balance Sheet General,B2040,ABACUS Accounts Payable Control A/c,13/01/2011,3301182856,10476.94,Eden House
http://statistics.data.gov.uk/id/local-authority/38,Oxfordshire County Council,SCS Other Cost Centres,Control Account Trojan Residential Care,Balance Sheet General,B2040,ABACUS Accounts Payable Control A/c,13/01/2011,3301182857,21729.67,Enstone House
http://statistics.data.gov.uk/id/local-authority/38,Oxfordshire County Council,SCS Other Cost Centres,Control Account Trojan Residential Care,Balance Sheet General,B2040,ABACUS Accounts Payable Control A/c,13/01/2011,3301182858,5110.31,Evergreen
http://statistics.data.gov.uk/id/local-authority/38,Oxfordshire County Council,SCS Other Cost Centres,Control Account Trojan Residential Care,Balance Sheet General,B2040,ABACUS Accounts Payable Control A/c,13/01/2011,3301182859,2969.4,Fairfield Residential Home
http://statistics.data.gov.uk/id/local-authority/38,Oxfordshire County Council,SCS Other Cost Centres,Control Account Trojan Residential Care,Balance Sheet General,B2040,ABACUS Accounts Payable Control A/c,13/01/2011,3301182860,7209.71,Fairholme House
http://statistics.data.gov.uk/id/local-authority/38,Oxfordshire County Council,SCS Other Cost Centres,Control Account Trojan Residential Care,Balance Sheet General,B2040,ABACUS Accounts Payable Control A/c,13/01/2011,3301182861,4242.57,Familyplacement.com Ltd
http://statistics.data.gov.uk/id/local-authority/38,Oxfordshire County Council,SCS Other Cost Centres,Control Account Trojan Residential Care,Balance Sheet General,B2040,ABACUS Accounts Payable Control A/c,13/01/2011,3301182862,4244.83,Father Hudson's Society
http://statistics.data.gov.uk/id/local-authority/38,Oxfordshire County Council,SCS Other Cost Centres,Control Account Trojan Residential Care,Balance Sheet General,B2040,ABACUS Accounts Payable Control A/c,13/01/2011,3301182863,1285.57,FAWNHOPE REST HOME LTD
http://statistics.data.gov.uk/id/local-authority/38,Oxfordshire County Council,SCS Other Cost Centres,Control Account Trojan Residential Care,Balance Sheet General,B2040,ABACUS Accounts Payable Control A/c,13/01/2011,3301182864,4840.52,Featherton House
http://statistics.data.gov.uk/id/local-authority/38,Oxfordshire County Council,SCS Other Cost Centres,Control Account Trojan Residential Care,Balance Sheet General,B2040,ABACUS Accounts Payable Control A/c,13/01/2011,3301182865,76562.65,Ferendune Court (Anchor Trust)
http://statistics.data.gov.uk/id/local-authority/38,Oxfordshire County Council,SCS Other Cost Centres,Control Account Trojan Residential Care,Balance Sheet General,B2040,ABACUS Accounts Payable Control A/c,13/01/2011,3301182866,92635.83,Fewcott Healthcare Ltd.
http://statistics.data.gov.uk/id/local-authority/38,Oxfordshire County Council,SCS Other Cost Centres,Control Account Trojan Residential Care,Balance Sheet General,B2040,ABACUS Accounts Payable Control A/c,13/01/2011,3301182867,1595.63,Fewcott Healthcare Ltd.
http://statistics.data.gov.uk/id/local-authority/38,Oxfordshire County Council,SCS Other Cost Centres,Control Account Trojan Residential Care,Balance Sheet General,B2040,ABACUS Accounts Payable Control A/c,13/01/2011,3301182868,4367.41,Fitzwarren House EMI HOme
http://statistics.data.gov.uk/id/local-authority/38,Oxfordshire County Council,SCS Other Cost Centres,Control Account Trojan Residential Care,Balance Sheet General,B2040,ABACUS Accounts Payable Control A/c,13/01/2011,3301182870,30382.5,Framland
